Workbook

Sheet Inhalt
B2: Übersicht | E2: =gewJahr -> 2025
B4: Start
B5: Ablaufplan
B6: Feiertage
B7: Kalender

Sheet Start
A1: Inhalt | D1: =gewJahr -> 2025
F3: Ok
D9: Ablaufplan
D10: Rahmenterminplan
D11: Masterplan
F13: Wählen Sie Start > den Pfeil Füllfarbe

Sheet Ablaufplan
A1: Inhalt
B2: =gewJahr -> 2025 | G2: Ablaufplan: Dockung Sep.2025
A3: Ablaufplan Gewährleistungsdockung | H3: Ansprechpartner: Projektleitung: Qualität: Crew Zoll: Baustellen- und UAN Betreuung: Planung:
A4: (Taucher im Hebewerk) '-> | K4: (Taucher im Hebewerk) | Y4: (Taucher im Hebewerk)
A5: Kalenderwoche (Auto) | I5: ="KW"&WEEKNUM(I6,21) -> KW38 | W5: ="KW"&WEEKNUM(W6,21) -> KW39 | AK5: ="KW"&WEEKNUM(AK6,21) -> KW40 | AY5: ="KW"&WEEKNUM(AY6,21) -> KW41 | BM5: ="KW"&WEEKNUM(BM6,21) -> KW42
A6: Datum (Auto) | I6: =C13 -> 2025-09-15 | J6: =I6 -> 2025-09-15 | K6: =I6+1 -> 2025-09-16 | L6: =J6+1 -> 2025-09-16 | M6: 2025-09-17 | N6: 2025-09-17 | O6: 2025-09-18 | P6: 2025-09-18 | Q6: 2025-09-19 | R6: 2025-09-19 | S6: 2025-09-20 | T6: =R6+1 -> 2025-09-20 | U6: =S6+1 -> 2025-09-21 | V6: =T6+1 -> 2025-09-21 | W6: =U6+1 -> 2025-09-22 | X6: 2025-09-22 | Y6: 2025-09-23 | Z6: 2025-09-23 | AA6: 2025-09-24 | AB6: 2025-09-24 | AC6: 2025-09-25 | AD6: 2025-09-25 | AE6: 2025-09-26 | AF6: 2025-09-26 | AG6: 2025-09-27 | AH6: 2025-09-27 | AI6: =AG6+1 -> 2025-09-28 | AJ6: 2025-09-28 | AK6: 2025-09-29 | AL6: 2025-09-29 | AM6: 2025-09-30 | AN6: 2025-09-30 | AO6: 2025-10-01 | AP6: 2025-10-01 | AQ6: 2025-10-02 | AR6: 2025-10-02 | AS6: 2025-10-03 | AT6: 2025-10-03 | AU6: 2025-10-04 | AV6: 2025-10-04 | AW6: 2025-10-05 | AX6: 2025-10-05 | AY6: 2025-10-06 | AZ6: 2025-10-06 | BA6: 2025-10-07 | BB6: 2025-10-07 | BC6: 2025-10-08 | BD6: 2025-10-08 | BE6: =BC6+1 -> 2025-10-09 | BF6: 2025-10-09 | BG6: 2025-10-10 | BH6: 2025-10-10 | BI6: 2025-10-11 | BJ6: =BH6+1 -> 2025-10-11 | BK6: =BI6+1 -> 2025-10-12 | BL6: =BJ6+1 -> 2025-10-12 | BM6: =BK6+1 -> 2025-10-13 | BN6: =BL6+1 -> 2025-10-13 | BO6: =BM6+1 -> 2025-10-14 | BP6: =BN6+1 -> 2025-10-14 | BQ6: =BO6+1 -> 2025-10-15 | BR6: =BP6+1 -> 2025-10-15 | BS6: =BQ6+1 -> 2025-10-16 | BT6: =BR6+1 -> 2025-10-16 | BU6: =BS6+1 -> 2025-10-17 | BV6: =BT6+1 -> 2025-10-17 | BW6: =BU6+1 -> 2025-10-18 | BX6: =BV6+1 -> 2025-10-18 | BY6: =BW6+1 -> 2025-10-19 | BZ6: =BX6+1 -> 2025-10-19
A7: Feiertag -> | I7: =IF(I8<>"","Feiertag","") ->  | AS7: Feiertag | AT7: =IF(AT8<>"","Feiertag","") -> Feiertag | AU7: =IF(AU8<>"","Feiertag","") -> 
J8: =IFERROR(VLOOKUP(J6,Feiertage!$F$12:$F$52,1,FALSE),"") ->  | K8: =IFERROR(VLOOKUP(K6,Feiertage!$F$12:$F$52,1,FALSE),"") ->  | L8: =IFERROR(VLOOKUP(L6,Feiertage!$F$12:$F$52,1,FALSE),"") ->  | M8: =IFERROR(VLOOKUP(M6,Feiertage!$F$12:$F$52,1,FALSE),"") ->  | N8: =IFERROR(VLOOKUP(N6,Feiertage!$F$12:$F$52,1,FALSE),"") ->  | O8: =IFERROR(VLOOKUP(O6,Feiertage!$F$12:$F$52,1,FALSE),"") ->  | P8: =IFERROR(VLOOKUP(P6,Feiertage!$F$12:$F$52,1,FALSE),"") ->  | Q8: =IFERROR(VLOOKUP(Q6,Feiertage!$F$12:$F$52,1,FALSE),"") ->  | R8: =IFERROR(VLOOKUP(R6,Feiertage!$F$12:$F$52,1,FALSE),"") ->  | S8: =IFERROR(VLOOKUP(S6,Feiertage!$F$12:$F$52,1,FALSE),"") ->  | T8: =IFERROR(VLOOKUP(T6,Feiertage!$F$12:$F$52,1,FALSE),"") ->  | U8: =IFERROR(VLOOKUP(U6,Feiertage!$F$12:$F$52,1,FALSE),"") ->  | V8: =IFERROR(VLOOKUP(V6,Feiertage!$F$12:$F$52,1,FALSE),"") ->  | W8: =IFERROR(VLOOKUP(W6,Feiertage!$F$12:$F$52,1,FALSE),"") ->  | X8: =IFERROR(VLOOKUP(X6,Feiertage!$F$12:$F$52,1,FALSE),"") ->  | Y8: =IFERROR(VLOOKUP(Y6,Feiertage!$F$12:$F$52,1,FALSE),"") ->  | Z8: =IFERROR(VLOOKUP(Z6,Feiertage!$F$12:$F$52,1,FALSE),"") ->  | AA8: =IFERROR(VLOOKUP(AA6,Feiertage!$F$12:$F$52,1,FALSE),"") ->  | AB8: =IFERROR(VLOOKUP(AB6,Feiertage!$F$12:$F$52,1,FALSE),"") ->  | AC8: =IFERROR(VLOOKUP(AC6,Feiertage!$F$12:$F$52,1,FALSE),"") ->  | AD8: =IFERROR(VLOOKUP(AD6,Feiertage!$F$12:$F$52,1,FALSE),"") ->  | AE8: =IFERROR(VLOOKUP(AE6,Feiertage!$F$12:$F$52,1,FALSE),"") ->  | AF8: =IFERROR(VLOOKUP(AF6,Feiertage!$F$12:$F$52,1,FALSE),"") ->  | AG8: =IFERROR(VLOOKUP(AG6,Feiertage!$F$12:$F$52,1,FALSE),"") ->  | AH8: =IFERROR(VLOOKUP(AH6,Feiertage!$F$12:$F$52,1,FALSE),"") ->  | AI8: =IFERROR(VLOOKUP(AI6,Feiertage!$F$12:$F$52,1,FALSE),"") ->  | AJ8: =IFERROR(VLOOKUP(AJ6,Feiertage!$F$12:$F$52,1,FALSE),"") ->  | AK8: =IFERROR(VLOOKUP(AK6,Feiertage!$F$12:$F$52,1,FALSE),"") ->  | AL8: =IFERROR(VLOOKUP(AL6,Feiertage!$F$12:$F$52,1,FALSE),"") ->  | AM8: =IFERROR(VLOOKUP(AM6,Feiertage!$F$12:$F$52,1,FALSE),"") ->  | AN8: =IFERROR(VLOOKUP(AN6,Feiertage!$F$12:$F$52,1,FALSE),"") ->  | AO8: =IFERROR(VLOOKUP(AO6,Feiertage!$F$12:$F$52,1,FALSE),"") ->  | AP8: =IFERROR(VLOOKUP(AP6,Feiertage!$F$12:$F$52,1,FALSE),"") ->  | AQ8: =IFERROR(VLOOKUP(AQ6,Feiertage!$F$12:$F$52,1,FALSE),"") ->  | AR8: =IFERROR(VLOOKUP(AR6,Feiertage!$F$12:$F$52,1,FALSE),"") ->  | AS8: =IFERROR(VLOOKUP(AS6,Feiertage!$F$12:$F$52,1,FALSE),"") -> 2025-10-03 | AT8: =IFERROR(VLOOKUP(AT6,Feiertage!$F$12:$F$52,1,FALSE),"") -> 2025-10-03 | AU8: =IFERROR(VLOOKUP(AU6,Feiertage!$F$12:$F$52,1,FALSE),"") ->  | AV8: =IFERROR(VLOOKUP(AV6,Feiertage!$F$12:$F$52,1,FALSE),"") ->  | AW8: =IFERROR(VLOOKUP(AW6,Feiertage!$F$12:$F$52,1,FALSE),"") ->  | AX8: =IFERROR(VLOOKUP(AX6,Feiertage!$F$12:$F$52,1,FALSE),"") ->  | AY8: =IFERROR(VLOOKUP(AY6,Feiertage!$F$12:$F$52,1,FALSE),"") ->  | AZ8: =IFERROR(VLOOKUP(AZ6,Feiertage!$F$12:$F$52,1,FALSE),"") ->  | BA8: =IFERROR(VLOOKUP(BA6,Feiertage!$F$12:$F$52,1,FALSE),"") ->  | BB8: =IFERROR(VLOOKUP(BB6,Feiertage!$F$12:$F$52,1,FALSE),"") ->  | BC8: =IFERROR(VLOOKUP(BC6,Feiertage!$F$12:$F$52,1,FALSE),"") ->  | BD8: =IFERROR(VLOOKUP(BD6,Feiertage!$F$12:$F$52,1,FALSE),"") ->  | BE8: =IFERROR(VLOOKUP(BE6,Feiertage!$F$12:$F$52,1,FALSE),"") ->  | BF8: =IFERROR(VLOOKUP(BF6,Feiertage!$F$12:$F$52,1,FALSE),"") ->  | BG8: =IFERROR(VLOOKUP(BG6,Feiertage!$F$12:$F$52,1,FALSE),"") ->  | BH8: =IFERROR(VLOOKUP(BH6,Feiertage!$F$12:$F$52,1,FALSE),"") ->  | BI8: =IFERROR(VLOOKUP(BI6,Feiertage!$F$12:$F$52,1,FALSE),"") ->  | BJ8: =IFERROR(VLOOKUP(BJ6,Feiertage!$F$12:$F$52,1,FALSE),"") ->  | BK8: =IFERROR(VLOOKUP(BK6,Feiertage!$F$12:$F$52,1,FALSE),"") ->  | BL8: =IFERROR(VLOOKUP(BL6,Feiertage!$F$12:$F$52,1,FALSE),"") ->  | BM8: =IFERROR(VLOOKUP(BM6,Feiertage!$F$12:$F$52,1,FALSE),"") ->  | BN8: =IFERROR(VLOOKUP(BN6,Feiertage!$F$12:$F$52,1,FALSE),"") ->  | BO8: =IFERROR(VLOOKUP(BO6,Feiertage!$F$12:$F$52,1,FALSE),"") ->  | BP8: =IFERROR(VLOOKUP(BP6,Feiertage!$F$12:$F$52,1,FALSE),"") ->  | BQ8: =IFERROR(VLOOKUP(BQ6,Feiertage!$F$12:$F$52,1,FALSE),"") ->  | BR8: =IFERROR(VLOOKUP(BR6,Feiertage!$F$12:$F$52,1,FALSE),"") ->  | BS8: =IFERROR(VLOOKUP(BS6,Feiertage!$F$12:$F$52,1,FALSE),"") ->  | BT8: =IFERROR(VLOOKUP(BT6,Feiertage!$F$12:$F$52,1,FALSE),"") ->  | BU8: =IFERROR(VLOOKUP(BU6,Feiertage!$F$12:$F$52,1,FALSE),"") ->  | BV8: =IFERROR(VLOOKUP(BV6,Feiertage!$F$12:$F$52,1,FALSE),"") ->  | BW8: =IFERROR(VLOOKUP(BW6,Feiertage!$F$12:$F$52,1,FALSE),"") ->  | BX8: =IFERROR(VLOOKUP(BX6,Feiertage!$F$12:$F$52,1,FALSE),"") ->  | BY8: =IFERROR(VLOOKUP(BY6,Feiertage!$F$12:$F$52,1,FALSE),"") ->  | BZ8: =IFERROR(VLOOKUP(BZ6,Feiertage!$F$12:$F$52,1,FALSE),"") -> 
A9: Arbeitszeiträume (I: 06:00 - 12:00 und II: 12:00 - 18:00) | I9: I. | J9: II. | K9: I. | L9: II. | M9: I. | N9: II. | O9: I. | P9: II. | Q9: I. | R9: II. | S9: I. | T9: II. | U9: I. | V9: II. | W9: I. | X9: II. | Y9: I. | Z9: II. | AA9: I. | AB9: II. | AC9: I. | AD9: II. | AE9: I. | AF9: II. | AG9: I. | AH9: II. | AI9: I. | AJ9: II. | AK9: I. | AL9: II. | AM9: I. | AN9: II. | AO9: I. | AP9: II. | AQ9: I. | AR9: II. | AS9: I. | AT9: II. | AU9: I. | AV9: II. | AW9: I. | AX9: II. | AY9: I. | AZ9: II. | BA9: I. | BB9: II. | BC9: I. | BD9: II. | BE9: I. | BF9: II. | BG9: I. | BH9: II. | BI9: I. | BJ9: II. | BK9: I. | BL9: II. | BM9: I. | BN9: II. | BO9: I. | BP9: II. | BQ9: I. | BR9: II. | BS9: I. | BT9: II. | BU9: I. | BV9: II. | BW9: I. | BX9: II. | BY9: I. | BZ9: II.
I10: =CONCATENATE(I6,I9) -> 44453I. | J10: =CONCATENATE(J6,J9) -> 44453II. | K10: =CONCATENATE(K6,K9) -> 44454I. | L10: 44454II. | M10: 44455I. | N10: 44455II. | O10: 44456I. | P10: 44456II. | Q10: 44457I. | R10: 44457II. | S10: 44458I. | T10: 44458II. | U10: 44459I. | V10: 44459II. | W10: 44460I. | X10: 44460II. | Y10: 44461I. | Z10: 44461II. | AA10: 44462I. | AB10: 44462II. | AC10: 44463I. | AD10: 44463II. | AE10: 44464I. | AF10: 44464II. | AG10: 44465I. | AH10: 44465II. | AI10: 44466I. | AJ10: 44466II. | AK10: 44467I. | AL10: 44467II. | AM10: 44468I. | AN10: 44468II. | AO10: 44469I. | AP10: 44469II. | AQ10: 44470I. | AR10: 44470II. | AS10: 44471I. | AT10: 44471II. | AU10: 44472I. | AV10: 44472II. | AW10: 44473I. | AX10: 44473II. | AY10: 44474I. | AZ10: 44474II. | BA10: 44475I. | BB10: 44475II. | BC10: 44476I. | BD10: 44476II. | BE10: 44477I. | BF10: 44477II. | BG10: 44478I. | BH10: 44478II. | BI10: 44479I. | BJ10: 44479II. | BK10: 44480I. | BL10: 44480II. | BM10: 44481I. | BN10: 44481II. | BO10: 44482I. | BP10: 44482II. | BQ10: 44483I. | BR10: 44483II. | BS10: 44484I. | BT10: 44484II. | BU10: 44485I. | BV10: 44485II. | CA10: =E48 -> 0.25 | CB10: =E49 -> 0.25
I11: 6:00 -12:00 | J11: 12:00-18:00 | K11: 6:00 -12:00 | L11: 12:00-18:00 | M11: 6:00 -12:00 | N11: 12:00-18:00 | O11: 6:00 -12:00 | P11: 12:00-18:00 | Q11: 6:00 -12:00 | R11: 12:00-18:00 | S11: 6:00 -12:02 | T11: 12:00-18:00 | U11: 6:00 -12:00 | V11: 12:00-18:00 | W11: 6:00 -12:00 | X11: 12:00-18:00 | Y11: 6:00 -12:00 | Z11: 12:00-18:00 | AA11: 6:00 -12:00 | AB11: 12:00-18:00 | AC11: 6:00 -12:00 | AD11: 12:00-18:00 | AE11: 6:00 -12:00 | AF11: 12:00-18:00 | AG11: 6:00 -12:00 | AH11: 12:00-18:00 | AI11: 6:00 -12:02 | AJ11: 12:00-18:00 | AK11: 6:00 -12:00 | AL11: 12:00-18:00 | AM11: 6:00 -12:02 | AN11: 12:00-18:00 | AO11: 6:00 -12:00 | AP11: 12:00-18:00 | AQ11: 6:00 -12:02 | AR11: 12:00-18:00 | AS11: 6:00 -12:00 | AT11: 12:00-18:00 | AU11: 6:00 -12:02 | AV11: 12:00-18:00 | AW11: 6:00 -12:00 | AX11: 12:00-18:00 | AY11: 6:00 -12:02 | AZ11: 12:00-18:00 | BA11: 6:00 -12:00 | BB11: 12:00-18:00 | BC11: 6:00 -12:02 | BD11: 12:00-18:00 | BE11: 6:00 -12:00 | BF11: 12:00-18:00 | BG11: 6:00 -12:02 | BH11: 12:00-18:00 | BI11: 6:00 -12:00 | BJ11: 12:00-18:00 | BK11: 6:00 -12:02 | BL11: 12:00-18:00 | BM11: 6:00 -12:00 | BN11: 12:00-18:00 | BO11: 6:00 -12:02 | BP11: 12:00-18:00 | BQ11: 6:00 -12:00 | BR11: 12:00-18:00 | BS11: 6:00 -12:02 | BT11: 12:00-18:00 | BU11: 6:00 -12:00 | BV11: 12:00-18:00 | BW11: 6:00 -12:02 | BX11: 12:00-18:00 | BY11: 6:00 -12:00 | BZ11: 12:00-18:00 | CA11: I. | CB11: II. | CC11: Hilfsspalte | CD11: Hilfsspalte
A12: Aktivität | B12: Verantw. | C12: Anfang | D12: Ende | E12: I. | F12: II. | G12: Dauer Std. | H12: Dauer | BW12: =IF(WEEKDAY(BW$6,2)>5,BW6,"") -> 2025-10-18 | BX12: 2025-10-18 | BY12: 2025-10-19 | BZ12: 2025-10-19 | CA12: Std. | CB12: Std.
A13: Überführung (16.09.-7:30) | B13: Zoll | C13: 2025-09-15 | D13: 2025-09-16 | E13: I. | F13: II. | CA13: =IF(E13="","",$CA$10) -> 06:00:00 | CB13: =IF(F13="","",$CA$10) -> 06:00:00 | CC13: =IF(E13="",FALSE,TRUE) -> TRUE | CD13: =IF(F13="",FALSE,TRUE) -> TRUE | CE13: =AND($B13=$A$38,I$6>=$C13,I$6<=$D13) -> FALSE | CF13: =AND($B13=$A$38,J$6>=$C13,J$6<=$D13) -> FALSE | CG13: FALSE | CH13: FALSE | CI13: FALSE | CJ13: FALSE | CK13: FALSE | CL13: FALSE | CM13: FALSE | CN13: FALSE | CO13: FALSE | CP13: FALSE | CQ13: FALSE | CR13: FALSE | CS13: FALSE | CT13: FALSE | CU13: FALSE | CV13: FALSE | CW13: FALSE | CX13: FALSE | CY13: FALSE | CZ13: FALSE | DA13: FALSE | DB13: FALSE | DC13: FALSE | DD13: FALSE | DE13: FALSE | DF13: FALSE | DG13: FALSE | DH13: FALSE | DI13: FALSE | DJ13: FALSE | DK13: FALSE | DL13: FALSE | DM13: FALSE | DN13: FALSE | DO13: FALSE | DP13: FALSE | DQ13: FALSE | DR13: FALSE | DS13: FALSE | DT13: FALSE | DU13: FALSE | DV13: FALSE | DW13: FALSE | DX13: FALSE | DY13: FALSE | DZ13: FALSE | EA13: FALSE | EB13: FALSE | EC13: FALSE | ED13: FALSE | EE13: FALSE | EF13: FALSE | EG13: FALSE | EH13: FALSE | EI13: FALSE | EJ13: FALSE | EK13: FALSE | EL13: FALSE | EM13: FALSE | EN13: FALSE | EO13: FALSE | EP13: FALSE | EQ13: FALSE | ER13: =AND($B13=$A$38,BV$6>=$C13,BV$6<=$D13) -> FALSE | ES13: FALSE | ET13: FALSE | EU13: FALSE | EV13: FALSE
A14: Eintreffen (ca. 18:00) Festmachen und Landanschluss | B14: TI/Zoll | C14: 2025-09-16 | D14: 2025-09-16 | F14: II. | G14: 0.04166666667 | H14: 1h | CA14: =IF(E14="","",$CA$10) ->  | CB14: =IF(F14="","",$CA$10) -> 06:00:00 | CC14: =IF(E14="",FALSE,TRUE) -> FALSE | CD14: =IF(F14="",FALSE,TRUE) -> TRUE | CE14: =AND($B14=$A$38,I$6>=$C14,I$6<=$D14) -> FALSE | CF14: =AND($B14=$A$38,J$6>=$C14,J$6<=$D14) -> FALSE | CG14: =AND($B14=$A$38,K$6>=$C14,K$6<=$D14) -> FALSE | CH14: =AND($B14=$A$38,L$6>=$C14,L$6<=$D14) -> FALSE | CI14: =AND($B14=$A$38,M$6>=$C14,M$6<=$D14) -> FALSE | CJ14: =AND($B14=$A$38,N$6>=$C14,N$6<=$D14) -> FALSE | CK14: =AND($B14=$A$38,O$6>=$C14,O$6<=$D14) -> FALSE | CL14: =AND($B14=$A$38,P$6>=$C14,P$6<=$D14) -> FALSE | CM14: =AND($B14=$A$38,Q$6>=$C14,Q$6<=$D14) -> FALSE | CN14: =AND($B14=$A$38,R$6>=$C14,R$6<=$D14) -> FALSE | CO14: =AND($B14=$A$38,S$6>=$C14,S$6<=$D14) -> FALSE | CP14: =AND($B14=$A$38,T$6>=$C14,T$6<=$D14) -> FALSE | CQ14: =AND($B14=$A$38,U$6>=$C14,U$6<=$D14) -> FALSE | CR14: =AND($B14=$A$38,V$6>=$C14,V$6<=$D14) -> FALSE | CS14: =AND($B14=$A$38,W$6>=$C14,W$6<=$D14) -> FALSE | CT14: =AND($B14=$A$38,X$6>=$C14,X$6<=$D14) -> FALSE | CU14: =AND($B14=$A$38,Y$6>=$C14,Y$6<=$D14) -> FALSE | CV14: =AND($B14=$A$38,Z$6>=$C14,Z$6<=$D14) -> FALSE | CW14: =AND($B14=$A$38,AA$6>=$C14,AA$6<=$D14) -> FALSE | CX14: =AND($B14=$A$38,AB$6>=$C14,AB$6<=$D14) -> FALSE | CY14: =AND($B14=$A$38,AC$6>=$C14,AC$6<=$D14) -> FALSE | CZ14: =AND($B14=$A$38,AD$6>=$C14,AD$6<=$D14) -> FALSE | DA14: =AND($B14=$A$38,AE$6>=$C14,AE$6<=$D14) -> FALSE | DB14: =AND($B14=$A$38,AF$6>=$C14,AF$6<=$D14) -> FALSE | DC14: =AND($B14=$A$38,AG$6>=$C14,AG$6<=$D14) -> FALSE | DD14: =AND($B14=$A$38,AH$6>=$C14,AH$6<=$D14) -> FALSE | DE14: =AND($B14=$A$38,AI$6>=$C14,AI$6<=$D14) -> FALSE | DF14: =AND($B14=$A$38,AJ$6>=$C14,AJ$6<=$D14) -> FALSE | DG14: =AND($B14=$A$38,AK$6>=$C14,AK$6<=$D14) -> FALSE | DH14: =AND($B14=$A$38,AL$6>=$C14,AL$6<=$D14) -> FALSE | DI14: =AND($B14=$A$38,AM$6>=$C14,AM$6<=$D14) -> FALSE | DJ14: =AND($B14=$A$38,AN$6>=$C14,AN$6<=$D14) -> FALSE | DK14: =AND($B14=$A$38,AO$6>=$C14,AO$6<=$D14) -> FALSE | DL14: =AND($B14=$A$38,AP$6>=$C14,AP$6<=$D14) -> FALSE | DM14: =AND($B14=$A$38,AQ$6>=$C14,AQ$6<=$D14) -> FALSE | DN14: =AND($B14=$A$38,AR$6>=$C14,AR$6<=$D14) -> FALSE | DO14: =AND($B14=$A$38,AS$6>=$C14,AS$6<=$D14) -> FALSE | DP14: =AND($B14=$A$38,AT$6>=$C14,AT$6<=$D14) -> FALSE | DQ14: =AND($B14=$A$38,AU$6>=$C14,AU$6<=$D14) -> FALSE | DR14: =AND($B14=$A$38,AV$6>=$C14,AV$6<=$D14) -> FALSE | DS14: =AND($B14=$A$38,AW$6>=$C14,AW$6<=$D14) -> FALSE | DT14: =AND($B14=$A$38,AX$6>=$C14,AX$6<=$D14) -> FALSE | DU14: =AND($B14=$A$38,AY$6>=$C14,AY$6<=$D14) -> FALSE | DV14: =AND($B14=$A$38,AZ$6>=$C14,AZ$6<=$D14) -> FALSE | DW14: =AND($B14=$A$38,BA$6>=$C14,BA$6<=$D14) -> FALSE | DX14: =AND($B14=$A$38,BB$6>=$C14,BB$6<=$D14) -> FALSE | DY14: =AND($B14=$A$38,BC$6>=$C14,BC$6<=$D14) -> FALSE | DZ14: =AND($B14=$A$38,BD$6>=$C14,BD$6<=$D14) -> FALSE | EA14: =AND($B14=$A$38,BE$6>=$C14,BE$6<=$D14) -> FALSE | EB14: =AND($B14=$A$38,BF$6>=$C14,BF$6<=$D14) -> FALSE | EC14: =AND($B14=$A$38,BG$6>=$C14,BG$6<=$D14) -> FALSE | ED14: =AND($B14=$A$38,BH$6>=$C14,BH$6<=$D14) -> FALSE | EE14: =AND($B14=$A$38,BI$6>=$C14,BI$6<=$D14) -> FALSE | EF14: =AND($B14=$A$38,BJ$6>=$C14,BJ$6<=$D14) -> FALSE | EG14: =AND($B14=$A$38,BK$6>=$C14,BK$6<=$D14) -> FALSE | EH14: =AND($B14=$A$38,BL$6>=$C14,BL$6<=$D14) -> FALSE | EI14: =AND($B14=$A$38,BM$6>=$C14,BM$6<=$D14) -> FALSE | EJ14: =AND($B14=$A$38,BN$6>=$C14,BN$6<=$D14) -> FALSE | EK14: =AND($B14=$A$38,BO$6>=$C14,BO$6<=$D14) -> FALSE | EL14: =AND($B14=$A$38,BP$6>=$C14,BP$6<=$D14) -> FALSE | EM14: =AND($B14=$A$38,BQ$6>=$C14,BQ$6<=$D14) -> FALSE | EN14: =AND($B14=$A$38,BR$6>=$C14,BR$6<=$D14) -> FALSE | EO14: =AND($B14=$A$38,BS$6>=$C14,BS$6<=$D14) -> FALSE | EP14: =AND($B14=$A$38,BT$6>=$C14,BT$6<=$D14) -> FALSE | EQ14: =AND($B14=$A$38,BU$6>=$C14,BU$6<=$D14) -> FALSE | ER14: =AND($B14=$A$38,BV$6>=$C14,BV$6<=$D14) -> FALSE | ES14: =AND($B14=$A$38,BW$6>=$C14,BW$6<=$D14) -> FALSE | ET14: =AND($B14=$A$38,BX$6>=$C14,BX$6<=$D14) -> FALSE | EU14: =AND($B14=$A$38,BY$6>=$C14,BY$6<=$D14) -> FALSE | EV14: =AND($B14=$A$38,BZ$6>=$C14,BZ$6<=$D14) -> FALSE
A15: Zeitfenster Abarbeitung Schadensmeldungen Innenbereiche (siehe Liste) | B15: PW/UAN | C15: 2025-09-17 | D15: 2025-09-18 | E15: I. | F15: II. | G15: =7*11/24 -> 3.208333333 | H15: 7d | Q15: Dockung | CA15: 06:00:00 | CB15: 06:00:00 | CC15: TRUE | CD15: TRUE | CE15: FALSE | CF15: FALSE | CG15: FALSE | CH15: FALSE | CI15: FALSE | CJ15: FALSE | CK15: FALSE | CL15: FALSE | CM15: FALSE | CN15: FALSE | CO15: FALSE | CP15: FALSE | CQ15: FALSE | CR15: FALSE | CS15: FALSE | CT15: FALSE | CU15: FALSE | CV15: FALSE | CW15: FALSE | CX15: FALSE | CY15: FALSE | CZ15: FALSE | DA15: FALSE | DB15: FALSE | DC15: FALSE | DD15: FALSE | DE15: FALSE | DF15: FALSE | DG15: FALSE | DH15: FALSE | DI15: FALSE | DJ15: FALSE | DK15: FALSE | DL15: FALSE | DM15: FALSE | DN15: FALSE | DO15: FALSE | DP15: FALSE | DQ15: FALSE | DR15: FALSE | DS15: FALSE | DT15: FALSE | DU15: FALSE | DV15: FALSE | DW15: FALSE | DX15: FALSE | DY15: FALSE | DZ15: FALSE | EA15: FALSE | EB15: FALSE | EC15: FALSE | ED15: FALSE | EE15: FALSE | EF15: FALSE | EG15: FALSE | EH15: FALSE | EI15: FALSE | EJ15: FALSE | EK15: FALSE | EL15: FALSE | EM15: FALSE | EN15: FALSE | EO15: FALSE | EP15: FALSE | EQ15: FALSE | ER15: FALSE | ES15: FALSE | ET15: FALSE | EU15: FALSE | EV15: FALSE
A16: Eindocken und Verholen auf Nordhelling Richtung Halle 4.2 | B16: TI | C16: 2025-09-19 | D16: 2025-09-19 | E16: I. | G16: =4*11/24 -> 1.833333333 | H16: 4h | Q16: =IF(WEEKDAY(Q$6,2)>6,"So","") ->  | U16: So | V16: So | Y16: =IF(WEEKDAY(Y$6,2)>6,"So","") ->  | AI16: So | AJ16: So | AW16: So | AX16: So | BK16: So | BL16: So | CA16: 06:00:00 | CC16: TRUE | CD16: FALSE | CE16: FALSE | CF16: FALSE | CG16: FALSE | CH16: FALSE | CI16: FALSE | CJ16: FALSE | CK16: FALSE | CL16: FALSE | CM16: FALSE | CN16: FALSE | CO16: FALSE | CP16: FALSE | CQ16: FALSE | CR16: FALSE | CS16: FALSE | CT16: FALSE | CU16: FALSE | CV16: FALSE | CW16: FALSE | CX16: FALSE | CY16: FALSE | CZ16: FALSE | DA16: FALSE | DB16: FALSE | DC16: FALSE | DD16: FALSE | DE16: FALSE | DF16: FALSE | DG16: FALSE | DH16: FALSE | DI16: FALSE | DJ16: FALSE | DK16: FALSE | DL16: FALSE | DM16: FALSE | DN16: FALSE | DO16: FALSE | DP16: FALSE | DQ16: FALSE | DR16: FALSE | DS16: FALSE | DT16: FALSE | DU16: FALSE | DV16: FALSE | DW16: FALSE | DX16: FALSE | DY16: FALSE | DZ16: FALSE | EA16: FALSE | EB16: FALSE | EC16: FALSE | ED16: FALSE | EE16: FALSE | EF16: FALSE | EG16: FALSE | EH16: FALSE | EI16: FALSE | EJ16: FALSE | EK16: FALSE | EL16: FALSE | EM16: FALSE | EN16: FALSE | EO16: FALSE | EP16: FALSE | EQ16: FALSE | ER16: FALSE | ES16: FALSE | ET16: FALSE | EU16: FALSE | EV16: FALSE
A17: Treppenturm stellen (Bb achtern) und Herstellen Landanschluss | B17: TI/Zoll | C17: 2025-09-19 | D17: 2025-09-19 | E17: I. | G17: 0.02083333333 | H17: 0,5h | CA17: 06:00:00 | CC17: TRUE | CD17: FALSE | CE17: FALSE | CF17: FALSE | CG17: FALSE | CH17: FALSE | CI17: FALSE | CJ17: FALSE | CK17: FALSE | CL17: FALSE | CM17: FALSE | CN17: FALSE | CO17: FALSE | CP17: FALSE | CQ17: FALSE | CR17: FALSE | CS17: FALSE | CT17: FALSE | CU17: FALSE | CV17: FALSE | CW17: FALSE | CX17: FALSE | CY17: FALSE | CZ17: FALSE | DA17: FALSE | DB17: FALSE | DC17: FALSE | DD17: FALSE | DE17: FALSE | DF17: FALSE | DG17: FALSE | DH17: FALSE | DI17: FALSE | DJ17: FALSE | DK17: FALSE | DL17: FALSE | DM17: FALSE | DN17: FALSE | DO17: FALSE | DP17: FALSE | DQ17: FALSE | DR17: FALSE | DS17: FALSE | DT17: FALSE | DU17: FALSE | DV17: FALSE | DW17: FALSE | DX17: FALSE | DY17: FALSE | DZ17: FALSE | EA17: FALSE | EB17: FALSE | EC17: FALSE | ED17: FALSE | EE17: FALSE | EF17: FALSE | EG17: FALSE | EH17: FALSE | EI17: FALSE | EJ17: FALSE | EK17: FALSE | EL17: FALSE | EM17: FALSE | EN17: FALSE | EO17: FALSE | EP17: FALSE | EQ17: FALSE | ER17: FALSE | ES17: FALSE | ET17: FALSE | EU17: FALSE | EV17: FALSE
A18: Sicherung und ggf. Ausserbetriebnahme Schiffsbestriebssysteme | B18: TI/Zoll | C18: 2025-09-19 | D18: 2025-09-19 | E18: I. | G18: 0.04166666667 | H18: 1h | CA18: 06:00:00 | CC18: TRUE | CD18: FALSE | CE18: FALSE | CF18: FALSE | CG18: FALSE | CH18: FALSE | CI18: FALSE | CJ18: FALSE | CK18: FALSE | CL18: FALSE | CM18: FALSE | CN18: FALSE | CO18: FALSE | CP18: FALSE | CQ18: FALSE | CR18: FALSE | CS18: FALSE | CT18: FALSE | CU18: FALSE | CV18: FALSE | CW18: FALSE | CX18: FALSE | CY18: FALSE | CZ18: FALSE | DA18: FALSE | DB18: FALSE | DC18: FALSE | DD18: FALSE | DE18: FALSE | DF18: FALSE | DG18: FALSE | DH18: FALSE | DI18: FALSE | DJ18: FALSE | DK18: FALSE | DL18: FALSE | DM18: FALSE | DN18: FALSE | DO18: FALSE | DP18: FALSE | DQ18: FALSE | DR18: FALSE | DS18: FALSE | DT18: FALSE | DU18: FALSE | DV18: FALSE | DW18: FALSE | DX18: FALSE | DY18: FALSE | DZ18: FALSE | EA18: FALSE | EB18: FALSE | EC18: FALSE | ED18: FALSE | EE18: FALSE | EF18: FALSE | EG18: FALSE | EH18: FALSE | EI18: FALSE | EJ18: FALSE | EK18: FALSE | EL18: FALSE | EM18: FALSE | EN18: FALSE | EO18: FALSE | EP18: FALSE | EQ18: FALSE | ER18: FALSE | ES18: FALSE | ET18: FALSE | EU18: FALSE | EV18: FALSE
A19: Einrüsten UW-Schiff | B19: Icke | C19: 2025-09-19 | D19: 2025-09-19 | E19: I. | G19: 0.08333333333 | H19: 2h | CA19: 06:00:00 | CC19: TRUE | CD19: FALSE | CE19: FALSE | CF19: FALSE | CG19: FALSE | CH19: FALSE | CI19: FALSE | CJ19: FALSE | CK19: FALSE | CL19: FALSE | CM19: FALSE | CN19: FALSE | CO19: FALSE | CP19: FALSE | CQ19: FALSE | CR19: FALSE | CS19: FALSE | CT19: FALSE | CU19: FALSE | CV19: FALSE | CW19: FALSE | CX19: FALSE | CY19: FALSE | CZ19: FALSE | DA19: FALSE | DB19: FALSE | DC19: FALSE | DD19: FALSE | DE19: FALSE | DF19: FALSE | DG19: FALSE | DH19: FALSE | DI19: FALSE | DJ19: FALSE | DK19: FALSE | DL19: FALSE | DM19: FALSE | DN19: FALSE | DO19: FALSE | DP19: FALSE | DQ19: FALSE | DR19: FALSE | DS19: FALSE | DT19: FALSE | DU19: FALSE | DV19: FALSE | DW19: FALSE | DX19: FALSE | DY19: FALSE | DZ19: FALSE | EA19: FALSE | EB19: FALSE | EC19: FALSE | ED19: FALSE | EE19: FALSE | EF19: FALSE | EG19: FALSE | EH19: FALSE | EI19: FALSE | EJ19: FALSE | EK19: FALSE | EL19: FALSE | EM19: FALSE | EN19: FALSE | EO19: FALSE | EP19: FALSE | EQ19: FALSE | ER19: FALSE | ES19: FALSE | ET19: FALSE | EU19: FALSE | EV19: FALSE
A20: Installation der temporären Seekühlwasserversorgung | B20: TA/ TI | C20: 2025-09-19 | D20: 2025-09-19 | E20: I. | G20: 0.1666666667 | H20: 4h | CA20: 06:00:00 | CC20: TRUE | CD20: FALSE | CE20: FALSE | CF20: FALSE | CG20: FALSE | CH20: FALSE | CI20: FALSE | CJ20: FALSE | CK20: FALSE | CL20: FALSE | CM20: FALSE | CN20: FALSE | CO20: FALSE | CP20: FALSE | CQ20: FALSE | CR20: FALSE | CS20: FALSE | CT20: FALSE | CU20: FALSE | CV20: FALSE | CW20: FALSE | CX20: FALSE | CY20: FALSE | CZ20: FALSE | DA20: FALSE | DB20: FALSE | DC20: FALSE | DD20: FALSE | DE20: FALSE | DF20: FALSE | DG20: FALSE | DH20: FALSE | DI20: FALSE | DJ20: FALSE | DK20: FALSE | DL20: FALSE | DM20: FALSE | DN20: FALSE | DO20: FALSE | DP20: FALSE | DQ20: FALSE | DR20: FALSE | DS20: FALSE | DT20: FALSE | DU20: FALSE | DV20: FALSE | DW20: FALSE | DX20: FALSE | DY20: FALSE | DZ20: FALSE | EA20: FALSE | EB20: FALSE | EC20: FALSE | ED20: FALSE | EE20: FALSE | EF20: FALSE | EG20: FALSE | EH20: FALSE | EI20: FALSE | EJ20: FALSE | EK20: FALSE | EL20: FALSE | EM20: FALSE | EN20: FALSE | EO20: FALSE | EP20: FALSE | EQ20: FALSE | ER20: FALSE | ES20: FALSE | ET20: FALSE | EU20: FALSE | EV20: FALSE
A21: Schiff waschen | B21: Korr. UAN | C21: 2025-09-19 | D21: 2025-09-19 | E21: I. | F21: II. | G21: 0.125 | H21: 3h | CA21: 06:00:00 | CB21: 06:00:00 | CC21: TRUE | CD21: TRUE | CE21: FALSE | CF21: FALSE | CG21: FALSE | CH21: FALSE | CI21: FALSE | CJ21: FALSE | CK21: FALSE | CL21: FALSE | CM21: TRUE | CN21: TRUE | CO21: FALSE | CP21: FALSE | CQ21: FALSE | CR21: FALSE | CS21: FALSE | CT21: FALSE | CU21: FALSE | CV21: FALSE | CW21: FALSE | CX21: FALSE | CY21: FALSE | CZ21: FALSE | DA21: FALSE | DB21: FALSE | DC21: FALSE | DD21: FALSE | DE21: FALSE | DF21: FALSE | DG21: FALSE | DH21: FALSE | DI21: FALSE | DJ21: FALSE | DK21: FALSE | DL21: FALSE | DM21: FALSE | DN21: FALSE | DO21: FALSE | DP21: FALSE | DQ21: FALSE | DR21: FALSE | DS21: FALSE | DT21: FALSE | DU21: FALSE | DV21: FALSE | DW21: FALSE | DX21: FALSE | DY21: FALSE | DZ21: FALSE | EA21: FALSE | EB21: FALSE | EC21: FALSE | ED21: FALSE | EE21: FALSE | EF21: FALSE | EG21: FALSE | EH21: FALSE | EI21: FALSE | EJ21: FALSE | EK21: FALSE | EL21: FALSE | EM21: FALSE | EN21: FALSE | EO21: FALSE | EP21: FALSE | EQ21: FALSE | ER21: FALSE | ES21: FALSE | ET21: FALSE | EU21: FALSE | EV21: FALSE
A22: Zeitfenster für Befundung Schäden UW Schiff (QSR & ICCP) | B22: TQ/Zoll/UAN | C22: 2025-09-22 | D22: 2025-09-22 | E22: I. | G22: 0.08333333333 | H22: 2h | U22: So | V22: So | W22: Befundung | CA22: 06:00:00 | CC22: TRUE | CD22: FALSE | CE22: FALSE | CF22: FALSE | CG22: FALSE | CH22: FALSE | CI22: FALSE | CJ22: FALSE | CK22: FALSE | CL22: FALSE | CM22: FALSE | CN22: FALSE | CO22: FALSE | CP22: FALSE | CQ22: FALSE | CR22: FALSE | CS22: FALSE | CT22: FALSE | CU22: FALSE | CV22: FALSE | CW22: FALSE | CX22: FALSE | CY22: FALSE | CZ22: FALSE | DA22: FALSE | DB22: FALSE | DC22: FALSE | DD22: FALSE | DE22: FALSE | DF22: FALSE | DG22: FALSE | DH22: FALSE | DI22: FALSE | DJ22: FALSE | DK22: FALSE | DL22: FALSE | DM22: FALSE | DN22: FALSE | DO22: FALSE | DP22: FALSE | DQ22: FALSE | DR22: FALSE | DS22: FALSE | DT22: FALSE | DU22: FALSE | DV22: FALSE | DW22: FALSE | DX22: FALSE | DY22: FALSE | DZ22: FALSE | EA22: FALSE | EB22: FALSE | EC22: FALSE | ED22: FALSE | EE22: FALSE | EF22: FALSE | EG22: FALSE | EH22: FALSE | EI22: FALSE | EJ22: FALSE | EK22: FALSE | EL22: FALSE | EM22: FALSE | EN22: FALSE | EO22: FALSE | EP22: FALSE | EQ22: FALSE | ER22: FALSE | ES22: FALSE | ET22: FALSE | EU22: FALSE | EV22: FALSE
A23: Zeitfenster heisse Arbeiten UW Schiff (QSR-Anlage) | B23: PW/UAN | C23: 2025-09-22 | D23: 2025-09-23 | E23: I. | F23: II. | G23: 0.8333333333 | H23: 20h | U23: So | V23: So | Y23: =IF(WEEKDAY(Y$6,2)>6,"So","") ->  | AI23: So | AJ23: So | AW23: So | AX23: So | BK23: So | BL23: So | CA23: 06:00:00 | CB23: 06:00:00 | CC23: TRUE | CD23: TRUE | CE23: FALSE | CF23: FALSE | CG23: FALSE | CH23: FALSE | CI23: FALSE | CJ23: FALSE | CK23: FALSE | CL23: FALSE | CM23: FALSE | CN23: FALSE | CO23: FALSE | CP23: FALSE | CQ23: FALSE | CR23: FALSE | CS23: FALSE | CT23: FALSE | CU23: FALSE | CV23: FALSE | CW23: FALSE | CX23: FALSE | CY23: FALSE | CZ23: FALSE | DA23: FALSE | DB23: FALSE | DC23: FALSE | DD23: FALSE | DE23: FALSE | DF23: FALSE | DG23: FALSE | DH23: FALSE | DI23: FALSE | DJ23: FALSE | DK23: FALSE | DL23: FALSE | DM23: FALSE | DN23: FALSE | DO23: FALSE | DP23: FALSE | DQ23: FALSE | DR23: FALSE | DS23: FALSE | DT23: FALSE | DU23: FALSE | DV23: FALSE | DW23: FALSE | DX23: FALSE | DY23: FALSE | DZ23: FALSE | EA23: FALSE | EB23: FALSE | EC23: FALSE | ED23: FALSE | EE23: FALSE | EF23: FALSE | EG23: FALSE | EH23: FALSE | EI23: FALSE | EJ23: FALSE | EK23: FALSE | EL23: FALSE | EM23: FALSE | EN23: FALSE | EO23: FALSE | EP23: FALSE | EQ23: FALSE | ER23: FALSE | ES23: FALSE | ET23: FALSE | EU23: FALSE | EV23: FALSE
A24: Zeitfenster Beschichtung UW Schiff (QSR-Anlage) | B24: Korr. UAN | C24: 2025-09-24 | D24: 2025-09-27 | E24: I. | F24: II. | G24: =4*11/24 -> 1.833333333 | H24: 4 Tage | BW24: =IF(WEEKDAY(BW$6,2)>6,"So","") ->  | BY24: So | BZ24: So | CA24: 06:00:00 | CB24: 06:00:00 | CC24: TRUE | CD24: TRUE | CE24: FALSE | CF24: FALSE | CG24: FALSE | CH24: FALSE | CI24: FALSE | CJ24: FALSE | CK24: FALSE | CL24: FALSE | CM24: FALSE | CN24: FALSE | CO24: FALSE | CP24: FALSE | CQ24: FALSE | CR24: FALSE | CS24: FALSE | CT24: FALSE | CU24: FALSE | CV24: FALSE | CW24: TRUE | CX24: TRUE | CY24: TRUE | CZ24: TRUE | DA24: TRUE | DB24: TRUE | DC24: TRUE | DD24: TRUE | DE24: FALSE | DF24: FALSE | DG24: FALSE | DH24: FALSE | DI24: FALSE | DJ24: FALSE | DK24: FALSE | DL24: FALSE | DM24: FALSE | DN24: FALSE | DO24: FALSE | DP24: FALSE | DQ24: FALSE | DR24: FALSE | DS24: FALSE | DT24: FALSE | DU24: FALSE | DV24: FALSE | DW24: FALSE | DX24: FALSE | DY24: FALSE | DZ24: FALSE | EA24: FALSE | EB24: FALSE | EC24: FALSE | ED24: FALSE | EE24: FALSE | EF24: FALSE | EG24: FALSE | EH24: FALSE | EI24: FALSE | EJ24: FALSE | EK24: FALSE | EL24: FALSE | EM24: FALSE | EN24: FALSE | EO24: FALSE | EP24: FALSE | EQ24: FALSE | ER24: FALSE | ES24: FALSE | ET24: FALSE | EU24: FALSE | EV24: FALSE
A25: Strahlen im Bereich ICCP Anoden | B25: Korr. UAN | C25: 2025-09-22 | D25: 2025-09-22 | E25: I. | F25: II. | G25: 0.1458333333 | H25: 3-4h | CA25: 06:00:00 | CB25: 06:00:00 | CC25: TRUE | CD25: TRUE | CE25: FALSE | CF25: FALSE | CG25: FALSE | CH25: FALSE | CI25: FALSE | CJ25: FALSE | CK25: FALSE | CL25: FALSE | CM25: FALSE | CN25: FALSE | CO25: FALSE | CP25: FALSE | CQ25: FALSE | CR25: FALSE | CS25: TRUE | CT25: TRUE | CU25: FALSE | CV25: FALSE | CW25: FALSE | CX25: FALSE | CY25: FALSE | CZ25: FALSE | DA25: FALSE | DB25: FALSE | DC25: FALSE | DD25: FALSE | DE25: FALSE | DF25: FALSE | DG25: FALSE | DH25: FALSE | DI25: FALSE | DJ25: FALSE | DK25: FALSE | DL25: FALSE | DM25: FALSE | DN25: FALSE | DO25: FALSE | DP25: FALSE | DQ25: FALSE | DR25: FALSE | DS25: FALSE | DT25: FALSE | DU25: FALSE | DV25: FALSE | DW25: FALSE | DX25: FALSE | DY25: FALSE | DZ25: FALSE | EA25: FALSE | EB25: FALSE | EC25: FALSE | ED25: FALSE | EE25: FALSE | EF25: FALSE | EG25: FALSE | EH25: FALSE | EI25: FALSE | EJ25: FALSE | EK25: FALSE | EL25: FALSE | EM25: FALSE | EN25: FALSE | EO25: FALSE | EP25: FALSE | EQ25: FALSE | ER25: FALSE | ES25: FALSE | ET25: FALSE | EU25: FALSE | EV25: FALSE
A26: Zeitfenster Arbeiten an ICCP Anlage in Beisein Cathelco | B26: TA / Cathleco | C26: 2025-09-30 | D26: 2025-09-30 | E26: I. | F26: II. | G26: 1.25 | H26: 30h+? | CA26: 06:00:00 | CB26: 06:00:00 | CC26: TRUE | CD26: TRUE | CE26: FALSE | CF26: FALSE | CG26: FALSE | CH26: FALSE | CI26: FALSE | CJ26: FALSE | CK26: FALSE | CL26: FALSE | CM26: FALSE | CN26: FALSE | CO26: FALSE | CP26: FALSE | CQ26: FALSE | CR26: FALSE | CS26: FALSE | CT26: FALSE | CU26: FALSE | CV26: FALSE | CW26: FALSE | CX26: FALSE | CY26: FALSE | CZ26: FALSE | DA26: FALSE | DB26: FALSE | DC26: FALSE | DD26: FALSE | DE26: FALSE | DF26: FALSE | DG26: FALSE | DH26: FALSE | DI26: FALSE | DJ26: FALSE | DK26: FALSE | DL26: FALSE | DM26: FALSE | DN26: FALSE | DO26: FALSE | DP26: FALSE | DQ26: FALSE | DR26: FALSE | DS26: FALSE | DT26: FALSE | DU26: FALSE | DV26: FALSE | DW26: FALSE | DX26: FALSE | DY26: FALSE | DZ26: FALSE | EA26: FALSE | EB26: FALSE | EC26: FALSE | ED26: FALSE | EE26: FALSE | EF26: FALSE | EG26: FALSE | EH26: FALSE | EI26: FALSE | EJ26: FALSE | EK26: FALSE | EL26: FALSE | EM26: FALSE | EN26: FALSE | EO26: FALSE | EP26: FALSE | EQ26: FALSE | ER26: FALSE | ES26: FALSE | ET26: FALSE | EU26: FALSE | EV26: FALSE
A27: Zeitfenster BeschichtungUW Schiff (ICCP Anlage inkl. Anspachteln) | B27: Korr. UAN | C27: 2025-09-25 | D27: 2025-09-27 | E27: I. | F27: II. | G27: =4*11/24 -> 1.833333333 | H27: 4 Tage | BW27: =IF(WEEKDAY(BW$6,2)>6,"So","") ->  | BY27: So | BZ27: So | CA27: 06:00:00 | CB27: 06:00:00 | CC27: TRUE | CD27: TRUE | CE27: FALSE | CF27: FALSE | CG27: FALSE | CH27: FALSE | CI27: FALSE | CJ27: FALSE | CK27: FALSE | CL27: FALSE | CM27: FALSE | CN27: FALSE | CO27: FALSE | CP27: FALSE | CQ27: FALSE | CR27: FALSE | CS27: FALSE | CT27: FALSE | CU27: FALSE | CV27: FALSE | CW27: FALSE | CX27: FALSE | CY27: TRUE | CZ27: TRUE | DA27: TRUE | DB27: TRUE | DC27: TRUE | DD27: TRUE | DE27: FALSE | DF27: FALSE | DG27: FALSE | DH27: FALSE | DI27: FALSE | DJ27: FALSE | DK27: FALSE | DL27: FALSE | DM27: FALSE | DN27: FALSE | DO27: FALSE | DP27: FALSE | DQ27: FALSE | DR27: FALSE | DS27: FALSE | DT27: FALSE | DU27: FALSE | DV27: FALSE | DW27: FALSE | DX27: FALSE | DY27: FALSE | DZ27: FALSE | EA27: FALSE | EB27: FALSE | EC27: FALSE | ED27: FALSE | EE27: FALSE | EF27: FALSE | EG27: FALSE | EH27: FALSE | EI27: FALSE | EJ27: FALSE | EK27: FALSE | EL27: FALSE | EM27: FALSE | EN27: FALSE | EO27: FALSE | EP27: FALSE | EQ27: FALSE | ER27: FALSE | ES27: FALSE | ET27: FALSE | EU27: FALSE | EV27: FALSE
A28: Zeitfenster Beschichtung Decksbereiche | B28: Korr. UAN | C28: 2025-09-26 | D28: 2025-09-26 | E28: I. | F28: II. | G28: 0.4583333333 | H28: 1 Tag | BY28: So | BZ28: So | CA28: 06:00:00 | CB28: 06:00:00 | CC28: TRUE | CD28: TRUE | CE28: FALSE | CF28: FALSE | CG28: FALSE | CH28: FALSE | CI28: FALSE | CJ28: FALSE | CK28: FALSE | CL28: FALSE | CM28: FALSE | CN28: FALSE | CO28: FALSE | CP28: FALSE | CQ28: FALSE | CR28: FALSE | CS28: FALSE | CT28: FALSE | CU28: FALSE | CV28: FALSE | CW28: FALSE | CX28: FALSE | CY28: FALSE | CZ28: FALSE | DA28: TRUE | DB28: TRUE | DC28: FALSE | DD28: FALSE | DE28: FALSE | DF28: FALSE | DG28: FALSE | DH28: FALSE | DI28: FALSE | DJ28: FALSE | DK28: FALSE | DL28: FALSE | DM28: FALSE | DN28: FALSE | DO28: FALSE | DP28: FALSE | DQ28: FALSE | DR28: FALSE | DS28: FALSE | DT28: FALSE | DU28: FALSE | DV28: FALSE | DW28: FALSE | DX28: FALSE | DY28: FALSE | DZ28: FALSE | EA28: FALSE | EB28: FALSE | EC28: FALSE | ED28: FALSE | EE28: FALSE | EF28: FALSE | EG28: FALSE | EH28: FALSE | EI28: FALSE | EJ28: FALSE | EK28: FALSE | EL28: FALSE | EM28: FALSE | EN28: FALSE | EO28: FALSE | EP28: FALSE | EQ28: FALSE | ER28: FALSE | ES28: FALSE | ET28: FALSE | EU28: FALSE | EV28: FALSE
A29: Abnahmen und Nacharbeiten | B29: TQ/PW/Zoll | C29: 2025-09-30 | D29: 2025-09-30 | E29: I. | G29: 0.4583333333 | H29: 1 Tag | CA29: 06:00:00 | CC29: TRUE | CD29: FALSE | CE29: FALSE | CF29: FALSE | CG29: FALSE | CH29: FALSE | CI29: FALSE | CJ29: FALSE | CK29: FALSE | CL29: FALSE | CM29: FALSE | CN29: FALSE | CO29: FALSE | CP29: FALSE | CQ29: FALSE | CR29: FALSE | CS29: FALSE | CT29: FALSE | CU29: FALSE | CV29: FALSE | CW29: FALSE | CX29: FALSE | CY29: FALSE | CZ29: FALSE | DA29: FALSE | DB29: FALSE | DC29: FALSE | DD29: FALSE | DE29: FALSE | DF29: FALSE | DG29: FALSE | DH29: FALSE | DI29: FALSE | DJ29: FALSE | DK29: FALSE | DL29: FALSE | DM29: FALSE | DN29: FALSE | DO29: FALSE | DP29: FALSE | DQ29: FALSE | DR29: FALSE | DS29: FALSE | DT29: FALSE | DU29: FALSE | DV29: FALSE | DW29: FALSE | DX29: FALSE | DY29: FALSE | DZ29: FALSE | EA29: FALSE | EB29: FALSE | EC29: FALSE | ED29: FALSE | EE29: FALSE | EF29: FALSE | EG29: FALSE | EH29: FALSE | EI29: FALSE | EJ29: FALSE | EK29: FALSE | EL29: FALSE | EM29: FALSE | EN29: FALSE | EO29: FALSE | EP29: FALSE | EQ29: FALSE | ER29: FALSE | ES29: FALSE | ET29: FALSE | EU29: FALSE | EV29: FALSE
A30: Rückbau temporäre SW-Versorgung und Abrüsten | B30: TA/TI / Schubeck | C30: 2025-09-30 | D30: 2025-09-30 | F30: II. | G30: 0.1666666667 | H30: 4h | CB30: 06:00:00 | CC30: FALSE | CD30: TRUE | CE30: FALSE | CF30: FALSE | CG30: FALSE | CH30: FALSE | CI30: FALSE | CJ30: FALSE | CK30: FALSE | CL30: FALSE | CM30: FALSE | CN30: FALSE | CO30: FALSE | CP30: FALSE | CQ30: FALSE | CR30: FALSE | CS30: FALSE | CT30: FALSE | CU30: FALSE | CV30: FALSE | CW30: FALSE | CX30: FALSE | CY30: FALSE | CZ30: FALSE | DA30: FALSE | DB30: FALSE | DC30: FALSE | DD30: FALSE | DE30: FALSE | DF30: FALSE | DG30: FALSE | DH30: FALSE | DI30: FALSE | DJ30: FALSE | DK30: FALSE | DL30: FALSE | DM30: FALSE | DN30: FALSE | DO30: FALSE | DP30: FALSE | DQ30: FALSE | DR30: FALSE | DS30: FALSE | DT30: FALSE | DU30: FALSE | DV30: FALSE | DW30: FALSE | DX30: FALSE | DY30: FALSE | DZ30: FALSE | EA30: FALSE | EB30: FALSE | EC30: FALSE | ED30: FALSE | EE30: FALSE | EF30: FALSE | EG30: FALSE | EH30: FALSE | EI30: FALSE | EJ30: FALSE | EK30: FALSE | EL30: FALSE | EM30: FALSE | EN30: FALSE | EO30: FALSE | EP30: FALSE | EQ30: FALSE | ER30: FALSE | ES30: FALSE | ET30: FALSE | EU30: FALSE | EV30: FALSE
A31: Absenken und Verholen Kai III oder IV und Herstellen Landanschluss | B31: TI/ Zoll | C31: 2025-10-01 | D31: 2025-10-01 | E31: I. | G31: 0.1666666667 | H31: 4h | CA31: 06:00:00 | CC31: TRUE | CD31: FALSE | CE31: FALSE | CF31: FALSE | CG31: FALSE | CH31: FALSE | CI31: FALSE | CJ31: FALSE | CK31: FALSE | CL31: FALSE | CM31: FALSE | CN31: FALSE | CO31: FALSE | CP31: FALSE | CQ31: FALSE | CR31: FALSE | CS31: FALSE | CT31: FALSE | CU31: FALSE | CV31: FALSE | CW31: FALSE | CX31: FALSE | CY31: FALSE | CZ31: FALSE | DA31: FALSE | DB31: FALSE | DC31: FALSE | DD31: FALSE | DE31: FALSE | DF31: FALSE | DG31: FALSE | DH31: FALSE | DI31: FALSE | DJ31: FALSE | DK31: FALSE | DL31: FALSE | DM31: FALSE | DN31: FALSE | DO31: FALSE | DP31: FALSE | DQ31: FALSE | DR31: FALSE | DS31: FALSE | DT31: FALSE | DU31: FALSE | DV31: FALSE | DW31: FALSE | DX31: FALSE | DY31: FALSE | DZ31: FALSE | EA31: FALSE | EB31: FALSE | EC31: FALSE | ED31: FALSE | EE31: FALSE | EF31: FALSE | EG31: FALSE | EH31: FALSE | EI31: FALSE | EJ31: FALSE | EK31: FALSE | EL31: FALSE | EM31: FALSE | EN31: FALSE | EO31: FALSE | EP31: FALSE | EQ31: FALSE | ER31: FALSE | ES31: FALSE | ET31: FALSE | EU31: FALSE | EV31: FALSE
A32: Wiederinbetriebnahme Systeme | B32: TI/Zoll | C32: 2025-10-01 | D32: 2025-10-01 | E32: I. | F32: II. | G32: 0.04166666667 | H32: 1h | CA32: 06:00:00 | CB32: 06:00:00 | CC32: TRUE | CD32: TRUE | CE32: FALSE | CF32: FALSE | CG32: FALSE | CH32: FALSE | CI32: FALSE | CJ32: FALSE | CK32: FALSE | CL32: FALSE | CM32: FALSE | CN32: FALSE | CO32: FALSE | CP32: FALSE | CQ32: FALSE | CR32: FALSE | CS32: FALSE | CT32: FALSE | CU32: FALSE | CV32: FALSE | CW32: FALSE | CX32: FALSE | CY32: FALSE | CZ32: FALSE | DA32: FALSE | DB32: FALSE | DC32: FALSE | DD32: FALSE | DE32: FALSE | DF32: FALSE | DG32: FALSE | DH32: FALSE | DI32: FALSE | DJ32: FALSE | DK32: FALSE | DL32: FALSE | DM32: FALSE | DN32: FALSE | DO32: FALSE | DP32: FALSE | DQ32: FALSE | DR32: FALSE | DS32: FALSE | DT32: FALSE | DU32: FALSE | DV32: FALSE | DW32: FALSE | DX32: FALSE | DY32: FALSE | DZ32: FALSE | EA32: FALSE | EB32: FALSE | EC32: FALSE | ED32: FALSE | EE32: FALSE | EF32: FALSE | EG32: FALSE | EH32: FALSE | EI32: FALSE | EJ32: FALSE | EK32: FALSE | EL32: FALSE | EM32: FALSE | EN32: FALSE | EO32: FALSE | EP32: FALSE | EQ32: FALSE | ER32: FALSE | ES32: FALSE | ET32: FALSE | EU32: FALSE | EV32: FALSE
A33: Abfahrt ZS "Fehmarn" | B33: Zoll | C33: 2025-10-02 | D33: 2025-10-02 | F33: II. | CB33: 06:00:00 | CC33: FALSE | CD33: TRUE | CE33: FALSE | CF33: FALSE | CG33: FALSE | CH33: FALSE | CI33: FALSE | CJ33: FALSE | CK33: FALSE | CL33: FALSE | CM33: FALSE | CN33: FALSE | CO33: FALSE | CP33: FALSE | CQ33: FALSE | CR33: FALSE | CS33: FALSE | CT33: FALSE | CU33: FALSE | CV33: FALSE | CW33: FALSE | CX33: FALSE | CY33: FALSE | CZ33: FALSE | DA33: FALSE | DB33: FALSE | DC33: FALSE | DD33: FALSE | DE33: FALSE | DF33: FALSE | DG33: FALSE | DH33: FALSE | DI33: FALSE | DJ33: FALSE | DK33: FALSE | DL33: FALSE | DM33: FALSE | DN33: FALSE | DO33: FALSE | DP33: FALSE | DQ33: FALSE | DR33: FALSE | DS33: FALSE | DT33: FALSE | DU33: FALSE | DV33: FALSE | DW33: FALSE | DX33: FALSE | DY33: FALSE | DZ33: FALSE | EA33: FALSE | EB33: FALSE | EC33: FALSE | ED33: FALSE | EE33: FALSE | EF33: FALSE | EG33: FALSE | EH33: FALSE | EI33: FALSE | EJ33: FALSE | EK33: FALSE | EL33: FALSE | EM33: FALSE | EN33: FALSE | EO33: FALSE | EP33: FALSE | EQ33: FALSE | ER33: FALSE | ES33: FALSE | ET33: FALSE | EU33: FALSE | EV33: FALSE
CC34: FALSE | CD34: FALSE | CE34: FALSE | CF34: FALSE | CG34: FALSE | CH34: FALSE | CI34: FALSE | CJ34: FALSE | CK34: FALSE | CL34: FALSE | CM34: FALSE | CN34: FALSE | CO34: FALSE | CP34: FALSE | CQ34: FALSE | CR34: FALSE | CS34: FALSE | CT34: FALSE | CU34: FALSE | CV34: FALSE | CW34: FALSE | CX34: FALSE | CY34: FALSE | CZ34: FALSE | DA34: FALSE | DB34: FALSE | DC34: FALSE | DD34: FALSE | DE34: FALSE | DF34: FALSE | DG34: FALSE | DH34: FALSE | DI34: FALSE | DJ34: FALSE | DK34: FALSE | DL34: FALSE | DM34: FALSE | DN34: FALSE | DO34: FALSE | DP34: FALSE | DQ34: FALSE | DR34: FALSE | DS34: FALSE | DT34: FALSE | DU34: FALSE | DV34: FALSE | DW34: FALSE | DX34: FALSE | DY34: FALSE | DZ34: FALSE | EA34: FALSE | EB34: FALSE | EC34: FALSE | ED34: FALSE | EE34: FALSE | EF34: FALSE | EG34: FALSE | EH34: FALSE | EI34: FALSE | EJ34: FALSE | EK34: FALSE | EL34: FALSE | EM34: FALSE | EN34: FALSE | EO34: FALSE | EP34: FALSE | EQ34: FALSE | ER34: FALSE | ES34: FALSE | ET34: FALSE | EU34: FALSE | EV34: FALSE
A35: =IFERROR(VLOOKUP(A6,Feiertage!$F$12:$F$52,1,FALSE),"") ->  | B35: =IFERROR(VLOOKUP(B6,Feiertage!$F$12:$F$52,1,FALSE),"") ->  | C35: =IFERROR(VLOOKUP(C6,Feiertage!$F$12:$F$52,1,FALSE),"") ->  | D35: =IFERROR(VLOOKUP(D6,Feiertage!$F$12:$F$52,1,FALSE),"") ->  | G35: =SUM(G13:G34) -> 12.79166667 | I35: =IFERROR(VLOOKUP(I6,Feiertage!$F$12:$F$52,1,FALSE),"") ->  | J35: =IFERROR(VLOOKUP(J6,Feiertage!$F$12:$F$52,1,FALSE),"") ->  | K35: =IFERROR(VLOOKUP(K6,Feiertage!$F$12:$F$52,1,FALSE),"") ->  | L35: =IFERROR(VLOOKUP(L6,Feiertage!$F$12:$F$52,1,FALSE),"") ->  | M35: =IFERROR(VLOOKUP(M6,Feiertage!$F$12:$F$52,1,FALSE),"") ->  | N35: =IFERROR(VLOOKUP(N6,Feiertage!$F$12:$F$52,1,FALSE),"") ->  | O35: =IFERROR(VLOOKUP(O6,Feiertage!$F$12:$F$52,1,FALSE),"") ->  | P35: =IFERROR(VLOOKUP(P6,Feiertage!$F$12:$F$52,1,FALSE),"") ->  | Q35: =IFERROR(VLOOKUP(Q6,Feiertage!$F$12:$F$52,1,FALSE),"") ->  | R35: =IFERROR(VLOOKUP(R6,Feiertage!$F$12:$F$52,1,FALSE),"") ->  | S35: =IFERROR(VLOOKUP(S6,Feiertage!$F$12:$F$52,1,FALSE),"") ->  | T35: =IFERROR(VLOOKUP(T6,Feiertage!$F$12:$F$52,1,FALSE),"") ->  | U35: =IFERROR(VLOOKUP(U6,Feiertage!$F$12:$F$52,1,FALSE),"") ->  | V35: =IFERROR(VLOOKUP(V6,Feiertage!$F$12:$F$52,1,FALSE),"") ->  | W35: =IFERROR(VLOOKUP(W6,Feiertage!$F$12:$F$52,1,FALSE),"") ->  | X35: =IFERROR(VLOOKUP(X6,Feiertage!$F$12:$F$52,1,FALSE),"") ->  | Y35: =IFERROR(VLOOKUP(Y6,Feiertage!$F$12:$F$52,1,FALSE),"") ->  | Z35: =IFERROR(VLOOKUP(Z6,Feiertage!$F$12:$F$52,1,FALSE),"") ->  | AA35: =IFERROR(VLOOKUP(AA6,Feiertage!$F$12:$F$52,1,FALSE),"") ->  | AB35: =IFERROR(VLOOKUP(AB6,Feiertage!$F$12:$F$52,1,FALSE),"") ->  | AC35: =IFERROR(VLOOKUP(AC6,Feiertage!$F$12:$F$52,1,FALSE),"") ->  | AD35: =IFERROR(VLOOKUP(AD6,Feiertage!$F$12:$F$52,1,FALSE),"") ->  | AE35: =IFERROR(VLOOKUP(AE6,Feiertage!$F$12:$F$52,1,FALSE),"") ->  | AF35: =IFERROR(VLOOKUP(AF6,Feiertage!$F$12:$F$52,1,FALSE),"") ->  | AG35: =IFERROR(VLOOKUP(AG6,Feiertage!$F$12:$F$52,1,FALSE),"") ->  | AH35: =IFERROR(VLOOKUP(AH6,Feiertage!$F$12:$F$52,1,FALSE),"") ->  | AI35: =IFERROR(VLOOKUP(AI6,Feiertage!$F$12:$F$52,1,FALSE),"") ->  | AJ35: =IFERROR(VLOOKUP(AJ6,Feiertage!$F$12:$F$52,1,FALSE),"") ->  | AK35: =IFERROR(VLOOKUP(AK6,Feiertage!$F$12:$F$52,1,FALSE),"") ->  | AL35: =IFERROR(VLOOKUP(AL6,Feiertage!$F$12:$F$52,1,FALSE),"") ->  | AM35: =IFERROR(VLOOKUP(AM6,Feiertage!$F$12:$F$52,1,FALSE),"") ->  | AN35: =IFERROR(VLOOKUP(AN6,Feiertage!$F$12:$F$52,1,FALSE),"") ->  | AO35: =IFERROR(VLOOKUP(AO6,Feiertage!$F$12:$F$52,1,FALSE),"") ->  | AP35: =IFERROR(VLOOKUP(AP6,Feiertage!$F$12:$F$52,1,FALSE),"") ->  | AQ35: =IFERROR(VLOOKUP(AQ6,Feiertage!$F$12:$F$52,1,FALSE),"") ->  | AR35: =IFERROR(VLOOKUP(AR6,Feiertage!$F$12:$F$52,1,FALSE),"") ->  | AS35: =IFERROR(VLOOKUP(AS6,Feiertage!$F$12:$F$52,1,FALSE),"") -> 2025-10-03 | AT35: =IFERROR(VLOOKUP(AT6,Feiertage!$F$12:$F$52,1,FALSE),"") -> 2025-10-03 | AU35: =IFERROR(VLOOKUP(AU6,Feiertage!$F$12:$F$52,1,FALSE),"") ->  | AV35: =IFERROR(VLOOKUP(AV6,Feiertage!$F$12:$F$52,1,FALSE),"") ->  | AW35: =IFERROR(VLOOKUP(AW6,Feiertage!$F$12:$F$52,1,FALSE),"") ->  | AX35: =IFERROR(VLOOKUP(AX6,Feiertage!$F$12:$F$52,1,FALSE),"") ->  | AY35: =IFERROR(VLOOKUP(AY6,Feiertage!$F$12:$F$52,1,FALSE),"") ->  | AZ35: =IFERROR(VLOOKUP(AZ6,Feiertage!$F$12:$F$52,1,FALSE),"") ->  | BA35: =IFERROR(VLOOKUP(BA6,Feiertage!$F$12:$F$52,1,FALSE),"") ->  | BB35: =IFERROR(VLOOKUP(BB6,Feiertage!$F$12:$F$52,1,FALSE),"") ->  | BC35: =IFERROR(VLOOKUP(BC6,Feiertage!$F$12:$F$52,1,FALSE),"") ->  | BD35: =IFERROR(VLOOKUP(BD6,Feiertage!$F$12:$F$52,1,FALSE),"") ->  | BE35: =IFERROR(VLOOKUP(BE6,Feiertage!$F$12:$F$52,1,FALSE),"") ->  | BF35: =IFERROR(VLOOKUP(BF6,Feiertage!$F$12:$F$52,1,FALSE),"") ->  | BG35: =IFERROR(VLOOKUP(BG6,Feiertage!$F$12:$F$52,1,FALSE),"") ->  | BH35: =IFERROR(VLOOKUP(BH6,Feiertage!$F$12:$F$52,1,FALSE),"") ->  | BI35: =IFERROR(VLOOKUP(BI6,Feiertage!$F$12:$F$52,1,FALSE),"") ->  | BJ35: =IFERROR(VLOOKUP(BJ6,Feiertage!$F$12:$F$52,1,FALSE),"") ->  | BK35: =IFERROR(VLOOKUP(BK6,Feiertage!$F$12:$F$52,1,FALSE),"") ->  | BL35: =IFERROR(VLOOKUP(BL6,Feiertage!$F$12:$F$52,1,FALSE),"") ->  | BM35: =IFERROR(VLOOKUP(BM6,Feiertage!$F$12:$F$52,1,FALSE),"") ->  | BN35: =IFERROR(VLOOKUP(BN6,Feiertage!$F$12:$F$52,1,FALSE),"") ->  | BO35: =IFERROR(VLOOKUP(BO6,Feiertage!$F$12:$F$52,1,FALSE),"") ->  | BP35: =IFERROR(VLOOKUP(BP6,Feiertage!$F$12:$F$52,1,FALSE),"") ->  | BQ35: =IFERROR(VLOOKUP(BQ6,Feiertage!$F$12:$F$52,1,FALSE),"") ->  | BR35: =IFERROR(VLOOKUP(BR6,Feiertage!$F$12:$F$52,1,FALSE),"") ->  | BS35: =IFERROR(VLOOKUP(BS6,Feiertage!$F$12:$F$52,1,FALSE),"") ->  | BT35: =IFERROR(VLOOKUP(BT6,Feiertage!$F$12:$F$52,1,FALSE),"") ->  | BU35: =IFERROR(VLOOKUP(BU6,Feiertage!$F$12:$F$52,1,FALSE),"") ->  | BV35: =IFERROR(VLOOKUP(BV6,Feiertage!$F$12:$F$52,1,FALSE),"") ->  | BW35: =IFERROR(VLOOKUP(BW6,Feiertage!$F$12:$F$52,1,FALSE),"") ->  | BX35: =IFERROR(VLOOKUP(BX6,Feiertage!$F$12:$F$52,1,FALSE),"") ->  | BY35: =IFERROR(VLOOKUP(BY6,Feiertage!$F$12:$F$52,1,FALSE),"") ->  | BZ35: =IFERROR(VLOOKUP(BZ6,Feiertage!$F$12:$F$52,1,FALSE),"") ->  | CA35: =SUM(CA13:CA34) -> 4.5 | CB35: =SUM(CB13:CB34) -> 3.25 | CC35: =SUM(CA35:CB35) -> 7.75
A36: Transport | D36: =DATEDIF(C13-1,D33,"d")&" Tage" -> 18 Tage | G36: =ROUND(G35/E50,0)&" Tage" -> 26 Tage | J36: Farben nicht kopieren, da die Zellen Bedingte Formatierenungen enthalten! Also einzeln einfügen!
A37: Gerüstbau / Instandhaltung | K37: Wählen Sie Start > den Pfeil Füllfarbe | Y37: Farben nicht kopieren, da die Zellen Bedingte Formatierenungen enthalten! Also einzeln einfügen! | AL37: Farben nicht kopieren, da die Zellen Bedingte Formatierenungen enthalten! Also einzeln einfügen! | AZ37: Farben nicht kopieren, da die Zellen Bedingte Formatierenungen enthalten! Also einzeln einfügen!
A38: Korr. UAN | B38: Auto | C38: =SUMIF(B13:B33,A38,G13:G33) -> 4.395833333
A39: UAN und PW Fertigung | S39: =C38/E50 -> 8.791666667
A40: Inbetriebnahme
A41: Überführung
A42: Samstag | B42: Auto
A43: Sonntag | B43: Auto
A44: hellgelb ausfüllen
A45: weiß ausfüllen
A46: Feierttage | B46: Auto
A48: Arbeitszeiträume: I: 06:00 - 12:00 | B48: 06:00:00 | C48: 12:00:00 | D48: 00:00:00 | E48: =MAX(IF(B48<=C48,C48-B48,"24:00"-B48+C48)-D48,0) -> 0.25
A49: Arbeitszeiträume: II: 12:00 - 18:00) | B49: 06:00:00 | C49: 12:00:00 | D49: 00:00:00 | E49: =MAX(IF(B49<=C49,C49-B49,"24:00"-B49+C49)-D49,0) -> 0.25
E50: =SUM(E48:E49) -> 0.5 | F50: Nach Arbeitszeitgesetz Verboten
D52: Für Schulungszwecke | I52: Für Schulungszwecke | M52: Für Schulungszwecke | P52: Für Schulungszwecke | S52: Für Schulungszwecke | V52: Für Schulungszwecke | Z52: Für Schulungszwecke | AC52: Für Schulungszwecke | AH52: Für Schulungszwecke | AK52: Für Schulungszwecke | AN52: Für Schulungszwecke | AQ52: Für Schulungszwecke | AT52: Für Schulungszwecke | AW52: Für Schulungszwecke | AZ52: Für Schulungszwecke | BD52: Für Schulungszwecke | BG52: Für Schulungszwecke | BJ52: Für Schulungszwecke | BM52: Für Schulungszwecke | BP52: Für Schulungszwecke | BS52: Für Schulungszwecke | BV52: Für Schulungszwecke | BZ52: Für Schulungszwecke
C53: 1 | D53: =B13 -> Zoll | I53: =AND($B13=$A$38,I$6>=$C13,I$6<=$D13) -> FALSE | J53: FALSE | K53: FALSE | L53: FALSE | M53: FALSE | N53: FALSE | O53: FALSE | P53: FALSE | Q53: FALSE | R53: FALSE | S53: FALSE | T53: FALSE | U53: FALSE | V53: FALSE | W53: FALSE | X53: FALSE | Y53: FALSE | Z53: FALSE | AA53: FALSE | AB53: FALSE | AC53: FALSE | AD53: FALSE | AE53: FALSE | AF53: FALSE | AG53: FALSE | AH53: FALSE | AI53: FALSE | AJ53: FALSE | AK53: FALSE | AL53: FALSE | AM53: FALSE | AN53: FALSE | AO53: FALSE | AP53: FALSE | AQ53: FALSE | AR53: FALSE | AS53: FALSE | AT53: FALSE | AU53: FALSE | AV53: FALSE | AW53: FALSE | AX53: FALSE | AY53: FALSE | AZ53: FALSE | BA53: FALSE | BB53: FALSE | BC53: FALSE | BD53: FALSE | BE53: FALSE | BF53: FALSE | BG53: FALSE | BH53: FALSE | BI53: FALSE | BJ53: FALSE | BK53: FALSE | BL53: FALSE | BM53: FALSE | BN53: FALSE | BO53: FALSE | BP53: FALSE | BQ53: FALSE | BR53: FALSE | BS53: FALSE | BT53: FALSE | BU53: FALSE | BV53: =AND($B13=$A$38,BV$6>=$C13,BV$6<=$D13) -> FALSE | BW53: FALSE | BX53: FALSE | BY53: FALSE | BZ53: FALSE
C54: 2 | D54: =B14 -> TI/Zoll
C55: 3 | D55: PW/UAN
C56: 4 | D56: TI
C57: 5 | D57: TI/Zoll
C58: 6 | D58: TI/Zoll
C59: 7 | D59: Icke
C60: 8 | D60: TA/ TI
C61: 9 | D61: Korr. UAN
C62: 10 | D62: TQ/Zoll/UAN
C63: 11 | D63: PW/UAN
C64: 12 | D64: Korr. UAN
C65: 13 | D65: Korr. UAN
C66: 14 | D66: TA / Cathleco
C67: 15 | D67: Korr. UAN
C68: 16 | D68: Korr. UAN
C69: 17 | D69: TQ/PW/Zoll
C70: 18 | D70: TA/TI / Schubeck
C71: 19 | D71: TI/ Zoll
C72: 20 | D72: TI/Zoll
C73: 21 | D73: Zoll
C74: 22 | D74: 0
B76: Eindeutige Liste | C76: Eindeutige Liste | D76: Eindeutige Liste
A77: =B13 -> Zoll | B77: =_xlfn.UNIQUE(_xlfn._xlws.FILTER(A77:A110,A77:A110<>"")) -> Zoll | C77: =VLOOKUP(B77,B13:D34,2,FALSE) -> 2025-09-15 | D77: =VLOOKUP(B77,B13:D34,3,FALSE) -> 2025-09-16 | I77: =AND($B77=$B77,I$6>=$C77,I$6<=$D77) -> TRUE | J77: =AND($B77=$B77,J$6>=$C77,J$6<=$D77) -> TRUE | K77: TRUE | L77: TRUE | M77: FALSE | N77: FALSE | O77: FALSE | P77: FALSE | Q77: FALSE | R77: FALSE | S77: FALSE | T77: FALSE | U77: FALSE | V77: FALSE | W77: FALSE | X77: FALSE | Y77: FALSE | Z77: FALSE | AA77: FALSE | AB77: FALSE | AC77: FALSE | AD77: FALSE | AE77: FALSE | AF77: FALSE | AG77: FALSE | AH77: FALSE | AI77: FALSE | AJ77: FALSE | AK77: FALSE | AL77: FALSE | AM77: FALSE | AN77: FALSE | AO77: FALSE | AP77: FALSE | AQ77: FALSE | AR77: FALSE | AS77: FALSE | AT77: FALSE | AU77: FALSE | AV77: FALSE | AW77: FALSE | AX77: FALSE | AY77: FALSE | AZ77: FALSE | BA77: FALSE | BB77: FALSE | BC77: FALSE | BD77: FALSE | BE77: FALSE | BF77: FALSE | BG77: FALSE | BH77: FALSE | BI77: FALSE | BJ77: FALSE | BK77: FALSE | BL77: FALSE | BM77: FALSE | BN77: FALSE | BO77: FALSE | BP77: FALSE | BQ77: FALSE | BR77: FALSE | BS77: FALSE | BT77: FALSE | BU77: FALSE | BV77: =AND($B77=$B77,BV$6>=$C77,BV$6<=$D77) -> FALSE | BW77: FALSE | BX77: FALSE | BY77: FALSE | BZ77: FALSE
A78: TI/Zoll | B78: TI/Zoll | C78: 2025-09-16 | D78: 2025-09-16 | I78: =AND($B78=$B78,I$6>=$C78,I$6<=$D78) -> FALSE | J78: FALSE | K78: TRUE | L78: TRUE | M78: FALSE | N78: FALSE | O78: FALSE | P78: FALSE | Q78: FALSE | R78: FALSE | S78: FALSE | T78: FALSE | U78: FALSE | V78: FALSE | W78: FALSE | X78: FALSE | Y78: FALSE | Z78: FALSE | AA78: FALSE | AB78: FALSE | AC78: FALSE | AD78: FALSE | AE78: FALSE | AF78: FALSE | AG78: FALSE | AH78: FALSE | AI78: FALSE | AJ78: FALSE | AK78: FALSE | AL78: FALSE | AM78: FALSE | AN78: FALSE | AO78: FALSE | AP78: FALSE | AQ78: FALSE | AR78: FALSE | AS78: FALSE | AT78: FALSE | AU78: FALSE | AV78: FALSE | AW78: FALSE | AX78: FALSE | AY78: FALSE | AZ78: FALSE | BA78: FALSE | BB78: FALSE | BC78: FALSE | BD78: FALSE | BE78: FALSE | BF78: FALSE | BG78: FALSE | BH78: FALSE | BI78: FALSE | BJ78: FALSE | BK78: FALSE | BL78: FALSE | BM78: FALSE | BN78: FALSE | BO78: FALSE | BP78: FALSE | BQ78: FALSE | BR78: FALSE | BS78: FALSE | BT78: FALSE | BU78: FALSE | BV78: FALSE | BW78: FALSE | BX78: FALSE | BY78: FALSE | BZ78: FALSE
A79: PW/UAN | B79: PW/UAN | C79: 2025-09-17 | D79: 2025-09-18 | I79: FALSE | J79: =AND($B79=$B79,J$6>=$C79,J$6<=$D79) -> FALSE | K79: FALSE | L79: FALSE | M79: TRUE | N79: TRUE | O79: TRUE | P79: TRUE | Q79: FALSE | R79: FALSE | S79: FALSE | T79: FALSE | U79: FALSE | V79: FALSE | W79: FALSE | X79: FALSE | Y79: FALSE | Z79: FALSE | AA79: FALSE | AB79: FALSE | AC79: FALSE | AD79: FALSE | AE79: FALSE | AF79: FALSE | AG79: FALSE | AH79: FALSE | AI79: FALSE | AJ79: FALSE | AK79: FALSE | AL79: FALSE | AM79: FALSE | AN79: FALSE | AO79: FALSE | AP79: FALSE | AQ79: FALSE | AR79: FALSE | AS79: FALSE | AT79: FALSE | AU79: FALSE | AV79: FALSE | AW79: FALSE | AX79: FALSE | AY79: FALSE | AZ79: FALSE | BA79: FALSE | BB79: FALSE | BC79: FALSE | BD79: FALSE | BE79: FALSE | BF79: FALSE | BG79: FALSE | BH79: FALSE | BI79: FALSE | BJ79: FALSE | BK79: FALSE | BL79: FALSE | BM79: FALSE | BN79: FALSE | BO79: FALSE | BP79: FALSE | BQ79: FALSE | BR79: FALSE | BS79: FALSE | BT79: FALSE | BU79: FALSE | BV79: FALSE | BW79: FALSE | BX79: FALSE | BY79: FALSE | BZ79: FALSE
A80: TI | B80: TI | C80: 2025-09-19 | D80: 2025-09-19 | I80: FALSE | J80: FALSE | K80: FALSE | L80: FALSE | M80: FALSE | N80: FALSE | O80: FALSE | P80: FALSE | Q80: TRUE | R80: TRUE | S80: FALSE | T80: FALSE | U80: FALSE | V80: FALSE | W80: FALSE | X80: FALSE | Y80: FALSE | Z80: FALSE | AA80: FALSE | AB80: FALSE | AC80: FALSE | AD80: FALSE | AE80: FALSE | AF80: FALSE | AG80: FALSE | AH80: FALSE | AI80: FALSE | AJ80: FALSE | AK80: FALSE | AL80: FALSE | AM80: FALSE | AN80: FALSE | AO80: FALSE | AP80: FALSE | AQ80: FALSE | AR80: FALSE | AS80: FALSE | AT80: FALSE | AU80: FALSE | AV80: FALSE | AW80: FALSE | AX80: FALSE | AY80: FALSE | AZ80: FALSE | BA80: FALSE | BB80: FALSE | BC80: FALSE | BD80: FALSE | BE80: FALSE | BF80: FALSE | BG80: FALSE | BH80: FALSE | BI80: FALSE | BJ80: FALSE | BK80: FALSE | BL80: FALSE | BM80: FALSE | BN80: FALSE | BO80: FALSE | BP80: FALSE | BQ80: FALSE | BR80: FALSE | BS80: FALSE | BT80: FALSE | BU80: FALSE | BV80: FALSE | BW80: FALSE | BX80: FALSE | BY80: FALSE | BZ80: FALSE
A81: TI/Zoll | B81: Icke | C81: 2025-09-19 | D81: 2025-09-19 | I81: FALSE | J81: FALSE | K81: FALSE | L81: FALSE | M81: FALSE | N81: FALSE | O81: FALSE | P81: FALSE | Q81: TRUE | R81: TRUE | S81: FALSE | T81: FALSE | U81: FALSE | V81: FALSE | W81: FALSE | X81: FALSE | Y81: FALSE | Z81: FALSE | AA81: FALSE | AB81: FALSE | AC81: FALSE | AD81: FALSE | AE81: FALSE | AF81: FALSE | AG81: FALSE | AH81: FALSE | AI81: FALSE | AJ81: FALSE | AK81: FALSE | AL81: FALSE | AM81: FALSE | AN81: FALSE | AO81: FALSE | AP81: FALSE | AQ81: FALSE | AR81: FALSE | AS81: FALSE | AT81: FALSE | AU81: FALSE | AV81: FALSE | AW81: FALSE | AX81: FALSE | AY81: FALSE | AZ81: FALSE | BA81: FALSE | BB81: FALSE | BC81: FALSE | BD81: FALSE | BE81: FALSE | BF81: FALSE | BG81: FALSE | BH81: FALSE | BI81: FALSE | BJ81: FALSE | BK81: FALSE | BL81: FALSE | BM81: FALSE | BN81: FALSE | BO81: FALSE | BP81: FALSE | BQ81: FALSE | BR81: FALSE | BS81: FALSE | BT81: FALSE | BU81: FALSE | BV81: FALSE | BW81: FALSE | BX81: FALSE | BY81: FALSE | BZ81: FALSE
A82: TI/Zoll | B82: TA/ TI | C82: 2025-09-19 | D82: 2025-09-19 | I82: FALSE | J82: FALSE | K82: FALSE | L82: FALSE | M82: FALSE | N82: FALSE | O82: FALSE | P82: FALSE | Q82: TRUE | R82: TRUE | S82: FALSE | T82: FALSE | U82: FALSE | V82: FALSE | W82: FALSE | X82: FALSE | Y82: FALSE | Z82: FALSE | AA82: FALSE | AB82: FALSE | AC82: FALSE | AD82: FALSE | AE82: FALSE | AF82: FALSE | AG82: FALSE | AH82: FALSE | AI82: FALSE | AJ82: FALSE | AK82: FALSE | AL82: FALSE | AM82: FALSE | AN82: FALSE | AO82: FALSE | AP82: FALSE | AQ82: FALSE | AR82: FALSE | AS82: FALSE | AT82: FALSE | AU82: FALSE | AV82: FALSE | AW82: FALSE | AX82: FALSE | AY82: FALSE | AZ82: FALSE | BA82: FALSE | BB82: FALSE | BC82: FALSE | BD82: FALSE | BE82: FALSE | BF82: FALSE | BG82: FALSE | BH82: FALSE | BI82: FALSE | BJ82: FALSE | BK82: FALSE | BL82: FALSE | BM82: FALSE | BN82: FALSE | BO82: FALSE | BP82: FALSE | BQ82: FALSE | BR82: FALSE | BS82: FALSE | BT82: FALSE | BU82: =AND($B82=$B82,BU$6>=$C82,BU$6<=$D82) -> FALSE | BV82: FALSE | BW82: FALSE | BX82: FALSE | BY82: FALSE | BZ82: FALSE
A83: Icke | B83: Korr. UAN | C83: 2025-09-19 | D83: 2025-09-19 | I83: FALSE | J83: =AND($B83=$B83,J$6>=$C83,J$6<=$D83) -> FALSE | K83: FALSE | L83: FALSE | M83: FALSE | N83: FALSE | O83: FALSE | P83: FALSE | Q83: TRUE | R83: TRUE | S83: FALSE | T83: FALSE | U83: FALSE | V83: FALSE | W83: FALSE | X83: FALSE | Y83: FALSE | Z83: FALSE | AA83: FALSE | AB83: FALSE | AC83: FALSE | AD83: FALSE | AE83: FALSE | AF83: FALSE | AG83: FALSE | AH83: FALSE | AI83: FALSE | AJ83: FALSE | AK83: FALSE | AL83: FALSE | AM83: FALSE | AN83: FALSE | AO83: FALSE | AP83: FALSE | AQ83: FALSE | AR83: FALSE | AS83: FALSE | AT83: FALSE | AU83: FALSE | AV83: FALSE | AW83: FALSE | AX83: FALSE | AY83: FALSE | AZ83: FALSE | BA83: FALSE | BB83: FALSE | BC83: FALSE | BD83: FALSE | BE83: FALSE | BF83: FALSE | BG83: FALSE | BH83: FALSE | BI83: FALSE | BJ83: FALSE | BK83: FALSE | BL83: FALSE | BM83: FALSE | BN83: FALSE | BO83: FALSE | BP83: FALSE | BQ83: FALSE | BR83: FALSE | BS83: FALSE | BT83: FALSE | BU83: FALSE | BV83: FALSE | BW83: FALSE | BX83: FALSE | BY83: FALSE | BZ83: FALSE
A84: TA/ TI | B84: TQ/Zoll/UAN | C84: 2025-09-22 | D84: 2025-09-22 | I84: FALSE | J84: FALSE | K84: FALSE | L84: FALSE | M84: FALSE | N84: FALSE | O84: FALSE | P84: FALSE | Q84: FALSE | R84: FALSE | S84: FALSE | T84: FALSE | U84: FALSE | V84: FALSE | W84: TRUE | X84: TRUE | Y84: FALSE | Z84: FALSE | AA84: FALSE | AB84: FALSE | AC84: FALSE | AD84: FALSE | AE84: FALSE | AF84: FALSE | AG84: FALSE | AH84: FALSE | AI84: FALSE | AJ84: FALSE | AK84: FALSE | AL84: FALSE | AM84: FALSE | AN84: FALSE | AO84: FALSE | AP84: FALSE | AQ84: FALSE | AR84: FALSE | AS84: FALSE | AT84: FALSE | AU84: FALSE | AV84: FALSE | AW84: FALSE | AX84: FALSE | AY84: FALSE | AZ84: FALSE | BA84: FALSE | BB84: FALSE | BC84: FALSE | BD84: FALSE | BE84: FALSE | BF84: FALSE | BG84: FALSE | BH84: FALSE | BI84: FALSE | BJ84: FALSE | BK84: FALSE | BL84: FALSE | BM84: FALSE | BN84: FALSE | BO84: FALSE | BP84: FALSE | BQ84: FALSE | BR84: FALSE | BS84: FALSE | BT84: FALSE | BU84: FALSE | BV84: FALSE | BW84: FALSE | BX84: FALSE | BY84: FALSE | BZ84: FALSE
A85: Korr. UAN | B85: TA / Cathleco | C85: 2025-09-30 | D85: 2025-09-30 | I85: FALSE | J85: FALSE | K85: FALSE | L85: FALSE | M85: FALSE | N85: FALSE | O85: FALSE | P85: FALSE | Q85: FALSE | R85: FALSE | S85: FALSE | T85: FALSE | U85: FALSE | V85: FALSE | W85: FALSE | X85: FALSE | Y85: FALSE | Z85: FALSE | AA85: FALSE | AB85: FALSE | AC85: FALSE | AD85: FALSE | AE85: FALSE | AF85: FALSE | AG85: FALSE | AH85: FALSE | AI85: FALSE | AJ85: FALSE | AK85: FALSE | AL85: FALSE | AM85: TRUE | AN85: TRUE | AO85: FALSE | AP85: FALSE | AQ85: FALSE | AR85: FALSE | AS85: FALSE | AT85: FALSE | AU85: FALSE | AV85: FALSE | AW85: FALSE | AX85: FALSE | AY85: FALSE | AZ85: FALSE | BA85: FALSE | BB85: FALSE | BC85: FALSE | BD85: FALSE | BE85: FALSE | BF85: FALSE | BG85: FALSE | BH85: FALSE | BI85: FALSE | BJ85: FALSE | BK85: FALSE | BL85: FALSE | BM85: FALSE | BN85: FALSE | BO85: FALSE | BP85: FALSE | BQ85: FALSE | BR85: FALSE | BS85: FALSE | BT85: FALSE | BU85: FALSE | BV85: FALSE | BW85: FALSE | BX85: FALSE | BY85: FALSE | BZ85: FALSE
A86: TQ/Zoll/UAN | B86: TQ/PW/Zoll | C86: 2025-09-30 | D86: 2025-09-30 | I86: FALSE | J86: FALSE | K86: FALSE | L86: FALSE | M86: FALSE | N86: FALSE | O86: FALSE | P86: FALSE | Q86: FALSE | R86: FALSE | S86: FALSE | T86: FALSE | U86: FALSE | V86: FALSE | W86: FALSE | X86: FALSE | Y86: FALSE | Z86: FALSE | AA86: FALSE | AB86: FALSE | AC86: FALSE | AD86: FALSE | AE86: FALSE | AF86: FALSE | AG86: FALSE | AH86: FALSE | AI86: FALSE | AJ86: FALSE | AK86: FALSE | AL86: FALSE | AM86: TRUE | AN86: TRUE | AO86: FALSE | AP86: FALSE | AQ86: FALSE | AR86: FALSE | AS86: FALSE | AT86: FALSE | AU86: FALSE | AV86: FALSE | AW86: FALSE | AX86: FALSE | AY86: FALSE | AZ86: FALSE | BA86: FALSE | BB86: FALSE | BC86: FALSE | BD86: FALSE | BE86: FALSE | BF86: FALSE | BG86: FALSE | BH86: FALSE | BI86: FALSE | BJ86: FALSE | BK86: FALSE | BL86: FALSE | BM86: FALSE | BN86: FALSE | BO86: FALSE | BP86: FALSE | BQ86: FALSE | BR86: FALSE | BS86: FALSE | BT86: FALSE | BU86: =AND($B86=$B86,BU$6>=$C86,BU$6<=$D86) -> FALSE | BV86: FALSE | BW86: FALSE | BX86: FALSE | BY86: FALSE | BZ86: FALSE
A87: PW/UAN | B87: TA/TI / Schubeck | C87: 2025-09-30 | D87: 2025-09-30 | I87: FALSE | J87: FALSE | K87: FALSE | L87: FALSE | M87: FALSE | N87: FALSE | O87: FALSE | P87: FALSE | Q87: FALSE | R87: FALSE | S87: FALSE | T87: FALSE | U87: FALSE | V87: FALSE | W87: FALSE | X87: FALSE | Y87: =AND($B87=$B87,Y$6>=$C87,Y$6<=$D87) -> FALSE | Z87: FALSE | AA87: FALSE | AB87: FALSE | AC87: FALSE | AD87: FALSE | AE87: FALSE | AF87: FALSE | AG87: FALSE | AH87: FALSE | AI87: FALSE | AJ87: FALSE | AK87: FALSE | AL87: FALSE | AM87: TRUE | AN87: TRUE | AO87: FALSE | AP87: FALSE | AQ87: FALSE | AR87: FALSE | AS87: FALSE | AT87: FALSE | AU87: FALSE | AV87: FALSE | AW87: FALSE | AX87: FALSE | AY87: FALSE | AZ87: FALSE | BA87: FALSE | BB87: FALSE | BC87: FALSE | BD87: FALSE | BE87: FALSE | BF87: FALSE | BG87: FALSE | BH87: FALSE | BI87: FALSE | BJ87: FALSE | BK87: FALSE | BL87: FALSE | BM87: FALSE | BN87: FALSE | BO87: FALSE | BP87: FALSE | BQ87: FALSE | BR87: FALSE | BS87: FALSE | BT87: FALSE | BU87: FALSE | BV87: FALSE | BW87: FALSE | BX87: FALSE | BY87: FALSE | BZ87: FALSE
A88: Korr. UAN | B88: TI/ Zoll | C88: 2025-10-01 | D88: 2025-10-01 | I88: FALSE | J88: =AND($B88=$B88,J$6>=$C88,J$6<=$D88) -> FALSE | K88: FALSE | L88: FALSE | M88: FALSE | N88: FALSE | O88: FALSE | P88: FALSE | Q88: FALSE | R88: FALSE | S88: FALSE | T88: FALSE | U88: FALSE | V88: FALSE | W88: FALSE | X88: FALSE | Y88: FALSE | Z88: FALSE | AA88: FALSE | AB88: FALSE | AC88: FALSE | AD88: FALSE | AE88: FALSE | AF88: FALSE | AG88: FALSE | AH88: FALSE | AI88: FALSE | AJ88: FALSE | AK88: FALSE | AL88: FALSE | AM88: FALSE | AN88: FALSE | AO88: TRUE | AP88: TRUE | AQ88: FALSE | AR88: FALSE | AS88: FALSE | AT88: FALSE | AU88: FALSE | AV88: FALSE | AW88: FALSE | AX88: FALSE | AY88: FALSE | AZ88: FALSE | BA88: FALSE | BB88: FALSE | BC88: FALSE | BD88: FALSE | BE88: FALSE | BF88: FALSE | BG88: FALSE | BH88: FALSE | BI88: FALSE | BJ88: FALSE | BK88: FALSE | BL88: FALSE | BM88: FALSE | BN88: FALSE | BO88: FALSE | BP88: FALSE | BQ88: FALSE | BR88: FALSE | BS88: FALSE | BT88: FALSE | BU88: FALSE | BV88: FALSE | BW88: FALSE | BX88: FALSE | BY88: FALSE | BZ88: FALSE
A89: Korr. UAN | I89: FALSE | J89: FALSE | K89: FALSE | L89: FALSE | M89: FALSE | N89: FALSE | O89: FALSE | P89: FALSE | Q89: FALSE | R89: FALSE | S89: FALSE | T89: FALSE | U89: FALSE | V89: FALSE | W89: FALSE | X89: FALSE | Y89: FALSE | Z89: FALSE | AA89: FALSE | AB89: FALSE | AC89: FALSE | AD89: FALSE | AE89: FALSE | AF89: FALSE | AG89: FALSE | AH89: FALSE | AI89: FALSE | AJ89: FALSE | AK89: FALSE | AL89: FALSE | AM89: FALSE | AN89: FALSE | AO89: FALSE | AP89: FALSE | AQ89: FALSE | AR89: FALSE | AS89: FALSE | AT89: FALSE | AU89: FALSE | AV89: FALSE | AW89: FALSE | AX89: FALSE | AY89: FALSE | AZ89: FALSE | BA89: FALSE | BB89: FALSE | BC89: FALSE | BD89: FALSE | BE89: FALSE | BF89: FALSE | BG89: FALSE | BH89: FALSE | BI89: FALSE | BJ89: FALSE | BK89: FALSE | BL89: FALSE | BM89: FALSE | BN89: FALSE | BO89: FALSE | BP89: FALSE | BQ89: FALSE | BR89: FALSE | BS89: FALSE | BT89: FALSE | BU89: FALSE | BV89: FALSE | BW89: FALSE | BX89: FALSE | BY89: FALSE | BZ89: FALSE
A90: TA / Cathleco
A91: Korr. UAN
A92: Korr. UAN
A93: TQ/PW/Zoll
A94: TA/TI / Schubeck
A95: TI/ Zoll
A96: TI/Zoll
A97: Zoll

Sheet Feiertage
A1: Inhalt | K1: =VLOOKUP(L1,N1:O8,2,FALSE) -> Freitag | L1: 6 | M1: =IF(P1=TRUE,N1,"") ->  | N1: 1 | O1: Sonntag | P1: =IF($K$1=O1,WEEKDAY(N1,1)=7,"") ->  | AF1: Stammdaten | AG1: Stammdaten | AH1: Stammdaten | AI1: Stammdaten | AJ1: =SUM(AJ2:AJ8) -> 10 | AK1: =SUM(AK2:AK8) ->  | AM1: Stammdaten | AR1: https://kalender-365.de/wochentage.php | AS1: Wochentagsberechnung: 2024 | AX1: Typ2
L2: =IF(M9=1,1,MAX(M1:M8)+2) -> 7 | M2: =IF(P2=TRUE,N2-1,"") ->  | N2: 2 | O2: Montag | P2: =IF($K$1=O2,WEEKDAY(N2,1)=1,"") ->  | AD2: Inhalt | AF2: =IF(#REF!>0,#REF!,"") ->  | AG2: =IF(#REF!>0,"x","") ->  | AH2: Sonntag | AI2: =AG2 ->  | AJ2: =COUNTIF($AG$12:$AG$31,AH2) -> 0 | AK2: =IF(AI2="X",AJ2,"") ->  | AM2: =IF(#REF!>0,"x","") ->  | AN2: 7 | AO2: =IF(AI2="X",AN2,"") ->  | AP2: =SUM((WEEKDAY(ROW(INDIRECT($Y$12&":"&$Z$23)),2)=AO2)*1) ->  | AQ2: =SUM((WEEKDAY(ROW(INDIRECT($Y$12&":"&$Z$23)),2)=AN2)*1) -> 52 | AT2: Sonntage: 52 | AW2: 7 | AX2: Sonntag | BZ2: Januar | CA2: Februar | CB2: März | CC2: April | CD2: Mai | CE2: Juni | CF2: Juli | CG2: August | CH2: September | CI2: Oktober | CJ2: November | CK2: Dezember
A3: Negativ | B3: Positiv | E3: =gewJahr -> 2025 | F3: =YEAR(Ablaufplan!C13) -> 2025 | N3: 3 | O3: Dienstag | P3: =IF($K$1=O3,WEEKDAY(N3,1)=2,"") ->  | AF3: =IF(#REF!>0,#REF!,"") ->  | AG3: =IF(#REF!>0,"x","") ->  | AH3: Montag | AI3: =AG3 ->  | AJ3: =COUNTIF($AG$12:$AG$31,AH3) -> 2 | AK3: =IF(AI3="X",AJ3,"") ->  | AM3: =IF(#REF!>0,"x","") ->  | AN3: 1 | AO3: =IF(AI3="X",AN3,"") ->  | AP3: =SUM((WEEKDAY(ROW(INDIRECT($Y$12&":"&$Z$23)),2)=AO3)*1) ->  | AQ3: =SUM((WEEKDAY(ROW(INDIRECT($Y$12&":"&$Z$23)),2)=AN3)*1) -> 52 | AT3: Montage: 53 | AW3: 1 | AX3: Montag | BA3: =SUM(AQ3:AQ7) -> 261 | BY3: =SUM(BZ3:CK3) -> 0 | BZ3: 0 | CA3: 0 | CB3: 0 | CC3: 0 | CD3: 0 | CE3: 0 | CF3: 0 | CG3: 0 | CH3: 0 | CI3: 0 | CJ3: 0 | CK3: 0 | CL3: Sonntagsarbeitszeiten
B4: =YEAR(Ablaufplan!C13) -> 2025 | N4: 4 | O4: Mittwoch | P4: =IF($K$1=O4,WEEKDAY(N4,1)=3,"") ->  | AF4: =IF(#REF!>0,#REF!,"") ->  | AG4: =IF(#REF!>0,"x","") ->  | AH4: Dienstag | AI4: =AG4 ->  | AJ4: 0 | AM4: =IF(#REF!>0,"x","") ->  | AN4: 2 | AP4: =SUM((WEEKDAY(ROW(INDIRECT($Y$12&":"&$Z$23)),2)=AO4)*1) ->  | AQ4: =SUM((WEEKDAY(ROW(INDIRECT($Y$12&":"&$Z$23)),2)=AN4)*1) -> 52 | AT4: Dienstage: 53 | AW4: 2 | AX4: Dienstag | BA4: =SUM(AQ3:AQ6) -> 209 | BU4: =IF((CH9*24)>0,6,IF(CH9<0,7,5)) ->  | BV4: =#REF! ->  | BW4: =#REF! ->  | BY4: =IF((CH9*24)>0,6,IF(CH9<0,7,5)) ->  | BZ4: =VLOOKUP(BZ2,$BS$11:$BT$22,2,FALSE) -> 1 | CA4: =VLOOKUP(CA2,$BS$11:$BT$22,2,FALSE) -> 0 | CB4: 0 | CC4: 2 | CD4: 2 | CE4: 1 | CF4: 0 | CG4: 0 | CH4: 0 | CI4: 2 | CJ4: 0 | CK4: 2 | CL4: =SUM(BZ4:CK4) -> 10 | CM4: =CL4*(#REF!*24) ->  | CN4: =CM4/24 ->  | CR4: herleitung
A5: Auswirkung auf Soll- Monatsstunden Kalender | B5: Auswahl | C5: Ja | E5: Sa | F5: Werktage Mo-Sa =7 | G5: Arbeitstage Mo-Fr=>6 | N5: 5 | O5: Donnerstag | P5: =IF($K$1=O5,WEEKDAY(N5,1)=4,"") ->  | AF5: =IF(#REF!>0,#REF!,"") ->  | AG5: =IF(#REF!>0,"x","") ->  | AH5: Mittwoch | AJ5: 1 | AM5: =IF(#REF!>0,"x","") ->  | AN5: 3 | AP5: =SUM((WEEKDAY(ROW(INDIRECT($Y$12&":"&$Z$23)),2)=AO5)*1) ->  | AQ5: =SUM((WEEKDAY(ROW(INDIRECT($Y$12&":"&$Z$23)),2)=AN5)*1) -> 53 | AT5: Mittwoche: 52 | AW5: 3 | AX5: Mittwoch | BU5: =IF(BU4>BV4,">=1",">") ->  | BY5: =(BY3*24)/(#REF!*24) ->  | CK5: summ | CL5: =SUM(CM5:CN5) ->  | CM5: =CO8-CN5 ->  | CN5: =BY5/24 ->  | CO5: ist | CQ5: 6 | CR5: =IF($CQ$7=5,IFERROR(WEEKDAY(BY17,2)<6,"")) -> TRUE
B6: Auswahl | C6: Nein | E6: So | F6: Wochentage Mo-So =8 | M6: 5 | N6: 6 | O6: Freitag | P6: =IF($K$1=O6,WEEKDAY(N6,1)=5,"") -> TRUE | R6: Sonntag Kein Feiertag 5 Tage/Woche | AF6: =IF(#REF!>0,#REF!,"") ->  | AG6: =IF(#REF!>0,"x","") ->  | AH6: Donnerstag | AJ6: 3 | AM6: =IF(#REF!>0,"x","") ->  | AN6: 4 | AP6: =SUM((WEEKDAY(ROW(INDIRECT($Y$12&":"&$Z$23)),2)=AO6)*1) ->  | AQ6: =SUM((WEEKDAY(ROW(INDIRECT($Y$12&":"&$Z$23)),2)=AN6)*1) -> 52 | AT6: Donnerstage: 52 | AW6: 4 | AX6: Donnerstag | BM6: Auswirkung auf Soll- Monatsstunden Kalender | BT6: Auswirkung auf Soll- Monatsstunden Kalender | BY6: 15 | BZ6: Feiertagsarbeit im Jahr müssen frei beiben ArbzG | CL6: =CM6*9/12 ->  | CM6: =BY6*(#REF!*24) ->  | CN6: =CM6/24 ->  | CO6: soll frei bleben Jahr | CQ6: 5 | CR6: =IF($CQ$7=5,IFERROR(WEEKDAY(BY18,2)<6,"")) -> TRUE | CT6: Arbeitszeitgesetz
B7: =DATEVALUE("01.01."&B4) -> 2025-01-01 | C7: Feiertage + Geburtstage + Adventssonntage | F7: 8 | G7: ←6 = 5 Tage/Woche 7 oder 8 hier eintragen! | N7: 7 | O7: Samstag | P7: =IF($K$1=O7,WEEKDAY(N7,1)=6,"") ->  | R7: =D15 -> Sommerzeit 1h vor | AF7: =IF(#REF!>0,#REF!,"") ->  | AG7: =IF(#REF!>0,"x","") ->  | AH7: Freitag | AJ7: 4 | AM7: =IF(#REF!>0,"x","") ->  | AN7: 5 | AP7: =SUM((WEEKDAY(ROW(INDIRECT($Y$12&":"&$Z$23)),2)=AO7)*1) ->  | AQ7: =SUM((WEEKDAY(ROW(INDIRECT($Y$12&":"&$Z$23)),2)=AN7)*1) -> 52 | AT7: Freitage: 52 | AW7: 5 | AX7: Freitag | BZ7: alle Tage dann >= sonst >1 | CE7: soll freibleiben | CF7: =IFERROR(CL7*BY6/CL8,"0") -> 0 | CG7: =CF7*(#REF!*24) ->  | CH7: =CG7/24 ->  | CI7: Sonnage | CJ7: =#REF! ->  | CK7: =#REF! ->  | CL7: =SUM((WEEKDAY(ROW(INDIRECT(CJ7&":"&CK7)),2)=7)*1) ->  | CM7: =CL7*(#REF!*24) ->  | CN7: =CM7/24 ->  | CO7: soll frei bleiben | CQ7: 5 | CR7: =IF($CQ$7=5,IFERROR(WEEKDAY(BY19,2)<6,"")) -> TRUE | CT7: 75:00 Stunden Sonntage müssen frei bleben im Jahr
A8: Auswahl | B8: Ja oder Nein | C8: =IF(AND(DAY(DATE(YEAR(B7),3,))=29,YEAR(B7)<>1900),"Schaltjahr","") ->  | M8: =IF(M1=1,"",IF(P8=TRUE,N8-1,"")) ->  | N8: 8 | O8: Sonntag | P8: =IF($K$1=O8,WEEKDAY(N8,1)=7,"") ->  | R8: =D29 -> Winterzeit 1h zurück | AB8: 5 Tage/Woche | AF8: =IF(#REF!>0,#REF!,"") ->  | AG8: =IF(#REF!>0,"x","") ->  | AH8: Samstag | AJ8: 0 | AM8: =IF(#REF!>0,"x","") ->  | AN8: 6 | AP8: =SUM((WEEKDAY(ROW(INDIRECT($Y$12&":"&$Z$23)),2)=AO8)*1) ->  | AQ8: =SUM((WEEKDAY(ROW(INDIRECT($Y$12&":"&$Z$23)),2)=AN8)*1) -> 52 | AT8: Samstage: 52 | AW8: 6 | AX8: Samstag | BW8: Ungleich | BZ8: >=1 | CA8: >1 | CE8: soll frei geblieben | CH8: =CO8 ->  | CI8: Sonnage | CJ8: 2021-01-01 | CK8: =#REF! ->  | CL8: =SUM((WEEKDAY(ROW(INDIRECT(CJ8&":"&CK8)),2)=7)*1) ->  | CM8: =CL8*(#REF!*24) ->  | CN8: =CM8/24 ->  | CO8: =CN8-CN7 -> 
A9: Kein bezahlter FT | B9: Feiertagsauswahl | C9: =IF(C8="","",DATE(YEAR(B7),MONTH(1),DAY(29))+30) ->  | D9: =E9 -> 2025 | E9: =YEAR(B7) -> 2025 | F9: 6 = Ohne Sa.& So. | G9: =COUNT(G10:G52) -> 10 | H9: siehe Feiertage Bundesland | I9: Buß- u. Bettag suchen | K9: Samstage =Feiertage | L9: =E9-1 -> 2024 | M9: =IF(M1=1,1,MAX(M1:M8)+1) -> 6 | N9: Tage/Woche | AB9: Feiertage | AI9: =COUNTIF(AI2:AI8,"x") -> 0 | AP9: =SUM(AP2:AP8) ->  | AQ9: =SUM(AQ2:AQ8) -> 365 | AT9: Arbeitstage: 262 | BS9: für Kalender | BW9: =YEAR(BX11) -> 2025 | BX9: =gewJahr -> 2025 | BY9: =IF(BW9<>BX9,"X","") ->  | BZ9: Wochentag | CH9: =CH8-CH7 ->  | CO9: Arbeiten am Wochenende und an Feiertagen
A10: Keine Arbeit | B10: Auswahl | D10: Bezeichnung | E10: Vorgabe-Datum | F10: =COUNT(F12:F49) -> 10 | G10: Feiertage am | H10: Sonderfeiertage | I10: =DATEVALUE("16.11."&E9) -> 2025-11-16 | J10: =IF(AND(WEEKDAY(I10)=4,DAY(I10)>7),I10,"") ->  | K10: =COUNT(K12:K52) -> 0 | P10: Jahr Nettoarbeitstage | R10: Datum | S10: Datum | AB10: ohne Sa/So | AN10: Feiertage | AO10: G | AP10: Übertrag | AT10: Std | AW10: Std | BL10: =A12 -> Ja | BM10: =D12 -> Neujahr | BN10: =IF(E12="","",IF(A12="ja",E12,"")) -> 2025-01-01 | BO10: =BN10 -> 2025-01-01 | BP10: =D12 -> Neujahr | BQ10: =Y11 -> Datum | BR10: Datum | BT10: =SUM(BT11:BT22) -> 10 | BU10: Eindeutige Liste | BX10: Eindeutige Liste | CB10: Datum | CC10: Datum | CE10: =SUM(CE11:CE22) -> 0 | CF10: Sonntage frei | CI10: =E12 -> 2025-01-01 | CJ10: =D12 -> Neujahr
B11: Nein | C11: =IF(E11="","",IF(B11="ja",E11,"")) ->  | D11: Silvester Vorjahr | E11: =E12-1 -> 2024-12-31 | F11: =IF(C11="","",IF(AND(B11="ja",WEEKDAY(C11,2)<$F$7),C11,"")) ->  | I11: =I10+1 -> 2025-11-17 | P11: Hilfstabelle | R11: Sonntag Feiertage | S11: Sonntag Feiertage | U11: =COUNT(U12:U53) -> 10 | Y11: Datum | Z11: Datum | AA11: Feiertage | AB11: =COUNT(AB12:AB53) -> 10 | AH11: Eindeutige Liste | AM11: Feiertage Monat | AN11: Arbeitsblatt | AO11: Arbeitsblatt | AP11: Sonntag FT | AT11: Inkl. Feiertage | AW11: ohne Feiertage | AX11: Std. | BL11: =A13 -> Nein | BM11: =D13 -> Hl. 3 Könige | BN11: =IF(E13="","",IF(A13="ja",E13,"")) ->  | BO11: =BN11 ->  | BP11: =D13 -> Hl. 3 Könige | BQ11: 2025-01-01 | BR11: 2025-01-31 | BS11: Januar | BT11: =SUMPRODUCT(($BN$10:$BN$51>=BQ11)*($BN$10:$BN$51<=BR11)) -> 1 | BU11: =IFERROR(INDEX($BN$10:$BN$50,MATCH(1,COUNTIF($BU10:BU$10,$BN$10:$BN$50)+($BN$10:$BN$50<>"")*1,0)),"") -> 2025-01-01 | BV11: =IF(BU11="","",VLOOKUP(BU11,BN10:BP50,3,FALSE)) -> Neujahr | BX11: =IFERROR(INDEX($F$12:$F$52,MATCH(1,COUNTIF($BX10:BX$10,$F$12:$F$52)+($F$12:$F$52<>"")*1,0)),"") -> 2025-01-01 | BY11: =BX11 -> 2025-01-01 | BZ11: =IFERROR(IF($BU$4=7,IFERROR(WEEKDAY(BY11)>=1,""),IF($BU$4=6,IFERROR(WEEKDAY(BY11)>1,""),IF($BU$4=5,IFERROR(WEEKDAY(BY11,2)<6,"")))),"") ->  | CA11: =IF(BZ11=TRUE,BX11,"") ->  | CB11: =BQ11 -> 2025-01-01 | CC11: =BR11 -> 2025-01-31 | CD11: Januar | CE11: =SUMPRODUCT(($CA$11:$CA$52>=CB11)*($CA$11:$CA$52<=CC11)) -> 0 | CF11: =#REF! ->  | CI11: =E13 -> 2025-01-06 | CJ11: =D13 -> Hl. 3 Könige | CO11: https://www.arbeitszeit-klug-gestalten.de/alles-zu-arbeitszeitgestaltung/arbeitszeitrecht/wochenenden-und-feiertage
A12: Ja | B12: Ja | C12: =IF(E12="","",IF(AND(B12="ja",WEEKDAY(E12,2)<$F$7),E12,"")) -> 2025-01-01 | D12: Neujahr | E12: =DATEVALUE("01.01."&E9) -> 2025-01-01 | F12: =IF(C12="","",IF(AND(B12="ja",WEEKDAY(C12,2)<$F$7),C12,"")) -> 2025-01-01 | G12: =F12 -> 2025-01-01 | I12: 2025-11-18 | K12: =IFERROR(IF(G12="","",IF(AND(B12="ja",WEEKDAY(C12,2)=6),C12,"")),"") ->  | L12: =DATEVALUE("01.01."&L9) -> 2024-01-01 | M12: =L12 -> 2024-01-01 | P12: =IF(C12="",1900,IF(AND(B12="ja",WEEKDAY(C12,2)<7),C12,1900)) -> 2025-01-01 | R12: =IF(OR($R$8=D11,$R$7=D11,C11=""),"",IF(WEEKDAY(C11,1)=1,C11,"")) ->  | S12: =IF(OR($R$8=D11,$R$7=D11,C11=""),"",IF(WEEKDAY(C11,1)=1,C11,"")) ->  | U12: =IF(YEAR(P12)=$E$9,P12,"") -> 2025-01-01 | V12: =IF(U12="","",EOMONTH(U12,0)) -> 2025-01-31 | W12: =IF(U12="","",SUMPRODUCT(($P$12:$P$53>=U12)*($P$12:$P$53<=V12))) -> 1 | X12: Januar | Y12: =B7 -> 2025-01-01 | Z12: =EOMONTH(Y12,0) -> 2025-01-31 | AA12: =SUMPRODUCT(($P$12:$P$53>=Y12)*($P$12:$P$53<=Z12)) -> 1 | AB12: =IF($E$9=YEAR(P12),IF(WEEKDAY(P12,2)=6,"",P12),"") -> 2025-01-01 | AC12: Januar | AD12: =IF(C12="","",IF(AND(B12="ja",WEEKDAY(C12,2)<$F$7),C12,"")) -> 2025-01-01 | AE12: =IF(C12="","",IF(AND(B12="ja",WEEKDAY(C12,2)<$F$7),C12,"")) -> 2025-01-01 | AF12: =D12 -> Neujahr | AG12: =IF(AH12="0","",TEXT(AH12,"TTTT")) -> Mittwoch | AH12: =IF(IFERROR(INDEX($AE$12:$AE$50,MATCH(1,COUNTIF($AH$11:AH11,$AE$12:$AE$50)+($AE$12:$AE$50<>"")*1,0)),"")="","0",IFERROR(INDEX($AE$12:$AE$50,MATCH(1,COUNTIF($AH$11:AH11,$AE$12:$AE$50)+($AE$12:$AE$50<>"")*1,0)),"")) -> 2025-01-01 | AI12: =IF(AH12="0","",VLOOKUP(AH12,$AE$12:$AF$52,2,FALSE)) -> Neujahr | AJ12: =IF(AH12<>"0",1,"0") -> 1 | AK12: 1 | AL12: Januar | AM12: =SUMPRODUCT(((MONTH($AH$12:$AH$31)=AK12)*($AJ$12:$AJ$31))) -> 1 | AN12: =#REF! ->  | AO12: =#REF! ->  | AP12: =BD36 -> 0 | AQ12: =(AM12-AP12)*-1 -> -1 | AS12: =AQ12-AR12 -> -1 | AT12: 78 | AU12: 130 | AV12: =AH12 -> 2025-01-01 | AW12: =AS12*$AW$9 -> 0 | AX12: =IF(AT12=0,0,AT12+AW12) -> 78 | BL12: Nein | BM12: Rosenmontag | BP12: Rosenmontag | BQ12: 2025-02-01 | BR12: 2025-02-28 | BS12: Februar | BT12: =SUMPRODUCT(($BN$10:$BN$51>=BQ12)*($BN$10:$BN$51<=BR12)) -> 0 | BU12: =IFERROR(INDEX($BN$10:$BN$50,MATCH(1,COUNTIF($BU$10:BU11,$BN$10:$BN$50)+($BN$10:$BN$50<>"")*1,0)),"") -> 2025-04-18 | BV12: =IF(BU12="","",VLOOKUP(BU12,BN11:BP51,3,FALSE)) -> Karfreitag | BX12: =IFERROR(INDEX($F$12:$F$52,MATCH(1,COUNTIF($BX$10:BX11,$F$12:$F$52)+($F$12:$F$52<>"")*1,0)),"") -> 2025-04-18 | BY12: =BX12 -> 2025-04-18 | BZ12: =IFERROR(IF($BU$4=7,IFERROR(WEEKDAY(BY12)>=1,""),IF($BU$4=6,IFERROR(WEEKDAY(BY12)>1,""),IF($BU$4=5,IFERROR(WEEKDAY(BY12,2)<6,"")))),"") ->  | CA12: =IF(BZ12=TRUE,BX12,"") ->  | CB12: =BQ12 -> 2025-02-01 | CC12: 2025-02-28 | CD12: Februar | CE12: 0 | CF12: =#REF! ->  | CI12: 2025-03-03 | CJ12: Rosenmontag
A13: Nein | B13: Nein | C13: =IF(E13="","",IF(AND(B13="ja",WEEKDAY(E13,2)<$F$7),E13,"")) ->  | D13: Hl. 3 Könige | E13: =DATEVALUE("06.01."&E9) -> 2025-01-06 | F13: =IF(C13="","",IF(AND(B13="ja",WEEKDAY(C13,2)<$F$7),C13,"")) ->  | G13: =F13 ->  | I13: 2025-11-19 | J13: 2025-11-19 | K13: =IFERROR(IF(G13="","",IF(AND(B13="ja",WEEKDAY(C13,2)=6),C13,"")),"") ->  | L13: =DATEVALUE("06.01."&L9) -> 2024-01-06 | M13: =L13 -> 2024-01-06 | P13: 1909-03-15 | V13: =IF(U13="","",EOMONTH(U13,0)) ->  | W13: =IF(U13="","",SUMPRODUCT(($P$12:$P$53>=U13)*($P$12:$P$53<=V13))) ->  | X13: Februar | Y13: =Z12+1 -> 2025-02-01 | Z13: 2025-02-28 | AA13: 0 | AB13: =IF($E$9=YEAR(P13),IF(WEEKDAY(P13,2)=6,"",P13),"") ->  | AC13: Februar | AE13: =IF(C13="","",IF(AND(B13="ja",WEEKDAY(C13,2)<$F$7),C13,"")) ->  | AF13: Hl. 3 Könige | AG13: Freitag | AH13: =IF(IFERROR(INDEX($AE$12:$AE$50,MATCH(1,COUNTIF($AH$11:AH12,$AE$12:$AE$50)+($AE$12:$AE$50<>"")*1,0)),"")="","0",IFERROR(INDEX($AE$12:$AE$50,MATCH(1,COUNTIF($AH$11:AH12,$AE$12:$AE$50)+($AE$12:$AE$50<>"")*1,0)),"")) -> 2025-04-18 | AI13: Karfreitag | AJ13: 1 | AK13: 2 | AL13: Februar | AM13: =SUMPRODUCT(((MONTH($AH$12:$AH$31)=AK13)*($AJ$12:$AJ$31))) -> 0 | AN13: =#REF! ->  | AO13: =#REF! ->  | AP13: =BD37 -> 0 | AQ13: =(AM13-AP13)*-1 -> 0 | AS13: =AQ13-AR13 -> 0 | AT13: 72 | AU13: 120 | AV13: =AH13 -> 2025-04-18 | AW13: 0 | AX13: =IF(AT13=0,0,AT13+AW13) -> 72 | BL13: Nein | BM13: Sommerzeit 1h vor | BP13: Sommerzeit 1h vor | BQ13: 2025-03-01 | BR13: 2025-03-31 | BS13: März | BT13: 0 | BU13: =IFERROR(INDEX($BN$10:$BN$50,MATCH(1,COUNTIF($BU$10:BU12,$BN$10:$BN$50)+($BN$10:$BN$50<>"")*1,0)),"") -> 2025-04-21 | BV13: Ostermontag | BX13: =IFERROR(INDEX($F$12:$F$52,MATCH(1,COUNTIF($BX$10:BX12,$F$12:$F$52)+($F$12:$F$52<>"")*1,0)),"") -> 2025-04-21 | BY13: 2025-04-21 | CB13: 2025-03-01 | CC13: 2025-03-31 | CD13: März | CE13: 0 | CF13: 5 | CI13: 2025-03-30 | CJ13: Sommerzeit 1h vor
A14: Nein | B14: Nein | C14: =IF(E14="","",IF(B14="ja",E14,"")) ->  | D14: Rosenmontag | E14: =IF(E19,E19-48,) -> 2025-03-03 | I14: 2025-11-20 | L14: =G12 -> 2025-01-01 | M14: 2025-01-01 | P14: 1909-03-15 | X14: März | Y14: 2025-03-01 | Z14: 2025-03-31 | AA14: 0 | AC14: März | AF14: Rosenmontag | AG14: Montag | AH14: =IF(IFERROR(INDEX($AE$12:$AE$50,MATCH(1,COUNTIF($AH$11:AH13,$AE$12:$AE$50)+($AE$12:$AE$50<>"")*1,0)),"")="","0",IFERROR(INDEX($AE$12:$AE$50,MATCH(1,COUNTIF($AH$11:AH13,$AE$12:$AE$50)+($AE$12:$AE$50<>"")*1,0)),"")) -> 2025-04-21 | AI14: Ostermontag | AJ14: 1 | AK14: 3 | AL14: März | AM14: 0 | AN14: 0 | AO14: 0 | AP14: =BD38 -> 0 | AQ14: 0 | AS14: =AQ14-AR14 -> 0 | AT14: 78 | AU14: 135 | AV14: 2025-04-21 | AW14: 0 | AX14: 78 | BL14: Nein | BM14: Gründonnerstag | BP14: Gründonnerstag | BQ14: 2025-04-01 | BR14: 2025-04-30 | BS14: April | BT14: 2 | BU14: =IFERROR(INDEX($BN$10:$BN$50,MATCH(1,COUNTIF($BU$10:BU13,$BN$10:$BN$50)+($BN$10:$BN$50<>"")*1,0)),"") -> 2025-05-01 | BV14: Tag der Arbeit | BX14: =IFERROR(INDEX($F$12:$F$52,MATCH(1,COUNTIF($BX$10:BX13,$F$12:$F$52)+($F$12:$F$52<>"")*1,0)),"") -> 2025-05-01 | BY14: 2025-05-01 | CB14: 2025-04-01 | CC14: 2025-04-30 | CD14: April | CE14: 0 | CF14: 4 | CI14: 2025-04-17 | CJ14: Gründonnerstag
A15: Nein | B15: Nein | C15: =IF(E15="","",IF(AND(B15="ja",WEEKDAY(E15,1)<$F$7),E15,"")) ->  | D15: Sommerzeit 1h vor | E15: =DATE(E9,3,31)-(WEEKDAY(DATE(E9,3,31))-1) -> 2025-03-30 | I15: 2025-11-21 | L15: =G13 ->  | P15: 1909-03-15 | X15: April | Y15: 2025-04-01 | Z15: 2025-04-30 | AA15: 2 | AC15: April | AF15: Sommerzeit 1h vor | AG15: Donnerstag | AH15: =IF(IFERROR(INDEX($AE$12:$AE$50,MATCH(1,COUNTIF($AH$11:AH14,$AE$12:$AE$50)+($AE$12:$AE$50<>"")*1,0)),"")="","0",IFERROR(INDEX($AE$12:$AE$50,MATCH(1,COUNTIF($AH$11:AH14,$AE$12:$AE$50)+($AE$12:$AE$50<>"")*1,0)),"")) -> 2025-05-01 | AI15: Tag der Arbeit | AJ15: 1 | AK15: 4 | AL15: April | AM15: 2 | AN15: 1 | AO15: 0 | AP15: =BD39 -> 0 | AQ15: -2 | AS15: =AQ15-AR15 -> -2 | AT15: 78 | AU15: 130 | AV15: 2025-05-01 | AW15: 0 | AX15: 78 | BL15: Ja | BM15: Karfreitag | BN15: 2025-04-18 | BO15: 2025-04-18 | BP15: Karfreitag | BQ15: 2025-05-01 | BR15: 2025-05-31 | BS15: Mai | BT15: 2 | BU15: =IFERROR(INDEX($BN$10:$BN$50,MATCH(1,COUNTIF($BU$10:BU14,$BN$10:$BN$50)+($BN$10:$BN$50<>"")*1,0)),"") -> 2025-05-29 | BV15: Himmelfahrt | BX15: =IFERROR(INDEX($F$12:$F$52,MATCH(1,COUNTIF($BX$10:BX14,$F$12:$F$52)+($F$12:$F$52<>"")*1,0)),"") -> 2025-05-29 | BY15: 2025-05-29 | CB15: 2025-05-01 | CC15: 2025-05-31 | CD15: Mai | CE15: 0 | CF15: 4 | CI15: 2025-04-18 | CJ15: Karfreitag
A16: Nein | B16: Nein | C16: =IF(E16="","",IF(B16="ja",E16,"")) ->  | D16: Gründonnerstag | E16: =IF(D9,E17-1,) -> 2025-04-17 | I16: 2025-11-22 | P16: 1909-03-15 | X16: Mai | Y16: 2025-05-01 | Z16: 2025-05-31 | AA16: 2 | AC16: Mai | AF16: Gründonnerstag | AG16: Donnerstag | AH16: =IF(IFERROR(INDEX($AE$12:$AE$50,MATCH(1,COUNTIF($AH$11:AH15,$AE$12:$AE$50)+($AE$12:$AE$50<>"")*1,0)),"")="","0",IFERROR(INDEX($AE$12:$AE$50,MATCH(1,COUNTIF($AH$11:AH15,$AE$12:$AE$50)+($AE$12:$AE$50<>"")*1,0)),"")) -> 2025-05-29 | AI16: Himmelfahrt | AJ16: 1 | AK16: 5 | AL16: Mai | AM16: 2 | AN16: 2 | AO16: 0 | AP16: =BD40 -> 0 | AQ16: -2 | AS16: =AQ16-AR16 -> -2 | AT16: 78 | AU16: 130 | AV16: 2025-05-29 | AW16: 0 | AX16: 78 | BL16: Nein | BM16: Karsamstag | BP16: Karsamstag | BQ16: 2025-06-01 | BR16: 2025-06-30 | BS16: Juni | BT16: 1 | BU16: =IFERROR(INDEX($BN$10:$BN$50,MATCH(1,COUNTIF($BU$10:BU15,$BN$10:$BN$50)+($BN$10:$BN$50<>"")*1,0)),"") -> 2025-06-09 | BV16: Pfingstmontag | BX16: =IFERROR(INDEX($F$12:$F$52,MATCH(1,COUNTIF($BX$10:BX15,$F$12:$F$52)+($F$12:$F$52<>"")*1,0)),"") -> 2025-06-09 | BY16: 2025-06-09 | CB16: 2025-06-01 | CC16: 2025-06-30 | CD16: Juni | CE16: 0 | CF16: 5 | CI16: 2025-04-19 | CJ16: Karsamstag
A17: Ja | B17: Ja | C17: =IF(E17="","",IF(AND(B17="ja",WEEKDAY(E17,2)<$F$7),E17,"")) -> 2025-04-18 | D17: Karfreitag | E17: =E19-2 -> 2025-04-18 | F17: 2025-04-18 | G17: 2025-04-18 | I17: 2025-11-23 | P17: 2025-04-18 | T17: SonderFeiertag | U17: 2025-04-18 | V17: 2025-04-30 | W17: 2 | X17: Juni | Y17: 2025-06-01 | Z17: 2025-06-30 | AA17: 1 | AB17: 2025-04-18 | AC17: Juni | AE17: 2025-04-18 | AF17: Karfreitag | AG17: Montag | AH17: =IF(IFERROR(INDEX($AE$12:$AE$50,MATCH(1,COUNTIF($AH$11:AH16,$AE$12:$AE$50)+($AE$12:$AE$50<>"")*1,0)),"")="","0",IFERROR(INDEX($AE$12:$AE$50,MATCH(1,COUNTIF($AH$11:AH16,$AE$12:$AE$50)+($AE$12:$AE$50<>"")*1,0)),"")) -> 2025-06-09 | AI17: Pfingstmontag | AJ17: 1 | AK17: 6 | AL17: Juni | AM17: 1 | AN17: 1 | AO17: 0 | AP17: 0 | AQ17: -1 | AS17: -1 | AT17: 78 | AU17: 130 | AV17: 2025-06-09 | AW17: 0 | AX17: 78 | BL17: Nein | BM17: Ostersonntag | BP17: Ostersonntag | BQ17: 2025-07-01 | BR17: 2025-07-31 | BS17: Juli | BT17: 0 | BU17: =IFERROR(INDEX($BN$10:$BN$50,MATCH(1,COUNTIF($BU$10:BU16,$BN$10:$BN$50)+($BN$10:$BN$50<>"")*1,0)),"") -> 2025-10-03 | BV17: Tag d.dt.Einheit | BX17: =IFERROR(INDEX($F$12:$F$52,MATCH(1,COUNTIF($BX$10:BX16,$F$12:$F$52)+($F$12:$F$52<>"")*1,0)),"") -> 2025-10-03 | BY17: 2025-10-03 | CB17: 2025-07-01 | CC17: 2025-07-31 | CD17: Juli | CE17: 0 | CF17: 4 | CI17: 2025-04-20 | CJ17: Ostersonntag
A18: Nein | B18: Nein | C18: =IF(E18="","",IF(AND(B18="ja",WEEKDAY(E18,2)<$F$7),E18,"")) ->  | D18: Karsamstag | E18: =E19-1 -> 2025-04-19 | P18: =IF(C18="",1900,IF(AND(B18="ja",WEEKDAY(C18,2)<7),C18,1900)) -> 1909-03-15 | X18: Juli | Y18: 2025-07-01 | Z18: 2025-07-31 | AA18: 0 | AC18: Juli | AF18: Karsamstag | AG18: Freitag | AH18: =IF(IFERROR(INDEX($AE$12:$AE$50,MATCH(1,COUNTIF($AH$11:AH17,$AE$12:$AE$50)+($AE$12:$AE$50<>"")*1,0)),"")="","0",IFERROR(INDEX($AE$12:$AE$50,MATCH(1,COUNTIF($AH$11:AH17,$AE$12:$AE$50)+($AE$12:$AE$50<>"")*1,0)),"")) -> 2025-10-03 | AI18: Tag d.dt.Einheit | AJ18: 1 | AK18: 7 | AL18: Juli | AM18: 0 | AN18: 0 | AO18: 0 | AP18: 0 | AQ18: 0 | AS18: 0 | AT18: 84 | AU18: 130 | AV18: 2025-10-03 | AW18: 0 | AX18: 84 | BL18: Ja | BM18: Ostermontag | BN18: 2025-04-21 | BO18: 2025-04-21 | BP18: Ostermontag | BQ18: 2025-08-01 | BR18: 2025-08-31 | BS18: August | BT18: 0 | BU18: =IFERROR(INDEX($BN$10:$BN$50,MATCH(1,COUNTIF($BU$10:BU17,$BN$10:$BN$50)+($BN$10:$BN$50<>"")*1,0)),"") -> 2025-10-31 | BV18: Reformationst. | BX18: =IFERROR(INDEX($F$12:$F$52,MATCH(1,COUNTIF($BX$10:BX17,$F$12:$F$52)+($F$12:$F$52<>"")*1,0)),"") -> 2025-10-31 | BY18: 2025-10-31 | CB18: 2025-08-01 | CC18: 2025-08-31 | CD18: August | CE18: 0 | CF18: 5 | CI18: 2025-04-21 | CJ18: Ostermontag
A19: Nein | B19: Nein | C19: =IF(E19="","",IF(AND(B19="ja",WEEKDAY(E19,2)<$F$7),E19,"")) ->  | D19: Ostersonntag | E19: =DATE(E9,3,28)+MOD(24-MOD(E9,19)*10.63,29)-MOD(TRUNC(E9*5/4)+MOD(24-MOD(E9,19)*10.63,29)+1,7) -> 2025-04-20 | I19: Muttertag suchen | L19: 2025-04-18 | M19: 2025-04-18 | P19: =IF(C19="",1900,IF(AND(B19="ja",WEEKDAY(C19,2)<7),C19,1900)) -> 1909-03-15 | R19: =IF(OR($R$8=D17,$R$7=D17,C17=""),"",IF(WEEKDAY(C17,1)=1,C17,"")) ->  | S19: =IF(OR($R$8=D17,$R$7=D17,C17=""),"",IF(WEEKDAY(C17,1)=1,C17,"")) ->  | X19: August | Y19: 2025-08-01 | Z19: 2025-08-31 | AA19: 0 | AC19: August | AF19: Ostersonntag | AG19: Freitag | AH19: =IF(IFERROR(INDEX($AE$12:$AE$50,MATCH(1,COUNTIF($AH$11:AH18,$AE$12:$AE$50)+($AE$12:$AE$50<>"")*1,0)),"")="","0",IFERROR(INDEX($AE$12:$AE$50,MATCH(1,COUNTIF($AH$11:AH18,$AE$12:$AE$50)+($AE$12:$AE$50<>"")*1,0)),"")) -> 2025-10-31 | AI19: Reformationst. | AJ19: 1 | AK19: 8 | AL19: August | AM19: 0 | AN19: 0 | AO19: 0 | AP19: 0 | AQ19: 0 | AS19: 0 | AT19: 72 | AU19: 135 | AV19: 2025-10-31 | AW19: 0 | AX19: 72 | BL19: Ja | BM19: Tag der Arbeit | BN19: 2025-05-01 | BO19: 2025-05-01 | BP19: Tag der Arbeit | BQ19: 2025-09-01 | BR19: 2025-09-30 | BS19: September | BT19: 0 | BU19: =IFERROR(INDEX($BN$10:$BN$50,MATCH(1,COUNTIF($BU$10:BU18,$BN$10:$BN$50)+($BN$10:$BN$50<>"")*1,0)),"") -> 2025-12-25 | BV19: 1.Weihn.Tag | BX19: =IFERROR(INDEX($F$12:$F$52,MATCH(1,COUNTIF($BX$10:BX18,$F$12:$F$52)+($F$12:$F$52<>"")*1,0)),"") -> 2025-12-25 | BY19: 2025-12-25 | CB19: 2025-09-01 | CC19: 2025-09-30 | CD19: September | CE19: 0 | CF19: 4 | CI19: 2025-05-01 | CJ19: Tag der Arbeit
A20: Ja | B20: Ja | C20: 2025-04-21 | D20: Ostermontag | E20: =E19+1 -> 2025-04-21 | F20: 2025-04-21 | G20: 2025-04-21 | I20: =DATEVALUE("01.05."&E9) -> 2025-05-01 | J20: =IF(AND(WEEKDAY(I20)=1,DAY(I20)>7),I20,"") ->  | P20: 2025-04-21 | R20: =IF(OR($R$8=D19,$R$7=D19,C19=""),"",IF(WEEKDAY(C19,1)=1,C19,"")) ->  | S20: =IF(OR($R$8=D19,$R$7=D19,C19=""),"",IF(WEEKDAY(C19,1)=1,C19,"")) ->  | U20: 2025-04-21 | V20: 2025-04-30 | W20: 1 | X20: September | Y20: 2025-09-01 | Z20: 2025-09-30 | AA20: 0 | AB20: 2025-04-21 | AC20: September | AE20: 2025-04-21 | AF20: Ostermontag | AG20: Donnerstag | AH20: =IF(IFERROR(INDEX($AE$12:$AE$50,MATCH(1,COUNTIF($AH$11:AH19,$AE$12:$AE$50)+($AE$12:$AE$50<>"")*1,0)),"")="","0",IFERROR(INDEX($AE$12:$AE$50,MATCH(1,COUNTIF($AH$11:AH19,$AE$12:$AE$50)+($AE$12:$AE$50<>"")*1,0)),"")) -> 2025-12-25 | AI20: 1.Weihn.Tag | AJ20: 1 | AK20: 9 | AL20: September | AM20: 0 | AN20: 0 | AO20: 0 | AP20: 0 | AQ20: 0 | AS20: 0 | AT20: 84 | AU20: 130 | AV20: 2025-12-25 | AW20: 0 | AX20: 84 | BL20: Ja | BM20: Himmelfahrt | BN20: 2025-05-29 | BO20: 2025-05-29 | BP20: Himmelfahrt | BQ20: 2025-10-01 | BR20: 2025-10-31 | BS20: Oktober | BT20: 2 | BU20: =IFERROR(INDEX($BN$10:$BN$50,MATCH(1,COUNTIF($BU$10:BU19,$BN$10:$BN$50)+($BN$10:$BN$50<>"")*1,0)),"") -> 2025-12-26 | BV20: 2.Weihn.Tag | BX20: =IFERROR(INDEX($F$12:$F$52,MATCH(1,COUNTIF($BX$10:BX19,$F$12:$F$52)+($F$12:$F$52<>"")*1,0)),"") -> 2025-12-26 | BY20: 2025-12-26 | CB20: 2025-10-01 | CC20: 2025-10-31 | CD20: Oktober | CE20: 0 | CF20: 4 | CI20: 2025-05-29 | CJ20: Himmelfahrt
A21: Ja | B21: Ja | C21: 2025-05-01 | D21: Tag der Arbeit | E21: =DATEVALUE("01.05."&E9) -> 2025-05-01 | F21: 2025-05-01 | G21: 2025-05-01 | I21: =I20+1 -> 2025-05-02 | P21: 2025-05-01 | U21: 2025-05-01 | V21: 2025-05-31 | W21: 2 | X21: Oktober | Y21: 2025-10-01 | Z21: 2025-10-31 | AA21: 2 | AB21: 2025-05-01 | AC21: Oktober | AE21: 2025-05-01 | AF21: Tag der Arbeit | AG21: Freitag | AH21: =IF(IFERROR(INDEX($AE$12:$AE$50,MATCH(1,COUNTIF($AH$11:AH20,$AE$12:$AE$50)+($AE$12:$AE$50<>"")*1,0)),"")="","0",IFERROR(INDEX($AE$12:$AE$50,MATCH(1,COUNTIF($AH$11:AH20,$AE$12:$AE$50)+($AE$12:$AE$50<>"")*1,0)),"")) -> 2025-12-26 | AI21: =IF(AH21="0","",VLOOKUP(AH21,$AE$12:$AF$52,2,FALSE)) -> 2.Weihn.Tag | AJ21: =IF(AH21<>"0",1,"0") -> 1 | AK21: 10 | AL21: Oktober | AM21: 2 | AN21: 0 | AO21: 0 | AP21: 0 | AQ21: -2 | AS21: -2 | AT21: 78 | AU21: 130 | AV21: 2025-12-26 | AW21: =AS21*$AW$9 -> 0 | AX21: 78 | BL21: Nein | BM21: Pfingstsonntag | BP21: Pfingstsonntag | BQ21: 2025-11-01 | BR21: 2025-11-30 | BS21: November | BT21: 0 | BU21: =IFERROR(INDEX($BN$10:$BN$50,MATCH(1,COUNTIF($BU$10:BU20,$BN$10:$BN$50)+($BN$10:$BN$50<>"")*1,0)),"") ->  | BX21: =IFERROR(INDEX($F$12:$F$52,MATCH(1,COUNTIF($BX$10:BX20,$F$12:$F$52)+($F$12:$F$52<>"")*1,0)),"") ->  | CB21: 2025-11-01 | CC21: 2025-11-30 | CD21: November | CE21: 0 | CF21: 5 | CI21: 2025-06-08 | CJ21: Pfingstsonntag
A22: Ja | B22: Ja | C22: 2025-05-29 | D22: Himmelfahrt | E22: =E19+39 -> 2025-05-29 | F22: 2025-05-29 | G22: 2025-05-29 | I22: 2025-05-03 | L22: 2025-04-21 | M22: 2025-04-21 | P22: 2025-05-29 | U22: 2025-05-29 | V22: 2025-05-31 | W22: 1 | X22: November | Y22: 2025-11-01 | Z22: 2025-11-30 | AA22: 0 | AB22: 2025-05-29 | AC22: November | AE22: 2025-05-29 | AF22: Himmelfahrt | AH22: =IF(IFERROR(INDEX($AE$12:$AE$50,MATCH(1,COUNTIF($AH$11:AH21,$AE$12:$AE$50)+($AE$12:$AE$50<>"")*1,0)),"")="","0",IFERROR(INDEX($AE$12:$AE$50,MATCH(1,COUNTIF($AH$11:AH21,$AE$12:$AE$50)+($AE$12:$AE$50<>"")*1,0)),"")) -> 0 | AI22: =IF(AH22="0","",VLOOKUP(AH22,$AE$12:$AF$52,2,FALSE)) ->  | AJ22: =IF(AH22<>"0",1,"0") -> 0 | AK22: 11 | AL22: November | AM22: 0 | AN22: 0 | AO22: 0 | AP22: 0 | AQ22: 0 | AS22: 0 | AT22: 72 | AU22: 130 | AV22: 0 | AW22: =AS22*$AW$9 -> 0 | AX22: 72 | BL22: Ja | BM22: Pfingstmontag | BN22: 2025-06-09 | BO22: 2025-06-09 | BP22: Pfingstmontag | BQ22: 2025-12-01 | BR22: 2025-12-31 | BS22: Dezember | BT22: 2 | BU22: =IFERROR(INDEX($BN$10:$BN$50,MATCH(1,COUNTIF($BU$10:BU21,$BN$10:$BN$50)+($BN$10:$BN$50<>"")*1,0)),"") ->  | BX22: =IFERROR(INDEX($F$12:$F$52,MATCH(1,COUNTIF($BX$10:BX21,$F$12:$F$52)+($F$12:$F$52<>"")*1,0)),"") ->  | CB22: 2025-12-01 | CC22: 2025-12-31 | CD22: Dezember | CE22: 0 | CF22: 4 | CI22: 2025-06-09 | CJ22: Pfingstmontag
A23: Nein | B23: Nein | D23: Pfingstsonntag | E23: =E19+49 -> 2025-06-08 | I23: 2025-05-04 | L23: 2025-05-01 | M23: 2025-05-01 | P23: 1909-03-15 | X23: Dezember | Y23: 2025-12-01 | Z23: 2025-12-31 | AA23: 2 | AC23: Dezember | AF23: Pfingstsonntag | AH23: =IF(IFERROR(INDEX($AE$12:$AE$50,MATCH(1,COUNTIF($AH$11:AH22,$AE$12:$AE$50)+($AE$12:$AE$50<>"")*1,0)),"")="","0",IFERROR(INDEX($AE$12:$AE$50,MATCH(1,COUNTIF($AH$11:AH22,$AE$12:$AE$50)+($AE$12:$AE$50<>"")*1,0)),"")) -> 0 | AJ23: 0 | AK23: 12 | AL23: Dezember | AM23: 2 | AN23: 1 | AO23: 0 | AP23: 0 | AQ23: -2 | AS23: -2 | AT23: 84 | AU23: 130 | AV23: 0 | AW23: =AS23*$AW$9 -> 0 | AX23: 84 | BL23: Nein | BM23: Fronleichnam | BP23: Fronleichnam | CF23: =SUM(CF11:CF22) ->  | CG23: Freie So. | CI23: 2025-06-19 | CJ23: Fronleichnam
A24: Ja | B24: Ja | C24: 2025-06-09 | D24: Pfingstmontag | E24: =E23+1 -> 2025-06-09 | F24: 2025-06-09 | G24: 2025-06-09 | I24: 2025-05-05 | L24: 2025-05-29 | M24: 2025-05-29 | P24: 2025-06-09 | U24: 2025-06-09 | V24: 2025-06-30 | W24: 1 | AA24: =SUM(AA12:AA23) -> 10 | AB24: 2025-06-09 | AE24: 2025-06-09 | AF24: Pfingstmontag | AH24: =IF(IFERROR(INDEX($AE$12:$AE$50,MATCH(1,COUNTIF($AH$11:AH23,$AE$12:$AE$50)+($AE$12:$AE$50<>"")*1,0)),"")="","0",IFERROR(INDEX($AE$12:$AE$50,MATCH(1,COUNTIF($AH$11:AH23,$AE$12:$AE$50)+($AE$12:$AE$50<>"")*1,0)),"")) -> 0 | AJ24: 0 | AM24: =SUM(AM12:AM23) -> 10 | AP24: 0 | AQ24: -10 | AR24: 0 | AS24: -10 | AT24: 936 | AU24: 1560 | AW24: 0 | AX24: 936 | BL24: Nein | BM24: Augsburger Friedensfest | BP24: Augsburger Friedensfest | CF24: =IF(CF23>=BY6,"OK >15 Tage"," Error") ->  | CI24: 2025-08-08 | CJ24: Augsburger Friedensfest
A25: Nein | B25: Nein | D25: Fronleichnam | E25: =E19+60 -> 2025-06-19 | I25: 2025-05-06 | P25: 1909-03-15 | AF25: Fronleichnam | AH25: =IF(IFERROR(INDEX($AE$12:$AE$50,MATCH(1,COUNTIF($AH$11:AH24,$AE$12:$AE$50)+($AE$12:$AE$50<>"")*1,0)),"")="","0",IFERROR(INDEX($AE$12:$AE$50,MATCH(1,COUNTIF($AH$11:AH24,$AE$12:$AE$50)+($AE$12:$AE$50<>"")*1,0)),"")) -> 0 | AJ25: 0 | AR25: Arbeitstage | BL25: Nein | BM25: Maria Himmelf. | BP25: Maria Himmelf. | CI25: 2025-08-15 | CJ25: Maria Himmelf.
A26: Nein | B26: Nein | D26: Augsburger Friedensfest | E26: =DATE(D$9,8,8) -> 2025-08-08 | I26: 2025-05-07 | L26: 2025-06-09 | M26: 2025-06-09 | P26: 1909-03-15 | AF26: Augsburger Friedensfest | AH26: =IF(IFERROR(INDEX($AE$12:$AE$50,MATCH(1,COUNTIF($AH$11:AH25,$AE$12:$AE$50)+($AE$12:$AE$50<>"")*1,0)),"")="","0",IFERROR(INDEX($AE$12:$AE$50,MATCH(1,COUNTIF($AH$11:AH25,$AE$12:$AE$50)+($AE$12:$AE$50<>"")*1,0)),"")) -> 0 | AJ26: 0 | AK26: Arbeitstage | AL26: Sonntag | AR26: =AR55 -> 0 | AS26: Sonntag | AT26: Arbeitstage | BL26: Ja | BM26: Tag d.dt.Einheit | BN26: 2025-10-03 | BO26: 2025-10-03 | BP26: Tag d.dt.Einheit | CI26: 2025-10-03 | CJ26: Tag d.dt.Einheit
A27: Nein | B27: Nein | D27: Maria Himmelf. | E27: =DATEVALUE("15.08."&E9) -> 2025-08-15 | I27: 2025-05-08 | P27: 1909-03-15 | AF27: Maria Himmelf. | AH27: =IF(IFERROR(INDEX($AE$12:$AE$50,MATCH(1,COUNTIF($AH$11:AH26,$AE$12:$AE$50)+($AE$12:$AE$50<>"")*1,0)),"")="","0",IFERROR(INDEX($AE$12:$AE$50,MATCH(1,COUNTIF($AH$11:AH26,$AE$12:$AE$50)+($AE$12:$AE$50<>"")*1,0)),"")) -> 0 | AJ27: 0 | AR27: =AM24 -> 10 | AS27: Feiertage | BL27: Nein | BM27: Winterzeit 1h zurück | BP27: Winterzeit 1h zurück | CA27: =IF(BX27="","",VLOOKUP(BX27,$BX$11:$BZ$51,3,FALSE)) ->  | CI27: 2025-10-26 | CJ27: Winterzeit 1h zurück
A28: Ja | B28: Ja | C28: 2025-10-03 | D28: Tag d.dt.Einheit | E28: =DATEVALUE("03.10."&E9) -> 2025-10-03 | F28: 2025-10-03 | G28: 2025-10-03 | I28: 2025-05-09 | P28: 2025-10-03 | U28: 2025-10-03 | V28: 2025-10-31 | W28: 2 | AB28: 2025-10-03 | AE28: 2025-10-03 | AF28: Tag d.dt.Einheit | AH28: =IF(IFERROR(INDEX($AE$12:$AE$50,MATCH(1,COUNTIF($AH$11:AH27,$AE$12:$AE$50)+($AE$12:$AE$50<>"")*1,0)),"")="","0",IFERROR(INDEX($AE$12:$AE$50,MATCH(1,COUNTIF($AH$11:AH27,$AE$12:$AE$50)+($AE$12:$AE$50<>"")*1,0)),"")) -> 0 | AJ28: 0 | AR28: =(AR27-AR26)*-1 -> -10 | BL28: Ja | BM28: Reformationst. | BN28: 2025-10-31 | BO28: 2025-10-31 | BP28: Reformationst. | CI28: 2025-10-31 | CJ28: Reformationst.
A29: Nein | B29: Nein | C29: =IF(E29="","",IF(AND(B29="ja",WEEKDAY(E29,1)<$F$7),E29,"")) ->  | D29: Winterzeit 1h zurück | E29: =DATE(E9,10,31)-(WEEKDAY(DATE(E9,10,31))-1) -> 2025-10-26 | I29: 2025-05-10 | P29: 1909-03-15 | AF29: Winterzeit 1h zurück | AH29: =IF(IFERROR(INDEX($AE$12:$AE$50,MATCH(1,COUNTIF($AH$11:AH28,$AE$12:$AE$50)+($AE$12:$AE$50<>"")*1,0)),"")="","0",IFERROR(INDEX($AE$12:$AE$50,MATCH(1,COUNTIF($AH$11:AH28,$AE$12:$AE$50)+($AE$12:$AE$50<>"")*1,0)),"")) -> 0 | AJ29: 0 | BL29: Nein | BM29: Frei | BP29: Frei | CI29: 1961-01-22 | CJ29: Frei
A30: Ja | B30: Ja | C30: =IF(E30="","",IF(AND(B30="ja",WEEKDAY(E30,2)<$F$7),E30,"")) -> 2025-10-31 | D30: Reformationst. | E30: =DATEVALUE("31.10."&E9) -> 2025-10-31 | F30: =IF(C30="","",IF(AND(B30="ja",WEEKDAY(C30,2)<$F$7),C30,"")) -> 2025-10-31 | G30: =F30 -> 2025-10-31 | H30: 2017-10-31 | I30: 2025-05-11 | J30: 2025-05-11 | L30: 2025-10-03 | M30: 2025-10-03 | P30: 2025-10-31 | U30: 2025-10-31 | V30: 2025-10-31 | W30: 1 | AB30: 2025-10-31 | AE30: 2025-10-31 | AF30: Reformationst. | AH30: =IF(IFERROR(INDEX($AE$12:$AE$50,MATCH(1,COUNTIF($AH$11:AH29,$AE$12:$AE$50)+($AE$12:$AE$50<>"")*1,0)),"")="","0",IFERROR(INDEX($AE$12:$AE$50,MATCH(1,COUNTIF($AH$11:AH29,$AE$12:$AE$50)+($AE$12:$AE$50<>"")*1,0)),"")) -> 0 | AJ30: 0 | BJ30: Alle 9 Jahre | BL30: Nein | BM30: Frei | BP30: Frei | CI30: 1904-01-01 | CJ30: Frei
A31: Nein | B31: Nein | C31: =IF(E31="","",IF(B31="ja",IF(E31,DATEVALUE(TEXT(E31,"TT.MM")),""),"")) ->  | D31: Frei | E31: 1961-01-22 | I31: 2025-05-12 | L31: 1904-01-01 | M31: 1904-01-01 | P31: 1909-03-15 | AF31: Frei | AH31: =IF(IFERROR(INDEX($AE$12:$AE$50,MATCH(1,COUNTIF($AH$11:AH30,$AE$12:$AE$50)+($AE$12:$AE$50<>"")*1,0)),"")="","0",IFERROR(INDEX($AE$12:$AE$50,MATCH(1,COUNTIF($AH$11:AH30,$AE$12:$AE$50)+($AE$12:$AE$50<>"")*1,0)),"")) -> 0 | AJ31: 0 | AK31: Januar | AM31: Februar | AO31: März | AQ31: April | AS31: Mai | AU31: Juni | AW31: Juli | AY31: August | BA31: September | BC31: Oktober | BE31: November | BG31: Dezember | BJ31: Samstag Feiertag | BL31: Nein | BM31: Frei | BP31: Frei | CI31: 1904-01-01 | CJ31: Frei
A32: Nein | B32: Nein | C32: =IF(E32="","",IF(B32="ja",IF(E32,DATEVALUE(TEXT(E32,"TT.MM")),""),"")) ->  | D32: Frei | I32: 2025-05-13 | L32: 2025-10-31 | M32: 2025-10-31 | P32: 1909-03-15 | AF32: Frei | BJ32: =-366-365-365-365-365-365-1096-365-366-365-365-365-366-365-365-365 -> -6574 | BK32: =BJ32*-1 -> 6574 | BL32: Nein | BM32: Frei | BP32: Frei | CI32: 1904-01-01 | CJ32: Frei
A33: Nein | B33: Nein | C33: =IF(E33="","",IF(B33="ja",IF(E33,DATEVALUE(TEXT(E33,"TT.MM")),""),"")) ->  | D33: Frei | I33: 2025-05-14 | L33: 1904-01-01 | M33: 1904-01-01 | P33: 1909-03-15 | AF33: Frei | AK33: 78 | AM33: 72 | AO33: 78 | AQ33: 78 | AS33: 78 | AU33: 78 | AW33: 84 | AY33: 72 | BA33: 84 | BC33: 78 | BE33: 72 | BG33: 84 | BJ33: Ansere Faormel | BL33: Nein | BM33: Allerheiligen | BP33: Allerheiligen | CI33: 2025-11-01 | CJ33: Allerheiligen
A34: Nein | B34: Nein | C34: =IF(E34="","",IF(B34="ja",IF(E34,DATEVALUE(TEXT(E34,"TT.MM")),""),"")) ->  | D34: Frei | L34: 1904-01-01 | M34: 1904-01-01 | P34: 1909-03-15 | AF34: Frei | BC34: Übertrag | BD34: Sonntag | BE34: Montag | BF34: Dienstag | BG34: Mittwoch | BH34: Donnerstag | BI34: Freitag | BJ34: Samstag | BL34: Nein | BM34: Muttertag | BP34: Muttertag | CI34: 2025-05-11 | CJ34: Muttertag
A35: Nein | B35: Nein | C35: =IF(E35="","",IF(B35="ja",E35,"")) ->  | D35: Allerheiligen | E35: =DATE(D$9,11,1) -> 2025-11-01 | F35: =IF(C35="","",IF(AND(B35="ja",WEEKDAY(C35,2)<$F$7),C35,"")) ->  | G35: =F35 ->  | L35: 1904-01-01 | M35: 1904-01-01 | P35: 1909-03-15 | AF35: Allerheiligen | AH35: =IFERROR(INDEX($AE$12:$AE$50,MATCH(1,COUNTIF($AH11:AH$11,$AE$12:$AE$50)+($AE$12:$AE$50<>"")*1,0)),"") -> 2025-01-01 | AL35: Montag | AM35: Dienstag | AN35: Mittwoch | AO35: Donnerstag | AP35: Freitag | AQ35: Samstag | AR35: Sonntag | BB35: Monate | BD35: Anzahl FT SO | BE35: Anzahl | BF35: Anzahl | BG35: Anzahl | BH35: Anzahl | BI35: Anzahl | BJ35: Anzahl | BL35: Nein | BM35: Maria Himmelf. | BP35: Maria Himmelf. | CI35: 2025-08-15 | CJ35: Maria Himmelf.
A36: Nein | B36: Nein | C36: =IF(E36="","",IF(B36="ja",E36,"")) ->  | D36: Muttertag | E36: =MAX(J20:J33) -> 2025-05-11 | L36: 1904-01-01 | M36: 1904-01-01 | P36: 1909-03-15 | AF36: Muttertag | AH36: =IFERROR(INDEX($AE$12:$AE$50,MATCH(1,COUNTIF($AH$11:AH12,$AE$12:$AE$50)+($AE$12:$AE$50<>"")*1,0)),"") -> 2025-04-18 | AK36: =AH12 -> 2025-01-01 | AL36: =IF(AH12="","",IF(IF(WEEKDAY(AH12)=2,AK36)=0,"0",IF(WEEKDAY(AH12)=2,AK36,"0"))) -> 0 | AM36: =IF(AH12="","",IF(IF(WEEKDAY(AH12)=3,AK36)=0,"0",IF(WEEKDAY(AH12)=3,AK36,"0"))) -> 0 | AN36: =IF(AH12="","",IF(IF(WEEKDAY(AH12)=4,AK36)=0,"0",IF(WEEKDAY(AH12)=4,AK36,"0"))) -> 2025-01-01 | AO36: =IF(AH12="","",IF(IF(WEEKDAY(AH12)=5,AK36)=0,"0",IF(WEEKDAY(AH12)=5,AK36,"0"))) -> 0 | AP36: =IF(AH12="","",IF(IF(WEEKDAY(AH12)=6,AK36)=0,"0",IF(WEEKDAY(AH12)=6,AK36,"0"))) -> 0 | AQ36: =IF(AH12="","",IF(IF(WEEKDAY(AH12)=7,AK36)=0,"0",IF(WEEKDAY(AH12)=7,AK36,"0"))) -> 0 | AR36: =IF(AH12="","",IF(IF(WEEKDAY(AH12)=1,AK36)=0,"0",IF(WEEKDAY(AH12)=1,AK36,"0"))) -> 0 | AS36: =AL36 -> 0 | AT36: 0 | AU36: 2025-01-01 | AV36: 0 | AW36: 0 | AX36: 0 | AY36: 0 | AZ36: =IFERROR(VLOOKUP(AR36,$AH$12:$AH$31,1,FALSE),"") -> 0 | BA36: =AJ12 -> 1 | BB36: 1 | BC36: Januar | BD36: =IFERROR(IF(SUMPRODUCT((MONTH($AR$36:$AR$55)=BB36)*($BA$36:$BA$55))>2,0,SUMPRODUCT((MONTH($AR$36:$AR$55)=BB36)*($BA$36:$BA$55))),"0") -> 0 | BE36: =IF(SUMPRODUCT((MONTH($AL$36:$AL$52)=BB36)*($BA$36:$BA$52))>2,0,SUMPRODUCT((MONTH($AL$36:$AL$52)=BB36)*($BA$36:$BA$52))) -> 0 | BF36: =IF(SUMPRODUCT((MONTH($AM$36:$AM$52)=BB36)*($BA$36:$BA$52))>2,0,SUMPRODUCT((MONTH($AM$36:$AM$52)=BB36)*($BA$36:$BA$52))) -> 0 | BG36: =IF(SUMPRODUCT((MONTH($AN$36:$AN$52)=BB36)*($BA$36:$BA$52))>2,0,SUMPRODUCT((MONTH($AN$36:$AN$52)=BB36)*($BA$36:$BA$52))) -> 0 | BH36: =IF(SUMPRODUCT((MONTH($AO$36:$AO$52)=BB36)*($BA$36:$BA$52))>2,0,SUMPRODUCT((MONTH($AO$36:$AO$52)=BB36)*($BA$36:$BA$52))) -> 0 | BI36: =IF(SUMPRODUCT((MONTH($AP$36:$AP$52)=BB36)*($BA$36:$BA$52))>2,0,SUMPRODUCT((MONTH($AP$36:$AP$52)=BB36)*($BA$36:$BA$52))) -> 0 | BJ36: =IF(SUMPRODUCT((MONTH($AQ$36:$AQ$52)=BB36)*($BA$36:$BA$52))>2,0,SUMPRODUCT((MONTH($AQ$36:$AQ$52)=BB36)*($BA$36:$BA$52)))+BK36 -> 0 | BK36: =IF(WEEKDAY(AQ36,2)=6,1,"0") -> 0 | BL36: Nein | BM36: Totensonntag | BP36: Totensonntag | CI36: 2025-11-23 | CJ36: Totensonntag
A37: Nein | B37: Nein | C37: =IF(E37="","",IF(AND(B37="ja",WEEKDAY(E37,2)<$F$7),E37,"")) ->  | D37: Maria Himmelf. | E37: =DATEVALUE("15.08."&E9) -> 2025-08-15 | F37: =IF(C37="","",IF(AND(B37="ja",WEEKDAY(C37,2)<$F$7),C37,"")) ->  | G37: =F37 ->  | P37: 1909-03-15 | AF37: Maria Himmelf. | AH37: =IFERROR(INDEX($AE$12:$AE$50,MATCH(1,COUNTIF($AH$11:AH13,$AE$12:$AE$50)+($AE$12:$AE$50<>"")*1,0)),"") -> 2025-04-21 | AK37: 2025-04-18 | AL37: =IF(AH13="","",IF(IF(WEEKDAY(AH13)=2,AK37)=0,"0",IF(WEEKDAY(AH13)=2,AK37,"0"))) -> 0 | AM37: =IF(AH13="","",IF(IF(WEEKDAY(AH13)=3,AK37)=0,"0",IF(WEEKDAY(AH13)=3,AK37,"0"))) -> 0 | AN37: =IF(AH13="","",IF(IF(WEEKDAY(AH13)=4,AK37)=0,"0",IF(WEEKDAY(AH13)=4,AK37,"0"))) -> 0 | AO37: =IF(AH13="","",IF(IF(WEEKDAY(AH13)=5,AK37)=0,"0",IF(WEEKDAY(AH13)=5,AK37,"0"))) -> 0 | AP37: =IF(AH13="","",IF(IF(WEEKDAY(AH13)=6,AK37)=0,"0",IF(WEEKDAY(AH13)=6,AK37,"0"))) -> 2025-04-18 | AQ37: =IF(AH13="","",IF(IF(WEEKDAY(AH13)=7,AK37)=0,"0",IF(WEEKDAY(AH13)=7,AK37,"0"))) -> 0 | AR37: =IF(AH13="","",IF(IF(WEEKDAY(AH13)=1,AK37)=0,"0",IF(WEEKDAY(AH13)=1,AK37,"0"))) -> 0 | AS37: 0 | AT37: 0 | AU37: 0 | AV37: 0 | AW37: 2025-04-18 | AX37: 0 | AY37: 0 | AZ37: =IFERROR(VLOOKUP(AR37,$AH$12:$AH$31,1,FALSE),"") -> 0 | BA37: =AJ13 -> 1 | BB37: 2 | BC37: Februar | BD37: =IFERROR(IF(SUMPRODUCT((MONTH($AR$36:$AR$55)=BB37)*($BA$36:$BA$55))>2,0,SUMPRODUCT((MONTH($AR$36:$AR$55)=BB37)*($BA$36:$BA$55))),"0") -> 0 | BE37: =IF(SUMPRODUCT((MONTH($AL$36:$AL$52)=BB37)*($BA$36:$BA$52))>2,0,SUMPRODUCT((MONTH($AL$36:$AL$52)=BB37)*($BA$36:$BA$52))) -> 0 | BF37: =IF(SUMPRODUCT((MONTH($AM$36:$AM$52)=BB37)*($BA$36:$BA$52))>2,0,SUMPRODUCT((MONTH($AM$36:$AM$52)=BB37)*($BA$36:$BA$52))) -> 0 | BG37: =IF(SUMPRODUCT((MONTH($AN$36:$AN$52)=BB37)*($BA$36:$BA$52))>2,0,SUMPRODUCT((MONTH($AN$36:$AN$52)=BB37)*($BA$36:$BA$52))) -> 0 | BH37: =IF(SUMPRODUCT((MONTH($AO$36:$AO$52)=BB37)*($BA$36:$BA$52))>2,0,SUMPRODUCT((MONTH($AO$36:$AO$52)=BB37)*($BA$36:$BA$52))) -> 0 | BI37: =IF(SUMPRODUCT((MONTH($AP$36:$AP$52)=BB37)*($BA$36:$BA$52))>2,0,SUMPRODUCT((MONTH($AP$36:$AP$52)=BB37)*($BA$36:$BA$52))) -> 0 | BJ37: =IF(SUMPRODUCT((MONTH($AQ$36:$AQ$52)=BB37)*($BA$36:$BA$52))>2,0,SUMPRODUCT((MONTH($AQ$36:$AQ$52)=BB37)*($BA$36:$BA$52)))+BK37 -> 0 | BL37: Nein | BM37: 1. Advent | BP37: 1. Advent | CI37: 2025-11-30 | CJ37: 1. Advent
A38: Nein | B38: Nein | C38: =IF(E38="","",IF(AND(B38="ja",WEEKDAY(E38,2)<$F$7),E38,"")) ->  | D38: Totensonntag | E38: =E44+4 -> 2025-11-23 | L38: 1904-01-01 | M38: 1904-01-01 | P38: 1909-03-15 | AF38: Totensonntag | AH38: =IFERROR(INDEX($AE$12:$AE$50,MATCH(1,COUNTIF($AH$11:AH14,$AE$12:$AE$50)+($AE$12:$AE$50<>"")*1,0)),"") -> 2025-05-01 | AK38: 2025-04-21 | AL38: 2025-04-21 | AM38: 0 | AN38: 0 | AO38: 0 | AP38: 0 | AQ38: 0 | AR38: 0 | AS38: 2025-04-21 | AT38: 0 | AU38: 0 | AV38: 0 | AW38: 0 | AX38: 0 | AY38: 0 | AZ38: 0 | BA38: 1 | BB38: 3 | BC38: März | BD38: 0 | BE38: 0 | BF38: 0 | BG38: 0 | BH38: 0 | BI38: 0 | BJ38: 0 | BL38: Nein | BM38: 2. Advent | BP38: 2. Advent | CI38: 2025-12-07 | CJ38: 2. Advent
A39: Nein | B39: Nein | C39: =IF(E39="","",IF(B39="ja",E39,"")) ->  | D39: 1. Advent | E39: =E44+11 -> 2025-11-30 | P39: 1909-03-15 | AF39: 1. Advent | AH39: =IFERROR(INDEX($AE$12:$AE$50,MATCH(1,COUNTIF($AH$11:AH15,$AE$12:$AE$50)+($AE$12:$AE$50<>"")*1,0)),"") -> 2025-05-29 | AK39: 2025-05-01 | AL39: 0 | AM39: 0 | AN39: 0 | AO39: 2025-05-01 | AP39: 0 | AQ39: 0 | AR39: 0 | AS39: 0 | AT39: 0 | AU39: 0 | AV39: 2025-05-01 | AW39: 0 | AX39: 0 | AY39: 0 | AZ39: 0 | BA39: 1 | BB39: 4 | BC39: April | BD39: 0 | BE39: 1 | BF39: 0 | BG39: 0 | BH39: 0 | BI39: 1 | BJ39: 0 | BL39: Nein | BM39: 3. Advent | BN39: =IF(E41="","",IF(A41="ja",E41,"")) ->  | BP39: 3. Advent | CI39: 2025-12-14 | CJ39: 3. Advent
A40: Nein | B40: Nein | C40: =IF(E40="","",IF(B40="ja",E40,"")) ->  | D40: 2. Advent | E40: =E44+18 -> 2025-12-07 | L40: 1904-01-01 | M40: 1904-01-01 | P40: 1909-03-15 | AF40: 2. Advent | AH40: =IFERROR(INDEX($AE$12:$AE$50,MATCH(1,COUNTIF($AH$11:AH16,$AE$12:$AE$50)+($AE$12:$AE$50<>"")*1,0)),"") -> 2025-06-09 | AK40: 2025-05-29 | AL40: 0 | AM40: 0 | AN40: 0 | AO40: 2025-05-29 | AP40: 0 | AQ40: 0 | AR40: 0 | AS40: 0 | AT40: 0 | AU40: 0 | AV40: 2025-05-29 | AW40: 0 | AX40: 0 | AY40: 0 | AZ40: 0 | BA40: 1 | BB40: 5 | BC40: Mai | BD40: 0 | BE40: 0 | BF40: 0 | BG40: 0 | BH40: 2 | BI40: 0 | BJ40: 0 | BL40: Nein | BM40: 4. Advent | BN40: =IF(E42="","",IF(A42="ja",E42,"")) ->  | BP40: 4. Advent | CI40: 2025-12-21 | CJ40: 4. Advent
A41: Nein | B41: Nein | C41: =IF(E41="","",IF(B41="ja",E41,"")) ->  | D41: 3. Advent | E41: =E44+25 -> 2025-12-14 | L41: 1904-01-01 | M41: 1904-01-01 | P41: 1909-03-15 | AF41: 3. Advent | AH41: =IFERROR(INDEX($AE$12:$AE$50,MATCH(1,COUNTIF($AH$11:AH17,$AE$12:$AE$50)+($AE$12:$AE$50<>"")*1,0)),"") -> 2025-10-03 | AK41: 2025-06-09 | AL41: 2025-06-09 | AM41: 0 | AN41: 0 | AO41: 0 | AP41: 0 | AQ41: 0 | AR41: 0 | AS41: 2025-06-09 | AT41: 0 | AU41: 0 | AV41: 0 | AW41: 0 | AX41: 0 | AY41: 0 | AZ41: 0 | BA41: 1 | BB41: 6 | BC41: Juni | BD41: 0 | BE41: 1 | BF41: 0 | BG41: 0 | BH41: 0 | BI41: 0 | BJ41: 0 | BL41: Nein | BM41: Frei | BP41: Frei | CI41: 1904-01-01 | CJ41: Frei
A42: Nein | B42: Nein | C42: =IF(E42="","",IF(B42="ja",E42,"")) ->  | D42: 4. Advent | E42: =E44+32 -> 2025-12-21 | K42: =IFERROR(IF(G42="","",IF(AND(B42="ja",WEEKDAY(C42,2)=6),C42,"")),"") ->  | L42: 1904-01-01 | M42: 1904-01-01 | P42: 1909-03-15 | AF42: 4. Advent | AH42: =IFERROR(INDEX($AE$12:$AE$50,MATCH(1,COUNTIF($AH$11:AH18,$AE$12:$AE$50)+($AE$12:$AE$50<>"")*1,0)),"") -> 2025-10-31 | AK42: 2025-10-03 | AL42: 0 | AM42: 0 | AN42: 0 | AO42: 0 | AP42: 2025-10-03 | AQ42: 0 | AR42: 0 | AS42: 0 | AT42: 0 | AU42: 0 | AV42: 0 | AW42: 2025-10-03 | AX42: 0 | AY42: 0 | AZ42: 0 | BA42: 1 | BB42: 7 | BC42: Juli | BD42: 0 | BE42: 0 | BF42: 0 | BG42: 0 | BH42: 0 | BI42: 0 | BJ42: 0 | BL42: Nein | BM42: Buß-und Bettag | BP42: Buß-und Bettag | CI42: 2025-11-19 | CJ42: Buß-und Bettag
A43: Nein | B43: Nein | C43: =IF(E43="","",IF(B43="ja",IF(E43,DATEVALUE(TEXT(E43,"TT.MM")),""),"")) ->  | D43: Frei | L43: 1904-01-01 | M43: 1904-01-01 | P43: 1909-03-15 | AF43: Frei | AH43: =IFERROR(INDEX($AE$12:$AE$50,MATCH(1,COUNTIF($AH$11:AH19,$AE$12:$AE$50)+($AE$12:$AE$50<>"")*1,0)),"") -> 2025-12-25 | AK43: 2025-10-31 | AL43: 0 | AM43: 0 | AN43: 0 | AO43: 0 | AP43: 2025-10-31 | AQ43: 0 | AR43: 0 | AS43: 0 | AT43: 0 | AU43: 0 | AV43: 0 | AW43: 2025-10-31 | AX43: 0 | AY43: 0 | AZ43: 0 | BA43: 1 | BB43: 8 | BC43: August | BD43: 0 | BE43: 0 | BF43: 0 | BG43: 0 | BH43: 0 | BI43: 0 | BJ43: 0 | BL43: Nein | BM43: Heiligabend ½ Tag frei bei GZ | BP43: Heiligabend ½ Tag frei bei GZ | CI43: 2025-12-24 | CJ43: Heiligabend ½ Tag frei bei GZ
A44: Nein | B44: Nein | C44: =IF(E44="","",IF(AND(B44="ja",WEEKDAY(E44,2)<$F$7),E44,"")) ->  | D44: Buß-und Bettag | E44: =MIN(J10:J17) -> 2025-11-19 | F44: =IF(C44="","",IF(AND(B44="ja",WEEKDAY(C44,2)<$F$7),C44,"")) ->  | G44: =F44 ->  | L44: 1904-01-01 | M44: 1904-01-01 | P44: 1909-03-15 | AF44: Buß-und Bettag | AH44: =IFERROR(INDEX($AE$12:$AE$50,MATCH(1,COUNTIF($AH$11:AH20,$AE$12:$AE$50)+($AE$12:$AE$50<>"")*1,0)),"") -> 2025-12-26 | AK44: 2025-12-25 | AL44: 0 | AM44: 0 | AN44: 0 | AO44: 2025-12-25 | AP44: 0 | AQ44: 0 | AR44: 0 | AS44: 0 | AT44: 0 | AU44: 0 | AV44: 2025-12-25 | AW44: 0 | AX44: 0 | AY44: 0 | AZ44: 0 | BA44: 1 | BB44: 9 | BC44: September | BD44: 0 | BE44: 0 | BF44: 0 | BG44: 0 | BH44: 0 | BI44: 0 | BJ44: 0 | BL44: Ja | BM44: 1.Weihn.Tag | BN44: 2025-12-25 | BO44: 2025-12-25 | BP44: 1.Weihn.Tag | CI44: 2025-12-25 | CJ44: 1.Weihn.Tag
A45: Nein | B45: Nein | C45: =IF(E45="","",IF(AND(B45="ja",WEEKDAY(E45,2)<$F$7),E45,"")) ->  | D45: Heiligabend ½ Tag frei bei GZ | E45: =DATE(D$9,12,24) -> 2025-12-24 | F45: =IF(C45="","",IF(AND(B45="ja",WEEKDAY(C45,2)<$F$7),C45,"")) ->  | G45: =F45 ->  | L45: 1904-01-01 | M45: 1904-01-01 | P45: 1909-03-15 | AF45: Heiligabend ½ Tag frei bei GZ | AH45: =IFERROR(INDEX($AE$12:$AE$50,MATCH(1,COUNTIF($AH$11:AH21,$AE$12:$AE$50)+($AE$12:$AE$50<>"")*1,0)),"") ->  | AK45: 2025-12-26 | AL45: 0 | AM45: 0 | AN45: 0 | AO45: 0 | AP45: 2025-12-26 | AQ45: 0 | AR45: 0 | AS45: 0 | AT45: 0 | AU45: 0 | AV45: 0 | AW45: 2025-12-26 | AX45: 0 | AY45: 0 | AZ45: 0 | BA45: 1 | BB45: 10 | BC45: Oktober | BD45: 0 | BE45: 0 | BF45: 0 | BG45: 0 | BH45: 0 | BI45: 2 | BJ45: 0 | BL45: Ja | BM45: 2.Weihn.Tag | BN45: 2025-12-26 | BO45: 2025-12-26 | BP45: 2.Weihn.Tag | CI45: 2025-12-26 | CJ45: 2.Weihn.Tag
A46: Ja | B46: Ja | C46: =IF(E46="","",IF(AND(B46="ja",WEEKDAY(E46,2)<$F$7),E46,"")) -> 2025-12-25 | D46: 1.Weihn.Tag | E46: =DATE(D$9,12,25) -> 2025-12-25 | F46: =IF(C46="","",IF(AND(B46="ja",WEEKDAY(C46,2)<$F$7),C46,"")) -> 2025-12-25 | G46: =F46 -> 2025-12-25 | P46: 2025-12-25 | U46: 2025-12-25 | V46: 2025-12-31 | W46: 2 | AB46: 2025-12-25 | AE46: 2025-12-25 | AF46: 1.Weihn.Tag | AH46: =IFERROR(INDEX($AE$12:$AE$50,MATCH(1,COUNTIF($AH$11:AH22,$AE$12:$AE$50)+($AE$12:$AE$50<>"")*1,0)),"") ->  | AK46: 0 | AL46: 0 | AM46: 0 | AN46: 0 | AO46: 0 | AP46: 0 | AQ46: 0 | AR46: 0 | AS46: 0 | AT46: 0 | AU46: 0 | AV46: 0 | AW46: 0 | AX46: 0 | AY46: 0 | AZ46: 0 | BA46: 0 | BB46: 11 | BC46: November | BD46: 0 | BE46: 0 | BF46: 0 | BG46: 0 | BH46: 0 | BI46: 0 | BJ46: 0 | BL46: Nein | BM46: Ende Lohnfortzahlung | BP46: Ende Lohnfortzahlung | CI46: 2025-12-02 | CJ46: Ende Lohnfortzahlung
A47: Ja | B47: Ja | C47: =IF(E47="","",IF(B47="ja",E47,"")) -> 2025-12-26 | D47: 2.Weihn.Tag | E47: =DATE(D$9,12,26) -> 2025-12-26 | F47: =IF(C47="","",IF(AND(B47="ja",WEEKDAY(C47,2)<$F$7),C47,"")) -> 2025-12-26 | G47: =F47 -> 2025-12-26 | P47: 2025-12-26 | U47: 2025-12-26 | V47: 2025-12-31 | W47: 1 | AB47: 2025-12-26 | AE47: 2025-12-26 | AF47: 2.Weihn.Tag | AH47: =IFERROR(INDEX($AE$12:$AE$50,MATCH(1,COUNTIF($AH$11:AH23,$AE$12:$AE$50)+($AE$12:$AE$50<>"")*1,0)),"") ->  | AK47: 0 | AL47: 0 | AM47: 0 | AN47: 0 | AO47: 0 | AP47: 0 | AQ47: 0 | AR47: 0 | AS47: 0 | AT47: 0 | AU47: 0 | AV47: 0 | AW47: 0 | AX47: 0 | AY47: 0 | AZ47: 0 | BA47: 0 | BB47: 12 | BC47: Dezember | BD47: 0 | BE47: 0 | BF47: 0 | BG47: 0 | BH47: 1 | BI47: 1 | BJ47: 0 | BL47: Nein | BM47: Silvester ½ Tag Frei GZ | BP47: Silvester ½ Tag Frei GZ | CI47: 2025-12-31 | CJ47: Silvester ½ Tag Frei GZ
A48: Nein | B48: Nein | C48: =IF(E48="","",IF(AND(B48="ja",WEEKDAY(E48,1)<$F$7),E48,"")) ->  | D48: Ende Lohnfortzahlung | E48: =TODAY()+78 -> 2025-12-02 | F48: =IF(C48="","",IF(AND(B48="ja",WEEKDAY(C48,2)<$F$7),C48,"")) ->  | G48: =F48 ->  | L48: 2025-12-25 | M48: 2025-12-25 | P48: 1909-03-15 | AF48: Ende Lohnfortzahlung | AH48: =IFERROR(INDEX($AE$12:$AE$50,MATCH(1,COUNTIF($AH$11:AH24,$AE$12:$AE$50)+($AE$12:$AE$50<>"")*1,0)),"") ->  | AL48: 0 | AM48: 0 | AN48: 0 | AO48: 0 | AP48: 0 | AQ48: 0 | AR48: 0 | AS48: 0 | AT48: 0 | AU48: 0 | AV48: 0 | AW48: 0 | AX48: 0 | AY48: 0 | AZ48: 0 | BA48: 0 | BC48: =SUM(BD48:BJ48) -> 0 | BD48: =SUM(BD36:BD47) -> 0 | BL48: Nein | BM48: Geb. Werner | BP48: Geb. Werner | CI48: 1961-01-21 | CJ48: Geb. Werner
A49: Nein | B49: Nein | C49: =IF(E49="","",IF(AND(B49="ja",WEEKDAY(E49,2)<$F$7),E49,"")) ->  | D49: Silvester ½ Tag Frei GZ | E49: =DATEVALUE("31.12."&E9) -> 2025-12-31 | K49: =IF(G49="","",IF(AND(B49="ja",WEEKDAY(C49,2)=6),C49,"")) ->  | L49: 2025-12-26 | M49: 2025-12-26 | P49: 1909-03-15 | AF49: Silvester ½ Tag Frei GZ | AH49: =IFERROR(INDEX($AE$12:$AE$50,MATCH(1,COUNTIF($AH$11:AH25,$AE$12:$AE$50)+($AE$12:$AE$50<>"")*1,0)),"") ->  | AL49: 0 | AM49: 0 | AN49: 0 | AO49: 0 | AP49: 0 | AQ49: 0 | AR49: 0 | AS49: 0 | AT49: 0 | AU49: 0 | AV49: 0 | AW49: 0 | AX49: 0 | AY49: 0 | AZ49: 0 | BA49: 0 | BC49: =SUM(BD49:BJ49) -> 9 | BE49: =SUM(BE36:BE47) -> 2 | BF49: 0 | BG49: 0 | BH49: 3 | BI49: 4 | BJ49: 0 | BK49: 0 | BL49: Nein | BM49: Geb.Sabine | BP49: Geb.Sabine | CI49: 1962-07-30 | CJ49: Geb.Sabine
A50: Nein | B50: Nein | C50: =IF(E50="","",IF(B50="ja",IF(E50,DATEVALUE(TEXT(E50,"TT.MM")),""),"")) ->  | D50: Geb. Werner | E50: 1961-01-21 | P50: 1909-03-15 | AF50: Geb. Werner | AH50: =IFERROR(INDEX($AE$12:$AE$50,MATCH(1,COUNTIF($AH$11:AH26,$AE$12:$AE$50)+($AE$12:$AE$50<>"")*1,0)),"") ->  | AL50: 0 | AM50: 0 | AN50: 0 | AO50: 0 | AP50: 0 | AQ50: 0 | AR50: 0 | AS50: 0 | AT50: 0 | AU50: 0 | AV50: 0 | AW50: 0 | AX50: 0 | AY50: 0 | AZ50: 0 | BA50: 0 | BL50: Nein | BM50: Geb. S.Wersal | BP50: Geb. S.Wersal | CI50: 1973-08-16 | CJ50: Geb. S.Wersal
A51: Nein | B51: Nein | C51: =IF(E51="","",IF(B51="ja",IF(E51,DATEVALUE(TEXT(E51,"TT.MM")),""),"")) ->  | D51: Geb.Sabine | E51: 1962-07-30 | L51: 1904-01-01 | M51: 1904-01-01 | P51: 1909-03-15 | AF51: Geb.Sabine | AH51: =IFERROR(INDEX($AE$12:$AE$50,MATCH(1,COUNTIF($AH$11:AH27,$AE$12:$AE$50)+($AE$12:$AE$50<>"")*1,0)),"") ->  | AL51: 0 | AM51: 0 | AN51: 0 | AO51: 0 | AP51: 0 | AQ51: 0 | AR51: 0 | AS51: 0 | AT51: 0 | AU51: 0 | AV51: 0 | AW51: 0 | AX51: 0 | AY51: 0 | AZ51: 0 | BA51: 0
A52: Nein | B52: Nein | C52: =IF(E52="","",IF(B52="ja",IF(E52,DATEVALUE(TEXT(E52,"TT.MM")),""),"")) ->  | D52: Geb. S.Wersal | E52: 1973-08-16 | L52: 1904-01-01 | M52: 1904-01-01 | P52: 1909-03-15 | AF52: Geb. S.Wersal | AH52: =IFERROR(INDEX($AE$12:$AE$50,MATCH(1,COUNTIF($AH$11:AH28,$AE$12:$AE$50)+($AE$12:$AE$50<>"")*1,0)),"") ->  | AL52: 0 | AM52: 0 | AN52: 0 | AO52: 0 | AP52: 0 | AQ52: 0 | AR52: 0 | AS52: =AL52 -> 0 | AT52: 0 | AU52: 0 | AV52: 0 | AW52: 0 | AX52: 0 | AY52: 0 | AZ52: 0 | BA52: 0
L53: 1904-01-01 | M53: 1904-01-01 | P53: 1909-03-15 | AH53: =IFERROR(INDEX($AE$12:$AE$50,MATCH(1,COUNTIF($AH$11:AH29,$AE$12:$AE$50)+($AE$12:$AE$50<>"")*1,0)),"") ->  | AL53: =IF(COUNT(AL36:AL52)=0,"0",COUNT(AL36:AL52)) -> 2 | AM53: 0 | AN53: 1 | AO53: 3 | AP53: 4 | AQ53: 0 | AR53: =IF(COUNT(AR36:AR52)=0,"0",COUNT(AR36:AR52)) -> 0 | AS53: =IF(COUNT(AS36:AS52)=0,"",COUNT(AS36:AS52)) -> 2 | AU53: 1 | AV53: 3 | AW53: 4
C54: =IF(E47="","",IF(AND(B47="ja",WEEKDAY(E47,2)<$F$7),E47,"")) -> 2025-12-26 | F54: Eintritsdatum | AJ54: Frei an FT | AK54: =SUM(AL54:AQ54) -> 10 | AL54: =AL53 -> 2 | AM54: 0 | AN54: 1 | AO54: 3 | AP54: 4 | AQ54: 0
D55: Händich | F55: =#REF! ->  | G55: =COUNT(G56:G66) -> 0 | H55: =COUNT(H56:H66) -> 0 | I55: Samstage | J55: =COUNT(J56:J66) -> 10 | AJ55: Arbeitstage | AK55: =SUM(AL55:AR55) -> 0 | AR55: =AR53 -> 0
D56: Neujahr | E56: 2022-01-01 | F56: =VLOOKUP(D56,$D$12:$E$47,2,FALSE) -> 2025-01-01 | G56: =IF(F56>$F$55,IF(WEEKDAY(F56,2)=7,"",F56),"") ->  | H56: =IF(WEEKDAY(F56,2)=6,F56,"") ->  | J56: =IF(F56>=$B$7,IF(WEEKDAY(F56,2)=7,"",F56),"") -> 2025-01-01
D57: Karfreitag | E57: 2022-04-15 | F57: =VLOOKUP(D57,$D$12:$E$47,2,FALSE) -> 2025-04-18 | J57: =IF(F57>=$B$7,IF(WEEKDAY(F57,2)=7,"",F57),"") -> 2025-04-18
B58: =E19-2 -> 2025-04-18 | D58: Ostersonntag | E58: 2022-04-17 | F58: =VLOOKUP(D58,$D$12:$E$47,2,FALSE) -> 2025-04-20
D59: Ostermontag | E59: 2022-04-18 | F59: =VLOOKUP(D59,$D$12:$E$47,2,FALSE) -> 2025-04-21 | J59: 2025-04-21
D60: Tag der Arbeit | E60: 2022-05-01 | F60: =VLOOKUP(D60,$D$12:$E$47,2,FALSE) -> 2025-05-01 | J60: 2025-05-01
D61: Himmelfahrt | E61: 2022-05-26 | F61: 2025-05-29 | J61: 2025-05-29
D62: Pfingstmontag | E62: 2022-06-06 | F62: 2025-06-09 | J62: 2025-06-09
D63: Tag d.dt.Einheit | E63: 2022-10-03 | F63: 2025-10-03 | J63: 2025-10-03
D64: Reformationst. | E64: 2022-10-31 | F64: 2025-10-31 | J64: 2025-10-31
D65: 1.Weihn.Tag | E65: 2022-12-25 | F65: 2025-12-25 | J65: 2025-12-25
D66: 2.Weihn.Tag | E66: 2022-12-26 | F66: 2025-12-26 | J66: 2025-12-26

Sheet Kalender
A1: Inhalt | F1: Feiertage
C2: ="Kalender " &gewJahr -> Kalender 2025 | G2: Rechnungslauf | P2: ="Kalender " &gewJahr -> Kalender 2025
A4: Januar | C4: Februar | E4: März | G4: April | I4: Mai | K4: Juni | M4: Juli | O4: August | Q4: September | S4: Oktober | U4: November | W4: Dezember
A5: =DATE(gewJahr,1,1) -> 2025-01-01 | B5: =IFERROR(IF(ISNA(VLOOKUP(A5,Feiertage!$C$12:$D$53,1,0)),VLOOKUP(A5,Feiertage!$C$12:$D$53,2,0),VLOOKUP(A5,Feiertage!$C$12:$D$53,2)),"") -> Neujahr | C5: =DATE(gewJahr,2,1) -> 2025-02-01 | D5: =IFERROR(IF(ISNA(VLOOKUP(C5,Feiertage!$C$12:$D$53,1,0)),VLOOKUP(C5,Feiertage!$C$12:$D$53,2,0),VLOOKUP(C5,Feiertage!$C$12:$D$53,2)),"") ->  | E5: =DATE(gewJahr,3,1) -> 2025-03-01 | F5: =IFERROR(IF(ISNA(VLOOKUP(E5,Feiertage!$C$12:$D$53,1,0)),VLOOKUP(E5,Feiertage!$C$12:$D$53,2,0),VLOOKUP(E5,Feiertage!$C$12:$D$53,2)),"") ->  | G5: =DATE(gewJahr,4,1) -> 2025-04-01 | H5: =IFERROR(IF(ISNA(VLOOKUP(G5,Feiertage!$C$12:$D$53,1,0)),VLOOKUP(G5,Feiertage!$C$12:$D$53,2,0),VLOOKUP(G5,Feiertage!$C$12:$D$53,2)),"") ->  | I5: =DATE(gewJahr,5,1) -> 2025-05-01 | J5: =IFERROR(IF(ISNA(VLOOKUP(I5,Feiertage!$C$12:$D$53,1,0)),VLOOKUP(I5,Feiertage!$C$12:$D$53,2,0),VLOOKUP(I5,Feiertage!$C$12:$D$53,2)),"") -> Tag der Arbeit | K5: =DATE(gewJahr,6,1) -> 2025-06-01 | L5: =IFERROR(IF(ISNA(VLOOKUP(K5,Feiertage!$C$12:$D$53,1,0)),VLOOKUP(K5,Feiertage!$C$12:$D$53,2,0),VLOOKUP(K5,Feiertage!$C$12:$D$53,2)),"") ->  | M5: =DATE(gewJahr,7,1) -> 2025-07-01 | N5: =IFERROR(IF(ISNA(VLOOKUP(M5,Feiertage!$C$12:$D$53,1,0)),VLOOKUP(M5,Feiertage!$C$12:$D$53,2,0),VLOOKUP(M5,Feiertage!$C$12:$D$53,2)),"") ->  | O5: =DATE(gewJahr,8,1) -> 2025-08-01 | P5: =IFERROR(IF(ISNA(VLOOKUP(O5,Feiertage!$C$12:$D$53,1,0)),VLOOKUP(O5,Feiertage!$C$12:$D$53,2,0),VLOOKUP(O5,Feiertage!$C$12:$D$53,2)),"") ->  | Q5: =DATE(gewJahr,9,1) -> 2025-09-01 | R5: =IFERROR(IF(ISNA(VLOOKUP(Q5,Feiertage!$C$12:$D$53,1,0)),VLOOKUP(Q5,Feiertage!$C$12:$D$53,2,0),VLOOKUP(Q5,Feiertage!$C$12:$D$53,2)),"") ->  | S5: =DATE(gewJahr,10,1) -> 2025-10-01 | T5: =IFERROR(IF(ISNA(VLOOKUP(S5,Feiertage!$C$12:$D$53,1,0)),VLOOKUP(S5,Feiertage!$C$12:$D$53,2,0),VLOOKUP(S5,Feiertage!$C$12:$D$53,2)),"") ->  | U5: =DATE(gewJahr,11,1) -> 2025-11-01 | V5: =IFERROR(IF(ISNA(VLOOKUP(U5,Feiertage!$C$12:$D$53,1,0)),VLOOKUP(U5,Feiertage!$C$12:$D$53,2,0),VLOOKUP(U5,Feiertage!$C$12:$D$53,2)),"") ->  | W5: =DATE(gewJahr,12,1) -> 2025-12-01 | X5: =IFERROR(IF(ISNA(VLOOKUP(W5,Feiertage!$C$12:$D$53,1,0)),VLOOKUP(W5,Feiertage!$C$12:$D$53,2,0),VLOOKUP(W5,Feiertage!$C$12:$D$53,2)),"") -> 
A6: =A5+1 -> 2025-01-02 | B6: =IFERROR(IF(ISNA(VLOOKUP(A6,Feiertage!$C$12:$D$53,1,0)),VLOOKUP(A6,Feiertage!$C$12:$D$53,2,0),VLOOKUP(A6,Feiertage!$C$12:$D$53,2)),"") ->  | C6: =C5+1 -> 2025-02-02 | D6: =IFERROR(IF(ISNA(VLOOKUP(C6,Feiertage!$C$12:$D$53,1,0)),VLOOKUP(C6,Feiertage!$C$12:$D$53,2,0),VLOOKUP(C6,Feiertage!$C$12:$D$53,2)),"") ->  | E6: =E5+1 -> 2025-03-02 | F6: =IFERROR(IF(ISNA(VLOOKUP(E6,Feiertage!$C$12:$D$53,1,0)),VLOOKUP(E6,Feiertage!$C$12:$D$53,2,0),VLOOKUP(E6,Feiertage!$C$12:$D$53,2)),"") ->  | G6: =G5+1 -> 2025-04-02 | H6: =IFERROR(IF(ISNA(VLOOKUP(G6,Feiertage!$C$12:$D$53,1,0)),VLOOKUP(G6,Feiertage!$C$12:$D$53,2,0),VLOOKUP(G6,Feiertage!$C$12:$D$53,2)),"") ->  | I6: =I5+1 -> 2025-05-02 | J6: =IFERROR(IF(ISNA(VLOOKUP(I6,Feiertage!$C$12:$D$53,1,0)),VLOOKUP(I6,Feiertage!$C$12:$D$53,2,0),VLOOKUP(I6,Feiertage!$C$12:$D$53,2)),"") ->  | K6: =K5+1 -> 2025-06-02 | L6: =IFERROR(IF(ISNA(VLOOKUP(K6,Feiertage!$C$12:$D$53,1,0)),VLOOKUP(K6,Feiertage!$C$12:$D$53,2,0),VLOOKUP(K6,Feiertage!$C$12:$D$53,2)),"") ->  | M6: =M5+1 -> 2025-07-02 | N6: =IFERROR(IF(ISNA(VLOOKUP(M6,Feiertage!$C$12:$D$53,1,0)),VLOOKUP(M6,Feiertage!$C$12:$D$53,2,0),VLOOKUP(M6,Feiertage!$C$12:$D$53,2)),"") ->  | O6: =O5+1 -> 2025-08-02 | P6: =IFERROR(IF(ISNA(VLOOKUP(O6,Feiertage!$C$12:$D$53,1,0)),VLOOKUP(O6,Feiertage!$C$12:$D$53,2,0),VLOOKUP(O6,Feiertage!$C$12:$D$53,2)),"") ->  | Q6: =Q5+1 -> 2025-09-02 | R6: =IFERROR(IF(ISNA(VLOOKUP(Q6,Feiertage!$C$12:$D$53,1,0)),VLOOKUP(Q6,Feiertage!$C$12:$D$53,2,0),VLOOKUP(Q6,Feiertage!$C$12:$D$53,2)),"") ->  | S6: =S5+1 -> 2025-10-02 | T6: =IFERROR(IF(ISNA(VLOOKUP(S6,Feiertage!$C$12:$D$53,1,0)),VLOOKUP(S6,Feiertage!$C$12:$D$53,2,0),VLOOKUP(S6,Feiertage!$C$12:$D$53,2)),"") ->  | U6: =U5+1 -> 2025-11-02 | V6: =IFERROR(IF(ISNA(VLOOKUP(U6,Feiertage!$C$12:$D$53,1,0)),VLOOKUP(U6,Feiertage!$C$12:$D$53,2,0),VLOOKUP(U6,Feiertage!$C$12:$D$53,2)),"") ->  | W6: =W5+1 -> 2025-12-02 | X6: =IFERROR(IF(ISNA(VLOOKUP(W6,Feiertage!$C$12:$D$53,1,0)),VLOOKUP(W6,Feiertage!$C$12:$D$53,2,0),VLOOKUP(W6,Feiertage!$C$12:$D$53,2)),"") -> 
A7: =A6+1 -> 2025-01-03 | B7: =IFERROR(IF(ISNA(VLOOKUP(A7,Feiertage!$C$12:$D$53,1,0)),VLOOKUP(A7,Feiertage!$C$12:$D$53,2,0),VLOOKUP(A7,Feiertage!$C$12:$D$53,2)),"") ->  | C7: =C6+1 -> 2025-02-03 | D7: =IFERROR(IF(ISNA(VLOOKUP(C7,Feiertage!$C$12:$D$53,1,0)),VLOOKUP(C7,Feiertage!$C$12:$D$53,2,0),VLOOKUP(C7,Feiertage!$C$12:$D$53,2)),"") ->  | E7: =E6+1 -> 2025-03-03 | F7: =IFERROR(IF(ISNA(VLOOKUP(E7,Feiertage!$C$12:$D$53,1,0)),VLOOKUP(E7,Feiertage!$C$12:$D$53,2,0),VLOOKUP(E7,Feiertage!$C$12:$D$53,2)),"") ->  | G7: 2025-04-03 | H7: =IFERROR(IF(ISNA(VLOOKUP(G7,Feiertage!$C$12:$D$53,1,0)),VLOOKUP(G7,Feiertage!$C$12:$D$53,2,0),VLOOKUP(G7,Feiertage!$C$12:$D$53,2)),"") ->  | I7: 2025-05-03 | J7: =IFERROR(IF(ISNA(VLOOKUP(I7,Feiertage!$C$12:$D$53,1,0)),VLOOKUP(I7,Feiertage!$C$12:$D$53,2,0),VLOOKUP(I7,Feiertage!$C$12:$D$53,2)),"") ->  | K7: =K6+1 -> 2025-06-03 | L7: =IFERROR(IF(ISNA(VLOOKUP(K7,Feiertage!$C$12:$D$53,1,0)),VLOOKUP(K7,Feiertage!$C$12:$D$53,2,0),VLOOKUP(K7,Feiertage!$C$12:$D$53,2)),"") ->  | M7: =M6+1 -> 2025-07-03 | N7: =IFERROR(IF(ISNA(VLOOKUP(M7,Feiertage!$C$12:$D$53,1,0)),VLOOKUP(M7,Feiertage!$C$12:$D$53,2,0),VLOOKUP(M7,Feiertage!$C$12:$D$53,2)),"") ->  | O7: 2025-08-03 | P7: =IFERROR(IF(ISNA(VLOOKUP(O7,Feiertage!$C$12:$D$53,1,0)),VLOOKUP(O7,Feiertage!$C$12:$D$53,2,0),VLOOKUP(O7,Feiertage!$C$12:$D$53,2)),"") ->  | Q7: =Q6+1 -> 2025-09-03 | R7: =IFERROR(IF(ISNA(VLOOKUP(Q7,Feiertage!$C$12:$D$53,1,0)),VLOOKUP(Q7,Feiertage!$C$12:$D$53,2,0),VLOOKUP(Q7,Feiertage!$C$12:$D$53,2)),"") ->  | S7: =S6+1 -> 2025-10-03 | T7: =IFERROR(IF(ISNA(VLOOKUP(S7,Feiertage!$C$12:$D$53,1,0)),VLOOKUP(S7,Feiertage!$C$12:$D$53,2,0),VLOOKUP(S7,Feiertage!$C$12:$D$53,2)),"") -> Tag d.dt.Einheit | U7: =U6+1 -> 2025-11-03 | V7: =IFERROR(IF(ISNA(VLOOKUP(U7,Feiertage!$C$12:$D$53,1,0)),VLOOKUP(U7,Feiertage!$C$12:$D$53,2,0),VLOOKUP(U7,Feiertage!$C$12:$D$53,2)),"") ->  | W7: =W6+1 -> 2025-12-03 | X7: =IFERROR(IF(ISNA(VLOOKUP(W7,Feiertage!$C$12:$D$53,1,0)),VLOOKUP(W7,Feiertage!$C$12:$D$53,2,0),VLOOKUP(W7,Feiertage!$C$12:$D$53,2)),"") -> 
A8: 2025-01-04 | B8: =IFERROR(IF(ISNA(VLOOKUP(A8,Feiertage!$C$12:$D$53,1,0)),VLOOKUP(A8,Feiertage!$C$12:$D$53,2,0),VLOOKUP(A8,Feiertage!$C$12:$D$53,2)),"") ->  | C8: 2025-02-04 | D8: =IFERROR(IF(ISNA(VLOOKUP(C8,Feiertage!$C$12:$D$53,1,0)),VLOOKUP(C8,Feiertage!$C$12:$D$53,2,0),VLOOKUP(C8,Feiertage!$C$12:$D$53,2)),"") ->  | E8: 2025-03-04 | F8: =IFERROR(IF(ISNA(VLOOKUP(E8,Feiertage!$C$12:$D$53,1,0)),VLOOKUP(E8,Feiertage!$C$12:$D$53,2,0),VLOOKUP(E8,Feiertage!$C$12:$D$53,2)),"") ->  | G8: 2025-04-04 | H8: =IFERROR(IF(ISNA(VLOOKUP(G8,Feiertage!$C$12:$D$53,1,0)),VLOOKUP(G8,Feiertage!$C$12:$D$53,2,0),VLOOKUP(G8,Feiertage!$C$12:$D$53,2)),"") ->  | I8: 2025-05-04 | J8: =IFERROR(IF(ISNA(VLOOKUP(I8,Feiertage!$C$12:$D$53,1,0)),VLOOKUP(I8,Feiertage!$C$12:$D$53,2,0),VLOOKUP(I8,Feiertage!$C$12:$D$53,2)),"") ->  | K8: 2025-06-04 | L8: =IFERROR(IF(ISNA(VLOOKUP(K8,Feiertage!$C$12:$D$53,1,0)),VLOOKUP(K8,Feiertage!$C$12:$D$53,2,0),VLOOKUP(K8,Feiertage!$C$12:$D$53,2)),"") ->  | M8: 2025-07-04 | N8: =IFERROR(IF(ISNA(VLOOKUP(M8,Feiertage!$C$12:$D$53,1,0)),VLOOKUP(M8,Feiertage!$C$12:$D$53,2,0),VLOOKUP(M8,Feiertage!$C$12:$D$53,2)),"") ->  | O8: 2025-08-04 | P8: =IFERROR(IF(ISNA(VLOOKUP(O8,Feiertage!$C$12:$D$53,1,0)),VLOOKUP(O8,Feiertage!$C$12:$D$53,2,0),VLOOKUP(O8,Feiertage!$C$12:$D$53,2)),"") ->  | Q8: 2025-09-04 | R8: =IFERROR(IF(ISNA(VLOOKUP(Q8,Feiertage!$C$12:$D$53,1,0)),VLOOKUP(Q8,Feiertage!$C$12:$D$53,2,0),VLOOKUP(Q8,Feiertage!$C$12:$D$53,2)),"") ->  | S8: 2025-10-04 | T8: =IFERROR(IF(ISNA(VLOOKUP(S8,Feiertage!$C$12:$D$53,1,0)),VLOOKUP(S8,Feiertage!$C$12:$D$53,2,0),VLOOKUP(S8,Feiertage!$C$12:$D$53,2)),"") ->  | U8: 2025-11-04 | V8: =IFERROR(IF(ISNA(VLOOKUP(U8,Feiertage!$C$12:$D$53,1,0)),VLOOKUP(U8,Feiertage!$C$12:$D$53,2,0),VLOOKUP(U8,Feiertage!$C$12:$D$53,2)),"") ->  | W8: 2025-12-04 | X8: =IFERROR(IF(ISNA(VLOOKUP(W8,Feiertage!$C$12:$D$53,1,0)),VLOOKUP(W8,Feiertage!$C$12:$D$53,2,0),VLOOKUP(W8,Feiertage!$C$12:$D$53,2)),"") -> 
A9: 2025-01-05 | B9: =IFERROR(IF(ISNA(VLOOKUP(A9,Feiertage!$C$12:$D$53,1,0)),VLOOKUP(A9,Feiertage!$C$12:$D$53,2,0),VLOOKUP(A9,Feiertage!$C$12:$D$53,2)),"") ->  | C9: 2025-02-05 | D9: =IFERROR(IF(ISNA(VLOOKUP(C9,Feiertage!$C$12:$D$53,1,0)),VLOOKUP(C9,Feiertage!$C$12:$D$53,2,0),VLOOKUP(C9,Feiertage!$C$12:$D$53,2)),"") ->  | E9: 2025-03-05 | F9: =IFERROR(IF(ISNA(VLOOKUP(E9,Feiertage!$C$12:$D$53,1,0)),VLOOKUP(E9,Feiertage!$C$12:$D$53,2,0),VLOOKUP(E9,Feiertage!$C$12:$D$53,2)),"") ->  | G9: 2025-04-05 | H9: =IFERROR(IF(ISNA(VLOOKUP(G9,Feiertage!$C$12:$D$53,1,0)),VLOOKUP(G9,Feiertage!$C$12:$D$53,2,0),VLOOKUP(G9,Feiertage!$C$12:$D$53,2)),"") ->  | I9: 2025-05-05 | J9: =IFERROR(IF(ISNA(VLOOKUP(I9,Feiertage!$C$12:$D$53,1,0)),VLOOKUP(I9,Feiertage!$C$12:$D$53,2,0),VLOOKUP(I9,Feiertage!$C$12:$D$53,2)),"") ->  | K9: 2025-06-05 | L9: =IFERROR(IF(ISNA(VLOOKUP(K9,Feiertage!$C$12:$D$53,1,0)),VLOOKUP(K9,Feiertage!$C$12:$D$53,2,0),VLOOKUP(K9,Feiertage!$C$12:$D$53,2)),"") ->  | M9: 2025-07-05 | N9: =IFERROR(IF(ISNA(VLOOKUP(M9,Feiertage!$C$12:$D$53,1,0)),VLOOKUP(M9,Feiertage!$C$12:$D$53,2,0),VLOOKUP(M9,Feiertage!$C$12:$D$53,2)),"") ->  | O9: 2025-08-05 | P9: =IFERROR(IF(ISNA(VLOOKUP(O9,Feiertage!$C$12:$D$53,1,0)),VLOOKUP(O9,Feiertage!$C$12:$D$53,2,0),VLOOKUP(O9,Feiertage!$C$12:$D$53,2)),"") ->  | Q9: 2025-09-05 | R9: =IFERROR(IF(ISNA(VLOOKUP(Q9,Feiertage!$C$12:$D$53,1,0)),VLOOKUP(Q9,Feiertage!$C$12:$D$53,2,0),VLOOKUP(Q9,Feiertage!$C$12:$D$53,2)),"") ->  | S9: 2025-10-05 | T9: =IFERROR(IF(ISNA(VLOOKUP(S9,Feiertage!$C$12:$D$53,1,0)),VLOOKUP(S9,Feiertage!$C$12:$D$53,2,0),VLOOKUP(S9,Feiertage!$C$12:$D$53,2)),"") ->  | U9: 2025-11-05 | V9: =IFERROR(IF(ISNA(VLOOKUP(U9,Feiertage!$C$12:$D$53,1,0)),VLOOKUP(U9,Feiertage!$C$12:$D$53,2,0),VLOOKUP(U9,Feiertage!$C$12:$D$53,2)),"") ->  | W9: 2025-12-05 | X9: =IFERROR(IF(ISNA(VLOOKUP(W9,Feiertage!$C$12:$D$53,1,0)),VLOOKUP(W9,Feiertage!$C$12:$D$53,2,0),VLOOKUP(W9,Feiertage!$C$12:$D$53,2)),"") -> 
A10: =A9+1 -> 2025-01-06 | B10: =IFERROR(IF(ISNA(VLOOKUP(A10,Feiertage!$C$12:$D$53,1,0)),VLOOKUP(A10,Feiertage!$C$12:$D$53,2,0),VLOOKUP(A10,Feiertage!$C$12:$D$53,2)),"") ->  | C10: 2025-02-06 | D10: =IFERROR(IF(ISNA(VLOOKUP(C10,Feiertage!$C$12:$D$53,1,0)),VLOOKUP(C10,Feiertage!$C$12:$D$53,2,0),VLOOKUP(C10,Feiertage!$C$12:$D$53,2)),"") ->  | E10: 2025-03-06 | F10: =IFERROR(IF(ISNA(VLOOKUP(E10,Feiertage!$C$12:$D$53,1,0)),VLOOKUP(E10,Feiertage!$C$12:$D$53,2,0),VLOOKUP(E10,Feiertage!$C$12:$D$53,2)),"") ->  | G10: 2025-04-06 | H10: =IFERROR(IF(ISNA(VLOOKUP(G10,Feiertage!$C$12:$D$53,1,0)),VLOOKUP(G10,Feiertage!$C$12:$D$53,2,0),VLOOKUP(G10,Feiertage!$C$12:$D$53,2)),"") ->  | I10: 2025-05-06 | J10: =IFERROR(IF(ISNA(VLOOKUP(I10,Feiertage!$C$12:$D$53,1,0)),VLOOKUP(I10,Feiertage!$C$12:$D$53,2,0),VLOOKUP(I10,Feiertage!$C$12:$D$53,2)),"") ->  | K10: 2025-06-06 | L10: =IFERROR(IF(ISNA(VLOOKUP(K10,Feiertage!$C$12:$D$53,1,0)),VLOOKUP(K10,Feiertage!$C$12:$D$53,2,0),VLOOKUP(K10,Feiertage!$C$12:$D$53,2)),"") ->  | M10: 2025-07-06 | N10: =IFERROR(IF(ISNA(VLOOKUP(M10,Feiertage!$C$12:$D$53,1,0)),VLOOKUP(M10,Feiertage!$C$12:$D$53,2,0),VLOOKUP(M10,Feiertage!$C$12:$D$53,2)),"") ->  | O10: 2025-08-06 | P10: =IFERROR(IF(ISNA(VLOOKUP(O10,Feiertage!$C$12:$D$53,1,0)),VLOOKUP(O10,Feiertage!$C$12:$D$53,2,0),VLOOKUP(O10,Feiertage!$C$12:$D$53,2)),"") ->  | Q10: 2025-09-06 | R10: =IFERROR(IF(ISNA(VLOOKUP(Q10,Feiertage!$C$12:$D$53,1,0)),VLOOKUP(Q10,Feiertage!$C$12:$D$53,2,0),VLOOKUP(Q10,Feiertage!$C$12:$D$53,2)),"") ->  | S10: 2025-10-06 | T10: =IFERROR(IF(ISNA(VLOOKUP(S10,Feiertage!$C$12:$D$53,1,0)),VLOOKUP(S10,Feiertage!$C$12:$D$53,2,0),VLOOKUP(S10,Feiertage!$C$12:$D$53,2)),"") ->  | U10: 2025-11-06 | V10: =IFERROR(IF(ISNA(VLOOKUP(U10,Feiertage!$C$12:$D$53,1,0)),VLOOKUP(U10,Feiertage!$C$12:$D$53,2,0),VLOOKUP(U10,Feiertage!$C$12:$D$53,2)),"") ->  | W10: 2025-12-06 | X10: =IFERROR(IF(ISNA(VLOOKUP(W10,Feiertage!$C$12:$D$53,1,0)),VLOOKUP(W10,Feiertage!$C$12:$D$53,2,0),VLOOKUP(W10,Feiertage!$C$12:$D$53,2)),"") -> 
A11: 2025-01-07 | B11: =IFERROR(IF(ISNA(VLOOKUP(A11,Feiertage!$C$12:$D$53,1,0)),VLOOKUP(A11,Feiertage!$C$12:$D$53,2,0),VLOOKUP(A11,Feiertage!$C$12:$D$53,2)),"") ->  | C11: 2025-02-07 | D11: =IFERROR(IF(ISNA(VLOOKUP(C11,Feiertage!$C$12:$D$53,1,0)),VLOOKUP(C11,Feiertage!$C$12:$D$53,2,0),VLOOKUP(C11,Feiertage!$C$12:$D$53,2)),"") ->  | E11: 2025-03-07 | F11: =IFERROR(IF(ISNA(VLOOKUP(E11,Feiertage!$C$12:$D$53,1,0)),VLOOKUP(E11,Feiertage!$C$12:$D$53,2,0),VLOOKUP(E11,Feiertage!$C$12:$D$53,2)),"") ->  | G11: 2025-04-07 | H11: =IFERROR(IF(ISNA(VLOOKUP(G11,Feiertage!$C$12:$D$53,1,0)),VLOOKUP(G11,Feiertage!$C$12:$D$53,2,0),VLOOKUP(G11,Feiertage!$C$12:$D$53,2)),"") ->  | I11: 2025-05-07 | J11: =IFERROR(IF(ISNA(VLOOKUP(I11,Feiertage!$C$12:$D$53,1,0)),VLOOKUP(I11,Feiertage!$C$12:$D$53,2,0),VLOOKUP(I11,Feiertage!$C$12:$D$53,2)),"") ->  | K11: 2025-06-07 | L11: =IFERROR(IF(ISNA(VLOOKUP(K11,Feiertage!$C$12:$D$53,1,0)),VLOOKUP(K11,Feiertage!$C$12:$D$53,2,0),VLOOKUP(K11,Feiertage!$C$12:$D$53,2)),"") ->  | M11: 2025-07-07 | N11: =IFERROR(IF(ISNA(VLOOKUP(M11,Feiertage!$C$12:$D$53,1,0)),VLOOKUP(M11,Feiertage!$C$12:$D$53,2,0),VLOOKUP(M11,Feiertage!$C$12:$D$53,2)),"") ->  | O11: 2025-08-07 | P11: =IFERROR(IF(ISNA(VLOOKUP(O11,Feiertage!$C$12:$D$53,1,0)),VLOOKUP(O11,Feiertage!$C$12:$D$53,2,0),VLOOKUP(O11,Feiertage!$C$12:$D$53,2)),"") ->  | Q11: 2025-09-07 | R11: =IFERROR(IF(ISNA(VLOOKUP(Q11,Feiertage!$C$12:$D$53,1,0)),VLOOKUP(Q11,Feiertage!$C$12:$D$53,2,0),VLOOKUP(Q11,Feiertage!$C$12:$D$53,2)),"") ->  | S11: 2025-10-07 | T11: =IFERROR(IF(ISNA(VLOOKUP(S11,Feiertage!$C$12:$D$53,1,0)),VLOOKUP(S11,Feiertage!$C$12:$D$53,2,0),VLOOKUP(S11,Feiertage!$C$12:$D$53,2)),"") ->  | U11: 2025-11-07 | V11: =IFERROR(IF(ISNA(VLOOKUP(U11,Feiertage!$C$12:$D$53,1,0)),VLOOKUP(U11,Feiertage!$C$12:$D$53,2,0),VLOOKUP(U11,Feiertage!$C$12:$D$53,2)),"") ->  | W11: 2025-12-07 | X11: =IFERROR(IF(ISNA(VLOOKUP(W11,Feiertage!$C$12:$D$53,1,0)),VLOOKUP(W11,Feiertage!$C$12:$D$53,2,0),VLOOKUP(W11,Feiertage!$C$12:$D$53,2)),"") -> 
A12: 2025-01-08 | B12: =IFERROR(IF(ISNA(VLOOKUP(A12,Feiertage!$C$12:$D$53,1,0)),VLOOKUP(A12,Feiertage!$C$12:$D$53,2,0),VLOOKUP(A12,Feiertage!$C$12:$D$53,2)),"") ->  | C12: 2025-02-08 | D12: =IFERROR(IF(ISNA(VLOOKUP(C12,Feiertage!$C$12:$D$53,1,0)),VLOOKUP(C12,Feiertage!$C$12:$D$53,2,0),VLOOKUP(C12,Feiertage!$C$12:$D$53,2)),"") ->  | E12: 2025-03-08 | F12: =IFERROR(IF(ISNA(VLOOKUP(E12,Feiertage!$C$12:$D$53,1,0)),VLOOKUP(E12,Feiertage!$C$12:$D$53,2,0),VLOOKUP(E12,Feiertage!$C$12:$D$53,2)),"") ->  | G12: 2025-04-08 | H12: =IFERROR(IF(ISNA(VLOOKUP(G12,Feiertage!$C$12:$D$53,1,0)),VLOOKUP(G12,Feiertage!$C$12:$D$53,2,0),VLOOKUP(G12,Feiertage!$C$12:$D$53,2)),"") ->  | I12: 2025-05-08 | J12: =IFERROR(IF(ISNA(VLOOKUP(I12,Feiertage!$C$12:$D$53,1,0)),VLOOKUP(I12,Feiertage!$C$12:$D$53,2,0),VLOOKUP(I12,Feiertage!$C$12:$D$53,2)),"") ->  | K12: 2025-06-08 | L12: =IFERROR(IF(ISNA(VLOOKUP(K12,Feiertage!$C$12:$D$53,1,0)),VLOOKUP(K12,Feiertage!$C$12:$D$53,2,0),VLOOKUP(K12,Feiertage!$C$12:$D$53,2)),"") ->  | M12: 2025-07-08 | N12: =IFERROR(IF(ISNA(VLOOKUP(M12,Feiertage!$C$12:$D$53,1,0)),VLOOKUP(M12,Feiertage!$C$12:$D$53,2,0),VLOOKUP(M12,Feiertage!$C$12:$D$53,2)),"") ->  | O12: 2025-08-08 | P12: =IFERROR(IF(ISNA(VLOOKUP(O12,Feiertage!$C$12:$D$53,1,0)),VLOOKUP(O12,Feiertage!$C$12:$D$53,2,0),VLOOKUP(O12,Feiertage!$C$12:$D$53,2)),"") ->  | Q12: 2025-09-08 | R12: =IFERROR(IF(ISNA(VLOOKUP(Q12,Feiertage!$C$12:$D$53,1,0)),VLOOKUP(Q12,Feiertage!$C$12:$D$53,2,0),VLOOKUP(Q12,Feiertage!$C$12:$D$53,2)),"") ->  | S12: 2025-10-08 | T12: =IFERROR(IF(ISNA(VLOOKUP(S12,Feiertage!$C$12:$D$53,1,0)),VLOOKUP(S12,Feiertage!$C$12:$D$53,2,0),VLOOKUP(S12,Feiertage!$C$12:$D$53,2)),"") ->  | U12: 2025-11-08 | V12: =IFERROR(IF(ISNA(VLOOKUP(U12,Feiertage!$C$12:$D$53,1,0)),VLOOKUP(U12,Feiertage!$C$12:$D$53,2,0),VLOOKUP(U12,Feiertage!$C$12:$D$53,2)),"") ->  | W12: 2025-12-08 | X12: =IFERROR(IF(ISNA(VLOOKUP(W12,Feiertage!$C$12:$D$53,1,0)),VLOOKUP(W12,Feiertage!$C$12:$D$53,2,0),VLOOKUP(W12,Feiertage!$C$12:$D$53,2)),"") -> 
A13: 2025-01-09 | B13: =IFERROR(IF(ISNA(VLOOKUP(A13,Feiertage!$C$12:$D$53,1,0)),VLOOKUP(A13,Feiertage!$C$12:$D$53,2,0),VLOOKUP(A13,Feiertage!$C$12:$D$53,2)),"") ->  | C13: 2025-02-09 | D13: =IFERROR(IF(ISNA(VLOOKUP(C13,Feiertage!$C$12:$D$53,1,0)),VLOOKUP(C13,Feiertage!$C$12:$D$53,2,0),VLOOKUP(C13,Feiertage!$C$12:$D$53,2)),"") ->  | E13: 2025-03-09 | F13: =IFERROR(IF(ISNA(VLOOKUP(E13,Feiertage!$C$12:$D$53,1,0)),VLOOKUP(E13,Feiertage!$C$12:$D$53,2,0),VLOOKUP(E13,Feiertage!$C$12:$D$53,2)),"") ->  | G13: 2025-04-09 | H13: =IFERROR(IF(ISNA(VLOOKUP(G13,Feiertage!$C$12:$D$53,1,0)),VLOOKUP(G13,Feiertage!$C$12:$D$53,2,0),VLOOKUP(G13,Feiertage!$C$12:$D$53,2)),"") ->  | I13: 2025-05-09 | J13: =IFERROR(IF(ISNA(VLOOKUP(I13,Feiertage!$C$12:$D$53,1,0)),VLOOKUP(I13,Feiertage!$C$12:$D$53,2,0),VLOOKUP(I13,Feiertage!$C$12:$D$53,2)),"") ->  | K13: 2025-06-09 | L13: =IFERROR(IF(ISNA(VLOOKUP(K13,Feiertage!$C$12:$D$53,1,0)),VLOOKUP(K13,Feiertage!$C$12:$D$53,2,0),VLOOKUP(K13,Feiertage!$C$12:$D$53,2)),"") -> Pfingstmontag | M13: 2025-07-09 | N13: =IFERROR(IF(ISNA(VLOOKUP(M13,Feiertage!$C$12:$D$53,1,0)),VLOOKUP(M13,Feiertage!$C$12:$D$53,2,0),VLOOKUP(M13,Feiertage!$C$12:$D$53,2)),"") ->  | O13: 2025-08-09 | P13: =IFERROR(IF(ISNA(VLOOKUP(O13,Feiertage!$C$12:$D$53,1,0)),VLOOKUP(O13,Feiertage!$C$12:$D$53,2,0),VLOOKUP(O13,Feiertage!$C$12:$D$53,2)),"") ->  | Q13: 2025-09-09 | R13: =IFERROR(IF(ISNA(VLOOKUP(Q13,Feiertage!$C$12:$D$53,1,0)),VLOOKUP(Q13,Feiertage!$C$12:$D$53,2,0),VLOOKUP(Q13,Feiertage!$C$12:$D$53,2)),"") ->  | S13: 2025-10-09 | T13: =IFERROR(IF(ISNA(VLOOKUP(S13,Feiertage!$C$12:$D$53,1,0)),VLOOKUP(S13,Feiertage!$C$12:$D$53,2,0),VLOOKUP(S13,Feiertage!$C$12:$D$53,2)),"") ->  | U13: 2025-11-09 | V13: =IFERROR(IF(ISNA(VLOOKUP(U13,Feiertage!$C$12:$D$53,1,0)),VLOOKUP(U13,Feiertage!$C$12:$D$53,2,0),VLOOKUP(U13,Feiertage!$C$12:$D$53,2)),"") ->  | W13: 2025-12-09 | X13: =IFERROR(IF(ISNA(VLOOKUP(W13,Feiertage!$C$12:$D$53,1,0)),VLOOKUP(W13,Feiertage!$C$12:$D$53,2,0),VLOOKUP(W13,Feiertage!$C$12:$D$53,2)),"") -> 
A14: 2025-01-10 | B14: =IFERROR(IF(ISNA(VLOOKUP(A14,Feiertage!$C$12:$D$53,1,0)),VLOOKUP(A14,Feiertage!$C$12:$D$53,2,0),VLOOKUP(A14,Feiertage!$C$12:$D$53,2)),"") ->  | C14: 2025-02-10 | D14: =IFERROR(IF(ISNA(VLOOKUP(C14,Feiertage!$C$12:$D$53,1,0)),VLOOKUP(C14,Feiertage!$C$12:$D$53,2,0),VLOOKUP(C14,Feiertage!$C$12:$D$53,2)),"") ->  | E14: 2025-03-10 | F14: =IFERROR(IF(ISNA(VLOOKUP(E14,Feiertage!$C$12:$D$53,1,0)),VLOOKUP(E14,Feiertage!$C$12:$D$53,2,0),VLOOKUP(E14,Feiertage!$C$12:$D$53,2)),"") ->  | G14: 2025-04-10 | H14: =IFERROR(IF(ISNA(VLOOKUP(G14,Feiertage!$C$12:$D$53,1,0)),VLOOKUP(G14,Feiertage!$C$12:$D$53,2,0),VLOOKUP(G14,Feiertage!$C$12:$D$53,2)),"") ->  | I14: 2025-05-10 | J14: =IFERROR(IF(ISNA(VLOOKUP(I14,Feiertage!$C$12:$D$53,1,0)),VLOOKUP(I14,Feiertage!$C$12:$D$53,2,0),VLOOKUP(I14,Feiertage!$C$12:$D$53,2)),"") ->  | K14: 2025-06-10 | L14: =IFERROR(IF(ISNA(VLOOKUP(K14,Feiertage!$C$12:$D$53,1,0)),VLOOKUP(K14,Feiertage!$C$12:$D$53,2,0),VLOOKUP(K14,Feiertage!$C$12:$D$53,2)),"") ->  | M14: 2025-07-10 | N14: =IFERROR(IF(ISNA(VLOOKUP(M14,Feiertage!$C$12:$D$53,1,0)),VLOOKUP(M14,Feiertage!$C$12:$D$53,2,0),VLOOKUP(M14,Feiertage!$C$12:$D$53,2)),"") ->  | O14: 2025-08-10 | P14: =IFERROR(IF(ISNA(VLOOKUP(O14,Feiertage!$C$12:$D$53,1,0)),VLOOKUP(O14,Feiertage!$C$12:$D$53,2,0),VLOOKUP(O14,Feiertage!$C$12:$D$53,2)),"") ->  | Q14: 2025-09-10 | R14: =IFERROR(IF(ISNA(VLOOKUP(Q14,Feiertage!$C$12:$D$53,1,0)),VLOOKUP(Q14,Feiertage!$C$12:$D$53,2,0),VLOOKUP(Q14,Feiertage!$C$12:$D$53,2)),"") ->  | S14: 2025-10-10 | T14: =IFERROR(IF(ISNA(VLOOKUP(S14,Feiertage!$C$12:$D$53,1,0)),VLOOKUP(S14,Feiertage!$C$12:$D$53,2,0),VLOOKUP(S14,Feiertage!$C$12:$D$53,2)),"") ->  | U14: 2025-11-10 | V14: =IFERROR(IF(ISNA(VLOOKUP(U14,Feiertage!$C$12:$D$53,1,0)),VLOOKUP(U14,Feiertage!$C$12:$D$53,2,0),VLOOKUP(U14,Feiertage!$C$12:$D$53,2)),"") ->  | W14: 2025-12-10 | X14: =IFERROR(IF(ISNA(VLOOKUP(W14,Feiertage!$C$12:$D$53,1,0)),VLOOKUP(W14,Feiertage!$C$12:$D$53,2,0),VLOOKUP(W14,Feiertage!$C$12:$D$53,2)),"") -> 
A15: 2025-01-11 | B15: =IFERROR(IF(ISNA(VLOOKUP(A15,Feiertage!$C$12:$D$53,1,0)),VLOOKUP(A15,Feiertage!$C$12:$D$53,2,0),VLOOKUP(A15,Feiertage!$C$12:$D$53,2)),"") ->  | C15: 2025-02-11 | D15: =IFERROR(IF(ISNA(VLOOKUP(C15,Feiertage!$C$12:$D$53,1,0)),VLOOKUP(C15,Feiertage!$C$12:$D$53,2,0),VLOOKUP(C15,Feiertage!$C$12:$D$53,2)),"") ->  | E15: 2025-03-11 | F15: =IFERROR(IF(ISNA(VLOOKUP(E15,Feiertage!$C$12:$D$53,1,0)),VLOOKUP(E15,Feiertage!$C$12:$D$53,2,0),VLOOKUP(E15,Feiertage!$C$12:$D$53,2)),"") ->  | G15: 2025-04-11 | H15: =IFERROR(IF(ISNA(VLOOKUP(G15,Feiertage!$C$12:$D$53,1,0)),VLOOKUP(G15,Feiertage!$C$12:$D$53,2,0),VLOOKUP(G15,Feiertage!$C$12:$D$53,2)),"") ->  | I15: 2025-05-11 | J15: =IFERROR(IF(ISNA(VLOOKUP(I15,Feiertage!$C$12:$D$53,1,0)),VLOOKUP(I15,Feiertage!$C$12:$D$53,2,0),VLOOKUP(I15,Feiertage!$C$12:$D$53,2)),"") ->  | K15: 2025-06-11 | L15: =IFERROR(IF(ISNA(VLOOKUP(K15,Feiertage!$C$12:$D$53,1,0)),VLOOKUP(K15,Feiertage!$C$12:$D$53,2,0),VLOOKUP(K15,Feiertage!$C$12:$D$53,2)),"") ->  | M15: 2025-07-11 | N15: =IFERROR(IF(ISNA(VLOOKUP(M15,Feiertage!$C$12:$D$53,1,0)),VLOOKUP(M15,Feiertage!$C$12:$D$53,2,0),VLOOKUP(M15,Feiertage!$C$12:$D$53,2)),"") ->  | O15: 2025-08-11 | P15: =IFERROR(IF(ISNA(VLOOKUP(O15,Feiertage!$C$12:$D$53,1,0)),VLOOKUP(O15,Feiertage!$C$12:$D$53,2,0),VLOOKUP(O15,Feiertage!$C$12:$D$53,2)),"") ->  | Q15: 2025-09-11 | R15: =IFERROR(IF(ISNA(VLOOKUP(Q15,Feiertage!$C$12:$D$53,1,0)),VLOOKUP(Q15,Feiertage!$C$12:$D$53,2,0),VLOOKUP(Q15,Feiertage!$C$12:$D$53,2)),"") ->  | S15: 2025-10-11 | T15: =IFERROR(IF(ISNA(VLOOKUP(S15,Feiertage!$C$12:$D$53,1,0)),VLOOKUP(S15,Feiertage!$C$12:$D$53,2,0),VLOOKUP(S15,Feiertage!$C$12:$D$53,2)),"") ->  | U15: 2025-11-11 | V15: =IFERROR(IF(ISNA(VLOOKUP(U15,Feiertage!$C$12:$D$53,1,0)),VLOOKUP(U15,Feiertage!$C$12:$D$53,2,0),VLOOKUP(U15,Feiertage!$C$12:$D$53,2)),"") ->  | W15: 2025-12-11 | X15: =IFERROR(IF(ISNA(VLOOKUP(W15,Feiertage!$C$12:$D$53,1,0)),VLOOKUP(W15,Feiertage!$C$12:$D$53,2,0),VLOOKUP(W15,Feiertage!$C$12:$D$53,2)),"") -> 
A16: 2025-01-12 | B16: =IFERROR(IF(ISNA(VLOOKUP(A16,Feiertage!$C$12:$D$53,1,0)),VLOOKUP(A16,Feiertage!$C$12:$D$53,2,0),VLOOKUP(A16,Feiertage!$C$12:$D$53,2)),"") ->  | C16: 2025-02-12 | D16: =IFERROR(IF(ISNA(VLOOKUP(C16,Feiertage!$C$12:$D$53,1,0)),VLOOKUP(C16,Feiertage!$C$12:$D$53,2,0),VLOOKUP(C16,Feiertage!$C$12:$D$53,2)),"") ->  | E16: 2025-03-12 | F16: =IFERROR(IF(ISNA(VLOOKUP(E16,Feiertage!$C$12:$D$53,1,0)),VLOOKUP(E16,Feiertage!$C$12:$D$53,2,0),VLOOKUP(E16,Feiertage!$C$12:$D$53,2)),"") ->  | G16: 2025-04-12 | H16: =IFERROR(IF(ISNA(VLOOKUP(G16,Feiertage!$C$12:$D$53,1,0)),VLOOKUP(G16,Feiertage!$C$12:$D$53,2,0),VLOOKUP(G16,Feiertage!$C$12:$D$53,2)),"") ->  | I16: 2025-05-12 | J16: =IFERROR(IF(ISNA(VLOOKUP(I16,Feiertage!$C$12:$D$53,1,0)),VLOOKUP(I16,Feiertage!$C$12:$D$53,2,0),VLOOKUP(I16,Feiertage!$C$12:$D$53,2)),"") ->  | K16: 2025-06-12 | L16: =IFERROR(IF(ISNA(VLOOKUP(K16,Feiertage!$C$12:$D$53,1,0)),VLOOKUP(K16,Feiertage!$C$12:$D$53,2,0),VLOOKUP(K16,Feiertage!$C$12:$D$53,2)),"") ->  | M16: 2025-07-12 | N16: =IFERROR(IF(ISNA(VLOOKUP(M16,Feiertage!$C$12:$D$53,1,0)),VLOOKUP(M16,Feiertage!$C$12:$D$53,2,0),VLOOKUP(M16,Feiertage!$C$12:$D$53,2)),"") ->  | O16: 2025-08-12 | P16: =IFERROR(IF(ISNA(VLOOKUP(O16,Feiertage!$C$12:$D$53,1,0)),VLOOKUP(O16,Feiertage!$C$12:$D$53,2,0),VLOOKUP(O16,Feiertage!$C$12:$D$53,2)),"") ->  | Q16: 2025-09-12 | R16: =IFERROR(IF(ISNA(VLOOKUP(Q16,Feiertage!$C$12:$D$53,1,0)),VLOOKUP(Q16,Feiertage!$C$12:$D$53,2,0),VLOOKUP(Q16,Feiertage!$C$12:$D$53,2)),"") ->  | S16: 2025-10-12 | T16: =IFERROR(IF(ISNA(VLOOKUP(S16,Feiertage!$C$12:$D$53,1,0)),VLOOKUP(S16,Feiertage!$C$12:$D$53,2,0),VLOOKUP(S16,Feiertage!$C$12:$D$53,2)),"") ->  | U16: 2025-11-12 | V16: =IFERROR(IF(ISNA(VLOOKUP(U16,Feiertage!$C$12:$D$53,1,0)),VLOOKUP(U16,Feiertage!$C$12:$D$53,2,0),VLOOKUP(U16,Feiertage!$C$12:$D$53,2)),"") ->  | W16: 2025-12-12 | X16: =IFERROR(IF(ISNA(VLOOKUP(W16,Feiertage!$C$12:$D$53,1,0)),VLOOKUP(W16,Feiertage!$C$12:$D$53,2,0),VLOOKUP(W16,Feiertage!$C$12:$D$53,2)),"") -> 
A17: 2025-01-13 | B17: =IFERROR(IF(ISNA(VLOOKUP(A17,Feiertage!$C$12:$D$53,1,0)),VLOOKUP(A17,Feiertage!$C$12:$D$53,2,0),VLOOKUP(A17,Feiertage!$C$12:$D$53,2)),"") ->  | C17: 2025-02-13 | D17: =IFERROR(IF(ISNA(VLOOKUP(C17,Feiertage!$C$12:$D$53,1,0)),VLOOKUP(C17,Feiertage!$C$12:$D$53,2,0),VLOOKUP(C17,Feiertage!$C$12:$D$53,2)),"") ->  | E17: 2025-03-13 | F17: =IFERROR(IF(ISNA(VLOOKUP(E17,Feiertage!$C$12:$D$53,1,0)),VLOOKUP(E17,Feiertage!$C$12:$D$53,2,0),VLOOKUP(E17,Feiertage!$C$12:$D$53,2)),"") ->  | G17: 2025-04-13 | H17: =IFERROR(IF(ISNA(VLOOKUP(G17,Feiertage!$C$12:$D$53,1,0)),VLOOKUP(G17,Feiertage!$C$12:$D$53,2,0),VLOOKUP(G17,Feiertage!$C$12:$D$53,2)),"") ->  | I17: 2025-05-13 | J17: =IFERROR(IF(ISNA(VLOOKUP(I17,Feiertage!$C$12:$D$53,1,0)),VLOOKUP(I17,Feiertage!$C$12:$D$53,2,0),VLOOKUP(I17,Feiertage!$C$12:$D$53,2)),"") ->  | K17: 2025-06-13 | L17: =IFERROR(IF(ISNA(VLOOKUP(K17,Feiertage!$C$12:$D$53,1,0)),VLOOKUP(K17,Feiertage!$C$12:$D$53,2,0),VLOOKUP(K17,Feiertage!$C$12:$D$53,2)),"") ->  | M17: 2025-07-13 | N17: =IFERROR(IF(ISNA(VLOOKUP(M17,Feiertage!$C$12:$D$53,1,0)),VLOOKUP(M17,Feiertage!$C$12:$D$53,2,0),VLOOKUP(M17,Feiertage!$C$12:$D$53,2)),"") ->  | O17: 2025-08-13 | P17: =IFERROR(IF(ISNA(VLOOKUP(O17,Feiertage!$C$12:$D$53,1,0)),VLOOKUP(O17,Feiertage!$C$12:$D$53,2,0),VLOOKUP(O17,Feiertage!$C$12:$D$53,2)),"") ->  | Q17: 2025-09-13 | R17: =IFERROR(IF(ISNA(VLOOKUP(Q17,Feiertage!$C$12:$D$53,1,0)),VLOOKUP(Q17,Feiertage!$C$12:$D$53,2,0),VLOOKUP(Q17,Feiertage!$C$12:$D$53,2)),"") ->  | S17: 2025-10-13 | T17: =IFERROR(IF(ISNA(VLOOKUP(S17,Feiertage!$C$12:$D$53,1,0)),VLOOKUP(S17,Feiertage!$C$12:$D$53,2,0),VLOOKUP(S17,Feiertage!$C$12:$D$53,2)),"") ->  | U17: 2025-11-13 | V17: =IFERROR(IF(ISNA(VLOOKUP(U17,Feiertage!$C$12:$D$53,1,0)),VLOOKUP(U17,Feiertage!$C$12:$D$53,2,0),VLOOKUP(U17,Feiertage!$C$12:$D$53,2)),"") ->  | W17: 2025-12-13 | X17: =IFERROR(IF(ISNA(VLOOKUP(W17,Feiertage!$C$12:$D$53,1,0)),VLOOKUP(W17,Feiertage!$C$12:$D$53,2,0),VLOOKUP(W17,Feiertage!$C$12:$D$53,2)),"") -> 
A18: 2025-01-14 | B18: =IFERROR(IF(ISNA(VLOOKUP(A18,Feiertage!$C$12:$D$53,1,0)),VLOOKUP(A18,Feiertage!$C$12:$D$53,2,0),VLOOKUP(A18,Feiertage!$C$12:$D$53,2)),"") ->  | C18: 2025-02-14 | D18: =IFERROR(IF(ISNA(VLOOKUP(C18,Feiertage!$C$12:$D$53,1,0)),VLOOKUP(C18,Feiertage!$C$12:$D$53,2,0),VLOOKUP(C18,Feiertage!$C$12:$D$53,2)),"") ->  | E18: 2025-03-14 | F18: =IFERROR(IF(ISNA(VLOOKUP(E18,Feiertage!$C$12:$D$53,1,0)),VLOOKUP(E18,Feiertage!$C$12:$D$53,2,0),VLOOKUP(E18,Feiertage!$C$12:$D$53,2)),"") ->  | G18: 2025-04-14 | H18: =IFERROR(IF(ISNA(VLOOKUP(G18,Feiertage!$C$12:$D$53,1,0)),VLOOKUP(G18,Feiertage!$C$12:$D$53,2,0),VLOOKUP(G18,Feiertage!$C$12:$D$53,2)),"") ->  | I18: 2025-05-14 | J18: =IFERROR(IF(ISNA(VLOOKUP(I18,Feiertage!$C$12:$D$53,1,0)),VLOOKUP(I18,Feiertage!$C$12:$D$53,2,0),VLOOKUP(I18,Feiertage!$C$12:$D$53,2)),"") ->  | K18: 2025-06-14 | L18: =IFERROR(IF(ISNA(VLOOKUP(K18,Feiertage!$C$12:$D$53,1,0)),VLOOKUP(K18,Feiertage!$C$12:$D$53,2,0),VLOOKUP(K18,Feiertage!$C$12:$D$53,2)),"") ->  | M18: 2025-07-14 | N18: =IFERROR(IF(ISNA(VLOOKUP(M18,Feiertage!$C$12:$D$53,1,0)),VLOOKUP(M18,Feiertage!$C$12:$D$53,2,0),VLOOKUP(M18,Feiertage!$C$12:$D$53,2)),"") ->  | O18: 2025-08-14 | P18: =IFERROR(IF(ISNA(VLOOKUP(O18,Feiertage!$C$12:$D$53,1,0)),VLOOKUP(O18,Feiertage!$C$12:$D$53,2,0),VLOOKUP(O18,Feiertage!$C$12:$D$53,2)),"") ->  | Q18: 2025-09-14 | R18: =IFERROR(IF(ISNA(VLOOKUP(Q18,Feiertage!$C$12:$D$53,1,0)),VLOOKUP(Q18,Feiertage!$C$12:$D$53,2,0),VLOOKUP(Q18,Feiertage!$C$12:$D$53,2)),"") ->  | S18: 2025-10-14 | T18: =IFERROR(IF(ISNA(VLOOKUP(S18,Feiertage!$C$12:$D$53,1,0)),VLOOKUP(S18,Feiertage!$C$12:$D$53,2,0),VLOOKUP(S18,Feiertage!$C$12:$D$53,2)),"") ->  | U18: 2025-11-14 | V18: =IFERROR(IF(ISNA(VLOOKUP(U18,Feiertage!$C$12:$D$53,1,0)),VLOOKUP(U18,Feiertage!$C$12:$D$53,2,0),VLOOKUP(U18,Feiertage!$C$12:$D$53,2)),"") ->  | W18: 2025-12-14 | X18: =IFERROR(IF(ISNA(VLOOKUP(W18,Feiertage!$C$12:$D$53,1,0)),VLOOKUP(W18,Feiertage!$C$12:$D$53,2,0),VLOOKUP(W18,Feiertage!$C$12:$D$53,2)),"") -> 
A19: 2025-01-15 | B19: =IFERROR(IF(ISNA(VLOOKUP(A19,Feiertage!$C$12:$D$53,1,0)),VLOOKUP(A19,Feiertage!$C$12:$D$53,2,0),VLOOKUP(A19,Feiertage!$C$12:$D$53,2)),"") ->  | C19: 2025-02-15 | D19: =IFERROR(IF(ISNA(VLOOKUP(C19,Feiertage!$C$12:$D$53,1,0)),VLOOKUP(C19,Feiertage!$C$12:$D$53,2,0),VLOOKUP(C19,Feiertage!$C$12:$D$53,2)),"") ->  | E19: 2025-03-15 | F19: =IFERROR(IF(ISNA(VLOOKUP(E19,Feiertage!$C$12:$D$53,1,0)),VLOOKUP(E19,Feiertage!$C$12:$D$53,2,0),VLOOKUP(E19,Feiertage!$C$12:$D$53,2)),"") ->  | G19: 2025-04-15 | H19: =IFERROR(IF(ISNA(VLOOKUP(G19,Feiertage!$C$12:$D$53,1,0)),VLOOKUP(G19,Feiertage!$C$12:$D$53,2,0),VLOOKUP(G19,Feiertage!$C$12:$D$53,2)),"") ->  | I19: 2025-05-15 | J19: =IFERROR(IF(ISNA(VLOOKUP(I19,Feiertage!$C$12:$D$53,1,0)),VLOOKUP(I19,Feiertage!$C$12:$D$53,2,0),VLOOKUP(I19,Feiertage!$C$12:$D$53,2)),"") ->  | K19: 2025-06-15 | L19: =IFERROR(IF(ISNA(VLOOKUP(K19,Feiertage!$C$12:$D$53,1,0)),VLOOKUP(K19,Feiertage!$C$12:$D$53,2,0),VLOOKUP(K19,Feiertage!$C$12:$D$53,2)),"") ->  | M19: 2025-07-15 | N19: =IFERROR(IF(ISNA(VLOOKUP(M19,Feiertage!$C$12:$D$53,1,0)),VLOOKUP(M19,Feiertage!$C$12:$D$53,2,0),VLOOKUP(M19,Feiertage!$C$12:$D$53,2)),"") ->  | O19: 2025-08-15 | P19: =IFERROR(IF(ISNA(VLOOKUP(O19,Feiertage!$C$12:$D$53,1,0)),VLOOKUP(O19,Feiertage!$C$12:$D$53,2,0),VLOOKUP(O19,Feiertage!$C$12:$D$53,2)),"") ->  | Q19: 2025-09-15 | R19: =IFERROR(IF(ISNA(VLOOKUP(Q19,Feiertage!$C$12:$D$53,1,0)),VLOOKUP(Q19,Feiertage!$C$12:$D$53,2,0),VLOOKUP(Q19,Feiertage!$C$12:$D$53,2)),"") ->  | S19: 2025-10-15 | T19: =IFERROR(IF(ISNA(VLOOKUP(S19,Feiertage!$C$12:$D$53,1,0)),VLOOKUP(S19,Feiertage!$C$12:$D$53,2,0),VLOOKUP(S19,Feiertage!$C$12:$D$53,2)),"") ->  | U19: 2025-11-15 | V19: =IFERROR(IF(ISNA(VLOOKUP(U19,Feiertage!$C$12:$D$53,1,0)),VLOOKUP(U19,Feiertage!$C$12:$D$53,2,0),VLOOKUP(U19,Feiertage!$C$12:$D$53,2)),"") ->  | W19: 2025-12-15 | X19: =IFERROR(IF(ISNA(VLOOKUP(W19,Feiertage!$C$12:$D$53,1,0)),VLOOKUP(W19,Feiertage!$C$12:$D$53,2,0),VLOOKUP(W19,Feiertage!$C$12:$D$53,2)),"") -> 
A20: 2025-01-16 | B20: =IFERROR(IF(ISNA(VLOOKUP(A20,Feiertage!$C$12:$D$53,1,0)),VLOOKUP(A20,Feiertage!$C$12:$D$53,2,0),VLOOKUP(A20,Feiertage!$C$12:$D$53,2)),"") ->  | C20: 2025-02-16 | D20: =IFERROR(IF(ISNA(VLOOKUP(C20,Feiertage!$C$12:$D$53,1,0)),VLOOKUP(C20,Feiertage!$C$12:$D$53,2,0),VLOOKUP(C20,Feiertage!$C$12:$D$53,2)),"") ->  | E20: 2025-03-16 | F20: =IFERROR(IF(ISNA(VLOOKUP(E20,Feiertage!$C$12:$D$53,1,0)),VLOOKUP(E20,Feiertage!$C$12:$D$53,2,0),VLOOKUP(E20,Feiertage!$C$12:$D$53,2)),"") ->  | G20: 2025-04-16 | H20: =IFERROR(IF(ISNA(VLOOKUP(G20,Feiertage!$C$12:$D$53,1,0)),VLOOKUP(G20,Feiertage!$C$12:$D$53,2,0),VLOOKUP(G20,Feiertage!$C$12:$D$53,2)),"") ->  | I20: 2025-05-16 | J20: =IFERROR(IF(ISNA(VLOOKUP(I20,Feiertage!$C$12:$D$53,1,0)),VLOOKUP(I20,Feiertage!$C$12:$D$53,2,0),VLOOKUP(I20,Feiertage!$C$12:$D$53,2)),"") ->  | K20: 2025-06-16 | L20: =IFERROR(IF(ISNA(VLOOKUP(K20,Feiertage!$C$12:$D$53,1,0)),VLOOKUP(K20,Feiertage!$C$12:$D$53,2,0),VLOOKUP(K20,Feiertage!$C$12:$D$53,2)),"") ->  | M20: 2025-07-16 | N20: =IFERROR(IF(ISNA(VLOOKUP(M20,Feiertage!$C$12:$D$53,1,0)),VLOOKUP(M20,Feiertage!$C$12:$D$53,2,0),VLOOKUP(M20,Feiertage!$C$12:$D$53,2)),"") ->  | O20: 2025-08-16 | P20: =IFERROR(IF(ISNA(VLOOKUP(O20,Feiertage!$C$12:$D$53,1,0)),VLOOKUP(O20,Feiertage!$C$12:$D$53,2,0),VLOOKUP(O20,Feiertage!$C$12:$D$53,2)),"") ->  | Q20: 2025-09-16 | R20: =IFERROR(IF(ISNA(VLOOKUP(Q20,Feiertage!$C$12:$D$53,1,0)),VLOOKUP(Q20,Feiertage!$C$12:$D$53,2,0),VLOOKUP(Q20,Feiertage!$C$12:$D$53,2)),"") ->  | S20: 2025-10-16 | T20: =IFERROR(IF(ISNA(VLOOKUP(S20,Feiertage!$C$12:$D$53,1,0)),VLOOKUP(S20,Feiertage!$C$12:$D$53,2,0),VLOOKUP(S20,Feiertage!$C$12:$D$53,2)),"") ->  | U20: 2025-11-16 | V20: =IFERROR(IF(ISNA(VLOOKUP(U20,Feiertage!$C$12:$D$53,1,0)),VLOOKUP(U20,Feiertage!$C$12:$D$53,2,0),VLOOKUP(U20,Feiertage!$C$12:$D$53,2)),"") ->  | W20: 2025-12-16 | X20: =IFERROR(IF(ISNA(VLOOKUP(W20,Feiertage!$C$12:$D$53,1,0)),VLOOKUP(W20,Feiertage!$C$12:$D$53,2,0),VLOOKUP(W20,Feiertage!$C$12:$D$53,2)),"") -> 
A21: 2025-01-17 | B21: =IFERROR(IF(ISNA(VLOOKUP(A21,Feiertage!$C$12:$D$53,1,0)),VLOOKUP(A21,Feiertage!$C$12:$D$53,2,0),VLOOKUP(A21,Feiertage!$C$12:$D$53,2)),"") ->  | C21: 2025-02-17 | D21: =IFERROR(IF(ISNA(VLOOKUP(C21,Feiertage!$C$12:$D$53,1,0)),VLOOKUP(C21,Feiertage!$C$12:$D$53,2,0),VLOOKUP(C21,Feiertage!$C$12:$D$53,2)),"") ->  | E21: 2025-03-17 | F21: =IFERROR(IF(ISNA(VLOOKUP(E21,Feiertage!$C$12:$D$53,1,0)),VLOOKUP(E21,Feiertage!$C$12:$D$53,2,0),VLOOKUP(E21,Feiertage!$C$12:$D$53,2)),"") ->  | G21: 2025-04-17 | H21: =IFERROR(IF(ISNA(VLOOKUP(G21,Feiertage!$C$12:$D$53,1,0)),VLOOKUP(G21,Feiertage!$C$12:$D$53,2,0),VLOOKUP(G21,Feiertage!$C$12:$D$53,2)),"") ->  | I21: 2025-05-17 | J21: =IFERROR(IF(ISNA(VLOOKUP(I21,Feiertage!$C$12:$D$53,1,0)),VLOOKUP(I21,Feiertage!$C$12:$D$53,2,0),VLOOKUP(I21,Feiertage!$C$12:$D$53,2)),"") ->  | K21: 2025-06-17 | L21: =IFERROR(IF(ISNA(VLOOKUP(K21,Feiertage!$C$12:$D$53,1,0)),VLOOKUP(K21,Feiertage!$C$12:$D$53,2,0),VLOOKUP(K21,Feiertage!$C$12:$D$53,2)),"") ->  | M21: 2025-07-17 | N21: =IFERROR(IF(ISNA(VLOOKUP(M21,Feiertage!$C$12:$D$53,1,0)),VLOOKUP(M21,Feiertage!$C$12:$D$53,2,0),VLOOKUP(M21,Feiertage!$C$12:$D$53,2)),"") ->  | O21: 2025-08-17 | P21: =IFERROR(IF(ISNA(VLOOKUP(O21,Feiertage!$C$12:$D$53,1,0)),VLOOKUP(O21,Feiertage!$C$12:$D$53,2,0),VLOOKUP(O21,Feiertage!$C$12:$D$53,2)),"") ->  | Q21: 2025-09-17 | R21: =IFERROR(IF(ISNA(VLOOKUP(Q21,Feiertage!$C$12:$D$53,1,0)),VLOOKUP(Q21,Feiertage!$C$12:$D$53,2,0),VLOOKUP(Q21,Feiertage!$C$12:$D$53,2)),"") ->  | S21: 2025-10-17 | T21: =IFERROR(IF(ISNA(VLOOKUP(S21,Feiertage!$C$12:$D$53,1,0)),VLOOKUP(S21,Feiertage!$C$12:$D$53,2,0),VLOOKUP(S21,Feiertage!$C$12:$D$53,2)),"") ->  | U21: 2025-11-17 | V21: =IFERROR(IF(ISNA(VLOOKUP(U21,Feiertage!$C$12:$D$53,1,0)),VLOOKUP(U21,Feiertage!$C$12:$D$53,2,0),VLOOKUP(U21,Feiertage!$C$12:$D$53,2)),"") ->  | W21: 2025-12-17 | X21: =IFERROR(IF(ISNA(VLOOKUP(W21,Feiertage!$C$12:$D$53,1,0)),VLOOKUP(W21,Feiertage!$C$12:$D$53,2,0),VLOOKUP(W21,Feiertage!$C$12:$D$53,2)),"") -> 
A22: 2025-01-18 | B22: =IFERROR(IF(ISNA(VLOOKUP(A22,Feiertage!$C$12:$D$53,1,0)),VLOOKUP(A22,Feiertage!$C$12:$D$53,2,0),VLOOKUP(A22,Feiertage!$C$12:$D$53,2)),"") ->  | C22: 2025-02-18 | D22: =IFERROR(IF(ISNA(VLOOKUP(C22,Feiertage!$C$12:$D$53,1,0)),VLOOKUP(C22,Feiertage!$C$12:$D$53,2,0),VLOOKUP(C22,Feiertage!$C$12:$D$53,2)),"") ->  | E22: 2025-03-18 | F22: =IFERROR(IF(ISNA(VLOOKUP(E22,Feiertage!$C$12:$D$53,1,0)),VLOOKUP(E22,Feiertage!$C$12:$D$53,2,0),VLOOKUP(E22,Feiertage!$C$12:$D$53,2)),"") ->  | G22: 2025-04-18 | H22: =IFERROR(IF(ISNA(VLOOKUP(G22,Feiertage!$C$12:$D$53,1,0)),VLOOKUP(G22,Feiertage!$C$12:$D$53,2,0),VLOOKUP(G22,Feiertage!$C$12:$D$53,2)),"") -> Karfreitag | I22: 2025-05-18 | J22: =IFERROR(IF(ISNA(VLOOKUP(I22,Feiertage!$C$12:$D$53,1,0)),VLOOKUP(I22,Feiertage!$C$12:$D$53,2,0),VLOOKUP(I22,Feiertage!$C$12:$D$53,2)),"") ->  | K22: 2025-06-18 | L22: =IFERROR(IF(ISNA(VLOOKUP(K22,Feiertage!$C$12:$D$53,1,0)),VLOOKUP(K22,Feiertage!$C$12:$D$53,2,0),VLOOKUP(K22,Feiertage!$C$12:$D$53,2)),"") ->  | M22: 2025-07-18 | N22: =IFERROR(IF(ISNA(VLOOKUP(M22,Feiertage!$C$12:$D$53,1,0)),VLOOKUP(M22,Feiertage!$C$12:$D$53,2,0),VLOOKUP(M22,Feiertage!$C$12:$D$53,2)),"") ->  | O22: 2025-08-18 | P22: =IFERROR(IF(ISNA(VLOOKUP(O22,Feiertage!$C$12:$D$53,1,0)),VLOOKUP(O22,Feiertage!$C$12:$D$53,2,0),VLOOKUP(O22,Feiertage!$C$12:$D$53,2)),"") ->  | Q22: 2025-09-18 | R22: =IFERROR(IF(ISNA(VLOOKUP(Q22,Feiertage!$C$12:$D$53,1,0)),VLOOKUP(Q22,Feiertage!$C$12:$D$53,2,0),VLOOKUP(Q22,Feiertage!$C$12:$D$53,2)),"") ->  | S22: 2025-10-18 | T22: =IFERROR(IF(ISNA(VLOOKUP(S22,Feiertage!$C$12:$D$53,1,0)),VLOOKUP(S22,Feiertage!$C$12:$D$53,2,0),VLOOKUP(S22,Feiertage!$C$12:$D$53,2)),"") ->  | U22: 2025-11-18 | V22: =IFERROR(IF(ISNA(VLOOKUP(U22,Feiertage!$C$12:$D$53,1,0)),VLOOKUP(U22,Feiertage!$C$12:$D$53,2,0),VLOOKUP(U22,Feiertage!$C$12:$D$53,2)),"") ->  | W22: 2025-12-18 | X22: =IFERROR(IF(ISNA(VLOOKUP(W22,Feiertage!$C$12:$D$53,1,0)),VLOOKUP(W22,Feiertage!$C$12:$D$53,2,0),VLOOKUP(W22,Feiertage!$C$12:$D$53,2)),"") -> 
A23: 2025-01-19 | B23: =IFERROR(IF(ISNA(VLOOKUP(A23,Feiertage!$C$12:$D$53,1,0)),VLOOKUP(A23,Feiertage!$C$12:$D$53,2,0),VLOOKUP(A23,Feiertage!$C$12:$D$53,2)),"") ->  | C23: 2025-02-19 | D23: =IFERROR(IF(ISNA(VLOOKUP(C23,Feiertage!$C$12:$D$53,1,0)),VLOOKUP(C23,Feiertage!$C$12:$D$53,2,0),VLOOKUP(C23,Feiertage!$C$12:$D$53,2)),"") ->  | E23: 2025-03-19 | F23: =IFERROR(IF(ISNA(VLOOKUP(E23,Feiertage!$C$12:$D$53,1,0)),VLOOKUP(E23,Feiertage!$C$12:$D$53,2,0),VLOOKUP(E23,Feiertage!$C$12:$D$53,2)),"") ->  | G23: 2025-04-19 | H23: =IFERROR(IF(ISNA(VLOOKUP(G23,Feiertage!$C$12:$D$53,1,0)),VLOOKUP(G23,Feiertage!$C$12:$D$53,2,0),VLOOKUP(G23,Feiertage!$C$12:$D$53,2)),"") ->  | I23: 2025-05-19 | J23: =IFERROR(IF(ISNA(VLOOKUP(I23,Feiertage!$C$12:$D$53,1,0)),VLOOKUP(I23,Feiertage!$C$12:$D$53,2,0),VLOOKUP(I23,Feiertage!$C$12:$D$53,2)),"") ->  | K23: 2025-06-19 | L23: =IFERROR(IF(ISNA(VLOOKUP(K23,Feiertage!$C$12:$D$53,1,0)),VLOOKUP(K23,Feiertage!$C$12:$D$53,2,0),VLOOKUP(K23,Feiertage!$C$12:$D$53,2)),"") ->  | M23: 2025-07-19 | N23: =IFERROR(IF(ISNA(VLOOKUP(M23,Feiertage!$C$12:$D$53,1,0)),VLOOKUP(M23,Feiertage!$C$12:$D$53,2,0),VLOOKUP(M23,Feiertage!$C$12:$D$53,2)),"") ->  | O23: 2025-08-19 | P23: =IFERROR(IF(ISNA(VLOOKUP(O23,Feiertage!$C$12:$D$53,1,0)),VLOOKUP(O23,Feiertage!$C$12:$D$53,2,0),VLOOKUP(O23,Feiertage!$C$12:$D$53,2)),"") ->  | Q23: 2025-09-19 | R23: =IFERROR(IF(ISNA(VLOOKUP(Q23,Feiertage!$C$12:$D$53,1,0)),VLOOKUP(Q23,Feiertage!$C$12:$D$53,2,0),VLOOKUP(Q23,Feiertage!$C$12:$D$53,2)),"") ->  | S23: 2025-10-19 | T23: =IFERROR(IF(ISNA(VLOOKUP(S23,Feiertage!$C$12:$D$53,1,0)),VLOOKUP(S23,Feiertage!$C$12:$D$53,2,0),VLOOKUP(S23,Feiertage!$C$12:$D$53,2)),"") ->  | U23: 2025-11-19 | V23: =IFERROR(IF(ISNA(VLOOKUP(U23,Feiertage!$C$12:$D$53,1,0)),VLOOKUP(U23,Feiertage!$C$12:$D$53,2,0),VLOOKUP(U23,Feiertage!$C$12:$D$53,2)),"") ->  | W23: 2025-12-19 | X23: =IFERROR(IF(ISNA(VLOOKUP(W23,Feiertage!$C$12:$D$53,1,0)),VLOOKUP(W23,Feiertage!$C$12:$D$53,2,0),VLOOKUP(W23,Feiertage!$C$12:$D$53,2)),"") -> 
A24: 2025-01-20 | B24: =IFERROR(IF(ISNA(VLOOKUP(A24,Feiertage!$C$12:$D$53,1,0)),VLOOKUP(A24,Feiertage!$C$12:$D$53,2,0),VLOOKUP(A24,Feiertage!$C$12:$D$53,2)),"") ->  | C24: 2025-02-20 | D24: =IFERROR(IF(ISNA(VLOOKUP(C24,Feiertage!$C$12:$D$53,1,0)),VLOOKUP(C24,Feiertage!$C$12:$D$53,2,0),VLOOKUP(C24,Feiertage!$C$12:$D$53,2)),"") ->  | E24: 2025-03-20 | F24: =IFERROR(IF(ISNA(VLOOKUP(E24,Feiertage!$C$12:$D$53,1,0)),VLOOKUP(E24,Feiertage!$C$12:$D$53,2,0),VLOOKUP(E24,Feiertage!$C$12:$D$53,2)),"") ->  | G24: 2025-04-20 | H24: =IFERROR(IF(ISNA(VLOOKUP(G24,Feiertage!$C$12:$D$53,1,0)),VLOOKUP(G24,Feiertage!$C$12:$D$53,2,0),VLOOKUP(G24,Feiertage!$C$12:$D$53,2)),"") ->  | I24: 2025-05-20 | J24: =IFERROR(IF(ISNA(VLOOKUP(I24,Feiertage!$C$12:$D$53,1,0)),VLOOKUP(I24,Feiertage!$C$12:$D$53,2,0),VLOOKUP(I24,Feiertage!$C$12:$D$53,2)),"") ->  | K24: 2025-06-20 | L24: =IFERROR(IF(ISNA(VLOOKUP(K24,Feiertage!$C$12:$D$53,1,0)),VLOOKUP(K24,Feiertage!$C$12:$D$53,2,0),VLOOKUP(K24,Feiertage!$C$12:$D$53,2)),"") ->  | M24: 2025-07-20 | N24: =IFERROR(IF(ISNA(VLOOKUP(M24,Feiertage!$C$12:$D$53,1,0)),VLOOKUP(M24,Feiertage!$C$12:$D$53,2,0),VLOOKUP(M24,Feiertage!$C$12:$D$53,2)),"") ->  | O24: 2025-08-20 | P24: =IFERROR(IF(ISNA(VLOOKUP(O24,Feiertage!$C$12:$D$53,1,0)),VLOOKUP(O24,Feiertage!$C$12:$D$53,2,0),VLOOKUP(O24,Feiertage!$C$12:$D$53,2)),"") ->  | Q24: 2025-09-20 | R24: =IFERROR(IF(ISNA(VLOOKUP(Q24,Feiertage!$C$12:$D$53,1,0)),VLOOKUP(Q24,Feiertage!$C$12:$D$53,2,0),VLOOKUP(Q24,Feiertage!$C$12:$D$53,2)),"") ->  | S24: 2025-10-20 | T24: =IFERROR(IF(ISNA(VLOOKUP(S24,Feiertage!$C$12:$D$53,1,0)),VLOOKUP(S24,Feiertage!$C$12:$D$53,2,0),VLOOKUP(S24,Feiertage!$C$12:$D$53,2)),"") ->  | U24: 2025-11-20 | V24: =IFERROR(IF(ISNA(VLOOKUP(U24,Feiertage!$C$12:$D$53,1,0)),VLOOKUP(U24,Feiertage!$C$12:$D$53,2,0),VLOOKUP(U24,Feiertage!$C$12:$D$53,2)),"") ->  | W24: 2025-12-20 | X24: =IFERROR(IF(ISNA(VLOOKUP(W24,Feiertage!$C$12:$D$53,1,0)),VLOOKUP(W24,Feiertage!$C$12:$D$53,2,0),VLOOKUP(W24,Feiertage!$C$12:$D$53,2)),"") -> 
A25: 2025-01-21 | B25: =IFERROR(IF(ISNA(VLOOKUP(A25,Feiertage!$C$12:$D$53,1,0)),VLOOKUP(A25,Feiertage!$C$12:$D$53,2,0),VLOOKUP(A25,Feiertage!$C$12:$D$53,2)),"") ->  | C25: 2025-02-21 | D25: =IFERROR(IF(ISNA(VLOOKUP(C25,Feiertage!$C$12:$D$53,1,0)),VLOOKUP(C25,Feiertage!$C$12:$D$53,2,0),VLOOKUP(C25,Feiertage!$C$12:$D$53,2)),"") ->  | E25: 2025-03-21 | F25: =IFERROR(IF(ISNA(VLOOKUP(E25,Feiertage!$C$12:$D$53,1,0)),VLOOKUP(E25,Feiertage!$C$12:$D$53,2,0),VLOOKUP(E25,Feiertage!$C$12:$D$53,2)),"") ->  | G25: 2025-04-21 | H25: =IFERROR(IF(ISNA(VLOOKUP(G25,Feiertage!$C$12:$D$53,1,0)),VLOOKUP(G25,Feiertage!$C$12:$D$53,2,0),VLOOKUP(G25,Feiertage!$C$12:$D$53,2)),"") -> Ostermontag | I25: 2025-05-21 | J25: =IFERROR(IF(ISNA(VLOOKUP(I25,Feiertage!$C$12:$D$53,1,0)),VLOOKUP(I25,Feiertage!$C$12:$D$53,2,0),VLOOKUP(I25,Feiertage!$C$12:$D$53,2)),"") ->  | K25: 2025-06-21 | L25: =IFERROR(IF(ISNA(VLOOKUP(K25,Feiertage!$C$12:$D$53,1,0)),VLOOKUP(K25,Feiertage!$C$12:$D$53,2,0),VLOOKUP(K25,Feiertage!$C$12:$D$53,2)),"") ->  | M25: 2025-07-21 | N25: =IFERROR(IF(ISNA(VLOOKUP(M25,Feiertage!$C$12:$D$53,1,0)),VLOOKUP(M25,Feiertage!$C$12:$D$53,2,0),VLOOKUP(M25,Feiertage!$C$12:$D$53,2)),"") ->  | O25: 2025-08-21 | P25: =IFERROR(IF(ISNA(VLOOKUP(O25,Feiertage!$C$12:$D$53,1,0)),VLOOKUP(O25,Feiertage!$C$12:$D$53,2,0),VLOOKUP(O25,Feiertage!$C$12:$D$53,2)),"") ->  | Q25: 2025-09-21 | R25: =IFERROR(IF(ISNA(VLOOKUP(Q25,Feiertage!$C$12:$D$53,1,0)),VLOOKUP(Q25,Feiertage!$C$12:$D$53,2,0),VLOOKUP(Q25,Feiertage!$C$12:$D$53,2)),"") ->  | S25: 2025-10-21 | T25: =IFERROR(IF(ISNA(VLOOKUP(S25,Feiertage!$C$12:$D$53,1,0)),VLOOKUP(S25,Feiertage!$C$12:$D$53,2,0),VLOOKUP(S25,Feiertage!$C$12:$D$53,2)),"") ->  | U25: 2025-11-21 | V25: =IFERROR(IF(ISNA(VLOOKUP(U25,Feiertage!$C$12:$D$53,1,0)),VLOOKUP(U25,Feiertage!$C$12:$D$53,2,0),VLOOKUP(U25,Feiertage!$C$12:$D$53,2)),"") ->  | W25: 2025-12-21 | X25: =IFERROR(IF(ISNA(VLOOKUP(W25,Feiertage!$C$12:$D$53,1,0)),VLOOKUP(W25,Feiertage!$C$12:$D$53,2,0),VLOOKUP(W25,Feiertage!$C$12:$D$53,2)),"") -> 
A26: 2025-01-22 | B26: =IFERROR(IF(ISNA(VLOOKUP(A26,Feiertage!$C$12:$D$53,1,0)),VLOOKUP(A26,Feiertage!$C$12:$D$53,2,0),VLOOKUP(A26,Feiertage!$C$12:$D$53,2)),"") ->  | C26: 2025-02-22 | D26: =IFERROR(IF(ISNA(VLOOKUP(C26,Feiertage!$C$12:$D$53,1,0)),VLOOKUP(C26,Feiertage!$C$12:$D$53,2,0),VLOOKUP(C26,Feiertage!$C$12:$D$53,2)),"") ->  | E26: 2025-03-22 | F26: =IFERROR(IF(ISNA(VLOOKUP(E26,Feiertage!$C$12:$D$53,1,0)),VLOOKUP(E26,Feiertage!$C$12:$D$53,2,0),VLOOKUP(E26,Feiertage!$C$12:$D$53,2)),"") ->  | G26: 2025-04-22 | H26: =IFERROR(IF(ISNA(VLOOKUP(G26,Feiertage!$C$12:$D$53,1,0)),VLOOKUP(G26,Feiertage!$C$12:$D$53,2,0),VLOOKUP(G26,Feiertage!$C$12:$D$53,2)),"") ->  | I26: 2025-05-22 | J26: =IFERROR(IF(ISNA(VLOOKUP(I26,Feiertage!$C$12:$D$53,1,0)),VLOOKUP(I26,Feiertage!$C$12:$D$53,2,0),VLOOKUP(I26,Feiertage!$C$12:$D$53,2)),"") ->  | K26: 2025-06-22 | L26: =IFERROR(IF(ISNA(VLOOKUP(K26,Feiertage!$C$12:$D$53,1,0)),VLOOKUP(K26,Feiertage!$C$12:$D$53,2,0),VLOOKUP(K26,Feiertage!$C$12:$D$53,2)),"") ->  | M26: 2025-07-22 | N26: =IFERROR(IF(ISNA(VLOOKUP(M26,Feiertage!$C$12:$D$53,1,0)),VLOOKUP(M26,Feiertage!$C$12:$D$53,2,0),VLOOKUP(M26,Feiertage!$C$12:$D$53,2)),"") ->  | O26: 2025-08-22 | P26: =IFERROR(IF(ISNA(VLOOKUP(O26,Feiertage!$C$12:$D$53,1,0)),VLOOKUP(O26,Feiertage!$C$12:$D$53,2,0),VLOOKUP(O26,Feiertage!$C$12:$D$53,2)),"") ->  | Q26: 2025-09-22 | R26: =IFERROR(IF(ISNA(VLOOKUP(Q26,Feiertage!$C$12:$D$53,1,0)),VLOOKUP(Q26,Feiertage!$C$12:$D$53,2,0),VLOOKUP(Q26,Feiertage!$C$12:$D$53,2)),"") ->  | S26: 2025-10-22 | T26: =IFERROR(IF(ISNA(VLOOKUP(S26,Feiertage!$C$12:$D$53,1,0)),VLOOKUP(S26,Feiertage!$C$12:$D$53,2,0),VLOOKUP(S26,Feiertage!$C$12:$D$53,2)),"") ->  | U26: 2025-11-22 | V26: =IFERROR(IF(ISNA(VLOOKUP(U26,Feiertage!$C$12:$D$53,1,0)),VLOOKUP(U26,Feiertage!$C$12:$D$53,2,0),VLOOKUP(U26,Feiertage!$C$12:$D$53,2)),"") ->  | W26: 2025-12-22 | X26: =IFERROR(IF(ISNA(VLOOKUP(W26,Feiertage!$C$12:$D$53,1,0)),VLOOKUP(W26,Feiertage!$C$12:$D$53,2,0),VLOOKUP(W26,Feiertage!$C$12:$D$53,2)),"") -> 
A27: 2025-01-23 | B27: =IFERROR(IF(ISNA(VLOOKUP(A27,Feiertage!$C$12:$D$53,1,0)),VLOOKUP(A27,Feiertage!$C$12:$D$53,2,0),VLOOKUP(A27,Feiertage!$C$12:$D$53,2)),"") ->  | C27: 2025-02-23 | D27: =IFERROR(IF(ISNA(VLOOKUP(C27,Feiertage!$C$12:$D$53,1,0)),VLOOKUP(C27,Feiertage!$C$12:$D$53,2,0),VLOOKUP(C27,Feiertage!$C$12:$D$53,2)),"") ->  | E27: 2025-03-23 | F27: =IFERROR(IF(ISNA(VLOOKUP(E27,Feiertage!$C$12:$D$53,1,0)),VLOOKUP(E27,Feiertage!$C$12:$D$53,2,0),VLOOKUP(E27,Feiertage!$C$12:$D$53,2)),"") ->  | G27: 2025-04-23 | H27: =IFERROR(IF(ISNA(VLOOKUP(G27,Feiertage!$C$12:$D$53,1,0)),VLOOKUP(G27,Feiertage!$C$12:$D$53,2,0),VLOOKUP(G27,Feiertage!$C$12:$D$53,2)),"") ->  | I27: 2025-05-23 | J27: =IFERROR(IF(ISNA(VLOOKUP(I27,Feiertage!$C$12:$D$53,1,0)),VLOOKUP(I27,Feiertage!$C$12:$D$53,2,0),VLOOKUP(I27,Feiertage!$C$12:$D$53,2)),"") ->  | K27: 2025-06-23 | L27: =IFERROR(IF(ISNA(VLOOKUP(K27,Feiertage!$C$12:$D$53,1,0)),VLOOKUP(K27,Feiertage!$C$12:$D$53,2,0),VLOOKUP(K27,Feiertage!$C$12:$D$53,2)),"") ->  | M27: 2025-07-23 | N27: =IFERROR(IF(ISNA(VLOOKUP(M27,Feiertage!$C$12:$D$53,1,0)),VLOOKUP(M27,Feiertage!$C$12:$D$53,2,0),VLOOKUP(M27,Feiertage!$C$12:$D$53,2)),"") ->  | O27: 2025-08-23 | P27: =IFERROR(IF(ISNA(VLOOKUP(O27,Feiertage!$C$12:$D$53,1,0)),VLOOKUP(O27,Feiertage!$C$12:$D$53,2,0),VLOOKUP(O27,Feiertage!$C$12:$D$53,2)),"") ->  | Q27: 2025-09-23 | R27: =IFERROR(IF(ISNA(VLOOKUP(Q27,Feiertage!$C$12:$D$53,1,0)),VLOOKUP(Q27,Feiertage!$C$12:$D$53,2,0),VLOOKUP(Q27,Feiertage!$C$12:$D$53,2)),"") ->  | S27: 2025-10-23 | T27: =IFERROR(IF(ISNA(VLOOKUP(S27,Feiertage!$C$12:$D$53,1,0)),VLOOKUP(S27,Feiertage!$C$12:$D$53,2,0),VLOOKUP(S27,Feiertage!$C$12:$D$53,2)),"") ->  | U27: 2025-11-23 | V27: =IFERROR(IF(ISNA(VLOOKUP(U27,Feiertage!$C$12:$D$53,1,0)),VLOOKUP(U27,Feiertage!$C$12:$D$53,2,0),VLOOKUP(U27,Feiertage!$C$12:$D$53,2)),"") ->  | W27: 2025-12-23 | X27: =IFERROR(IF(ISNA(VLOOKUP(W27,Feiertage!$C$12:$D$53,1,0)),VLOOKUP(W27,Feiertage!$C$12:$D$53,2,0),VLOOKUP(W27,Feiertage!$C$12:$D$53,2)),"") -> 
A28: 2025-01-24 | B28: =IFERROR(IF(ISNA(VLOOKUP(A28,Feiertage!$C$12:$D$53,1,0)),VLOOKUP(A28,Feiertage!$C$12:$D$53,2,0),VLOOKUP(A28,Feiertage!$C$12:$D$53,2)),"") ->  | C28: 2025-02-24 | D28: =IFERROR(IF(ISNA(VLOOKUP(C28,Feiertage!$C$12:$D$53,1,0)),VLOOKUP(C28,Feiertage!$C$12:$D$53,2,0),VLOOKUP(C28,Feiertage!$C$12:$D$53,2)),"") ->  | E28: 2025-03-24 | F28: =IFERROR(IF(ISNA(VLOOKUP(E28,Feiertage!$C$12:$D$53,1,0)),VLOOKUP(E28,Feiertage!$C$12:$D$53,2,0),VLOOKUP(E28,Feiertage!$C$12:$D$53,2)),"") ->  | G28: 2025-04-24 | H28: =IFERROR(IF(ISNA(VLOOKUP(G28,Feiertage!$C$12:$D$53,1,0)),VLOOKUP(G28,Feiertage!$C$12:$D$53,2,0),VLOOKUP(G28,Feiertage!$C$12:$D$53,2)),"") ->  | I28: 2025-05-24 | J28: =IFERROR(IF(ISNA(VLOOKUP(I28,Feiertage!$C$12:$D$53,1,0)),VLOOKUP(I28,Feiertage!$C$12:$D$53,2,0),VLOOKUP(I28,Feiertage!$C$12:$D$53,2)),"") ->  | K28: 2025-06-24 | L28: =IFERROR(IF(ISNA(VLOOKUP(K28,Feiertage!$C$12:$D$53,1,0)),VLOOKUP(K28,Feiertage!$C$12:$D$53,2,0),VLOOKUP(K28,Feiertage!$C$12:$D$53,2)),"") ->  | M28: 2025-07-24 | N28: =IFERROR(IF(ISNA(VLOOKUP(M28,Feiertage!$C$12:$D$53,1,0)),VLOOKUP(M28,Feiertage!$C$12:$D$53,2,0),VLOOKUP(M28,Feiertage!$C$12:$D$53,2)),"") ->  | O28: 2025-08-24 | P28: =IFERROR(IF(ISNA(VLOOKUP(O28,Feiertage!$C$12:$D$53,1,0)),VLOOKUP(O28,Feiertage!$C$12:$D$53,2,0),VLOOKUP(O28,Feiertage!$C$12:$D$53,2)),"") ->  | Q28: 2025-09-24 | R28: =IFERROR(IF(ISNA(VLOOKUP(Q28,Feiertage!$C$12:$D$53,1,0)),VLOOKUP(Q28,Feiertage!$C$12:$D$53,2,0),VLOOKUP(Q28,Feiertage!$C$12:$D$53,2)),"") ->  | S28: 2025-10-24 | T28: =IFERROR(IF(ISNA(VLOOKUP(S28,Feiertage!$C$12:$D$53,1,0)),VLOOKUP(S28,Feiertage!$C$12:$D$53,2,0),VLOOKUP(S28,Feiertage!$C$12:$D$53,2)),"") ->  | U28: 2025-11-24 | V28: =IFERROR(IF(ISNA(VLOOKUP(U28,Feiertage!$C$12:$D$53,1,0)),VLOOKUP(U28,Feiertage!$C$12:$D$53,2,0),VLOOKUP(U28,Feiertage!$C$12:$D$53,2)),"") ->  | W28: 2025-12-24 | X28: =IFERROR(IF(ISNA(VLOOKUP(W28,Feiertage!$C$12:$D$53,1,0)),VLOOKUP(W28,Feiertage!$C$12:$D$53,2,0),VLOOKUP(W28,Feiertage!$C$12:$D$53,2)),"") -> 
A29: 2025-01-25 | B29: =IFERROR(IF(ISNA(VLOOKUP(A29,Feiertage!$C$12:$D$53,1,0)),VLOOKUP(A29,Feiertage!$C$12:$D$53,2,0),VLOOKUP(A29,Feiertage!$C$12:$D$53,2)),"") ->  | C29: 2025-02-25 | D29: =IFERROR(IF(ISNA(VLOOKUP(C29,Feiertage!$C$12:$D$53,1,0)),VLOOKUP(C29,Feiertage!$C$12:$D$53,2,0),VLOOKUP(C29,Feiertage!$C$12:$D$53,2)),"") ->  | E29: 2025-03-25 | F29: =IFERROR(IF(ISNA(VLOOKUP(E29,Feiertage!$C$12:$D$53,1,0)),VLOOKUP(E29,Feiertage!$C$12:$D$53,2,0),VLOOKUP(E29,Feiertage!$C$12:$D$53,2)),"") ->  | G29: 2025-04-25 | H29: =IFERROR(IF(ISNA(VLOOKUP(G29,Feiertage!$C$12:$D$53,1,0)),VLOOKUP(G29,Feiertage!$C$12:$D$53,2,0),VLOOKUP(G29,Feiertage!$C$12:$D$53,2)),"") ->  | I29: 2025-05-25 | J29: =IFERROR(IF(ISNA(VLOOKUP(I29,Feiertage!$C$12:$D$53,1,0)),VLOOKUP(I29,Feiertage!$C$12:$D$53,2,0),VLOOKUP(I29,Feiertage!$C$12:$D$53,2)),"") ->  | K29: 2025-06-25 | L29: =IFERROR(IF(ISNA(VLOOKUP(K29,Feiertage!$C$12:$D$53,1,0)),VLOOKUP(K29,Feiertage!$C$12:$D$53,2,0),VLOOKUP(K29,Feiertage!$C$12:$D$53,2)),"") ->  | M29: 2025-07-25 | N29: =IFERROR(IF(ISNA(VLOOKUP(M29,Feiertage!$C$12:$D$53,1,0)),VLOOKUP(M29,Feiertage!$C$12:$D$53,2,0),VLOOKUP(M29,Feiertage!$C$12:$D$53,2)),"") ->  | O29: 2025-08-25 | P29: =IFERROR(IF(ISNA(VLOOKUP(O29,Feiertage!$C$12:$D$53,1,0)),VLOOKUP(O29,Feiertage!$C$12:$D$53,2,0),VLOOKUP(O29,Feiertage!$C$12:$D$53,2)),"") ->  | Q29: 2025-09-25 | R29: =IFERROR(IF(ISNA(VLOOKUP(Q29,Feiertage!$C$12:$D$53,1,0)),VLOOKUP(Q29,Feiertage!$C$12:$D$53,2,0),VLOOKUP(Q29,Feiertage!$C$12:$D$53,2)),"") ->  | S29: 2025-10-25 | T29: =IFERROR(IF(ISNA(VLOOKUP(S29,Feiertage!$C$12:$D$53,1,0)),VLOOKUP(S29,Feiertage!$C$12:$D$53,2,0),VLOOKUP(S29,Feiertage!$C$12:$D$53,2)),"") ->  | U29: 2025-11-25 | V29: =IFERROR(IF(ISNA(VLOOKUP(U29,Feiertage!$C$12:$D$53,1,0)),VLOOKUP(U29,Feiertage!$C$12:$D$53,2,0),VLOOKUP(U29,Feiertage!$C$12:$D$53,2)),"") ->  | W29: 2025-12-25 | X29: =IFERROR(IF(ISNA(VLOOKUP(W29,Feiertage!$C$12:$D$53,1,0)),VLOOKUP(W29,Feiertage!$C$12:$D$53,2,0),VLOOKUP(W29,Feiertage!$C$12:$D$53,2)),"") -> 1.Weihn.Tag
A30: 2025-01-26 | B30: =IFERROR(IF(ISNA(VLOOKUP(A30,Feiertage!$C$12:$D$53,1,0)),VLOOKUP(A30,Feiertage!$C$12:$D$53,2,0),VLOOKUP(A30,Feiertage!$C$12:$D$53,2)),"") ->  | C30: 2025-02-26 | D30: =IFERROR(IF(ISNA(VLOOKUP(C30,Feiertage!$C$12:$D$53,1,0)),VLOOKUP(C30,Feiertage!$C$12:$D$53,2,0),VLOOKUP(C30,Feiertage!$C$12:$D$53,2)),"") ->  | E30: 2025-03-26 | F30: =IFERROR(IF(ISNA(VLOOKUP(E30,Feiertage!$C$12:$D$53,1,0)),VLOOKUP(E30,Feiertage!$C$12:$D$53,2,0),VLOOKUP(E30,Feiertage!$C$12:$D$53,2)),"") ->  | G30: 2025-04-26 | H30: =IFERROR(IF(ISNA(VLOOKUP(G30,Feiertage!$C$12:$D$53,1,0)),VLOOKUP(G30,Feiertage!$C$12:$D$53,2,0),VLOOKUP(G30,Feiertage!$C$12:$D$53,2)),"") ->  | I30: 2025-05-26 | J30: =IFERROR(IF(ISNA(VLOOKUP(I30,Feiertage!$C$12:$D$53,1,0)),VLOOKUP(I30,Feiertage!$C$12:$D$53,2,0),VLOOKUP(I30,Feiertage!$C$12:$D$53,2)),"") ->  | K30: 2025-06-26 | L30: =IFERROR(IF(ISNA(VLOOKUP(K30,Feiertage!$C$12:$D$53,1,0)),VLOOKUP(K30,Feiertage!$C$12:$D$53,2,0),VLOOKUP(K30,Feiertage!$C$12:$D$53,2)),"") ->  | M30: 2025-07-26 | N30: =IFERROR(IF(ISNA(VLOOKUP(M30,Feiertage!$C$12:$D$53,1,0)),VLOOKUP(M30,Feiertage!$C$12:$D$53,2,0),VLOOKUP(M30,Feiertage!$C$12:$D$53,2)),"") ->  | O30: 2025-08-26 | P30: =IFERROR(IF(ISNA(VLOOKUP(O30,Feiertage!$C$12:$D$53,1,0)),VLOOKUP(O30,Feiertage!$C$12:$D$53,2,0),VLOOKUP(O30,Feiertage!$C$12:$D$53,2)),"") ->  | Q30: 2025-09-26 | R30: =IFERROR(IF(ISNA(VLOOKUP(Q30,Feiertage!$C$12:$D$53,1,0)),VLOOKUP(Q30,Feiertage!$C$12:$D$53,2,0),VLOOKUP(Q30,Feiertage!$C$12:$D$53,2)),"") ->  | S30: 2025-10-26 | T30: =IFERROR(IF(ISNA(VLOOKUP(S30,Feiertage!$C$12:$D$53,1,0)),VLOOKUP(S30,Feiertage!$C$12:$D$53,2,0),VLOOKUP(S30,Feiertage!$C$12:$D$53,2)),"") ->  | U30: 2025-11-26 | V30: =IFERROR(IF(ISNA(VLOOKUP(U30,Feiertage!$C$12:$D$53,1,0)),VLOOKUP(U30,Feiertage!$C$12:$D$53,2,0),VLOOKUP(U30,Feiertage!$C$12:$D$53,2)),"") ->  | W30: 2025-12-26 | X30: =IFERROR(IF(ISNA(VLOOKUP(W30,Feiertage!$C$12:$D$53,1,0)),VLOOKUP(W30,Feiertage!$C$12:$D$53,2,0),VLOOKUP(W30,Feiertage!$C$12:$D$53,2)),"") -> 2.Weihn.Tag
A31: 2025-01-27 | B31: =IFERROR(IF(ISNA(VLOOKUP(A31,Feiertage!$C$12:$D$53,1,0)),VLOOKUP(A31,Feiertage!$C$12:$D$53,2,0),VLOOKUP(A31,Feiertage!$C$12:$D$53,2)),"") ->  | C31: 2025-02-27 | D31: =IFERROR(IF(ISNA(VLOOKUP(C31,Feiertage!$C$12:$D$53,1,0)),VLOOKUP(C31,Feiertage!$C$12:$D$53,2,0),VLOOKUP(C31,Feiertage!$C$12:$D$53,2)),"") ->  | E31: 2025-03-27 | F31: =IFERROR(IF(ISNA(VLOOKUP(E31,Feiertage!$C$12:$D$53,1,0)),VLOOKUP(E31,Feiertage!$C$12:$D$53,2,0),VLOOKUP(E31,Feiertage!$C$12:$D$53,2)),"") ->  | G31: 2025-04-27 | H31: =IFERROR(IF(ISNA(VLOOKUP(G31,Feiertage!$C$12:$D$53,1,0)),VLOOKUP(G31,Feiertage!$C$12:$D$53,2,0),VLOOKUP(G31,Feiertage!$C$12:$D$53,2)),"") ->  | I31: 2025-05-27 | J31: =IFERROR(IF(ISNA(VLOOKUP(I31,Feiertage!$C$12:$D$53,1,0)),VLOOKUP(I31,Feiertage!$C$12:$D$53,2,0),VLOOKUP(I31,Feiertage!$C$12:$D$53,2)),"") ->  | K31: 2025-06-27 | L31: =IFERROR(IF(ISNA(VLOOKUP(K31,Feiertage!$C$12:$D$53,1,0)),VLOOKUP(K31,Feiertage!$C$12:$D$53,2,0),VLOOKUP(K31,Feiertage!$C$12:$D$53,2)),"") ->  | M31: 2025-07-27 | N31: =IFERROR(IF(ISNA(VLOOKUP(M31,Feiertage!$C$12:$D$53,1,0)),VLOOKUP(M31,Feiertage!$C$12:$D$53,2,0),VLOOKUP(M31,Feiertage!$C$12:$D$53,2)),"") ->  | O31: 2025-08-27 | P31: =IFERROR(IF(ISNA(VLOOKUP(O31,Feiertage!$C$12:$D$53,1,0)),VLOOKUP(O31,Feiertage!$C$12:$D$53,2,0),VLOOKUP(O31,Feiertage!$C$12:$D$53,2)),"") ->  | Q31: 2025-09-27 | R31: =IFERROR(IF(ISNA(VLOOKUP(Q31,Feiertage!$C$12:$D$53,1,0)),VLOOKUP(Q31,Feiertage!$C$12:$D$53,2,0),VLOOKUP(Q31,Feiertage!$C$12:$D$53,2)),"") ->  | S31: 2025-10-27 | T31: =IFERROR(IF(ISNA(VLOOKUP(S31,Feiertage!$C$12:$D$53,1,0)),VLOOKUP(S31,Feiertage!$C$12:$D$53,2,0),VLOOKUP(S31,Feiertage!$C$12:$D$53,2)),"") ->  | U31: 2025-11-27 | V31: =IFERROR(IF(ISNA(VLOOKUP(U31,Feiertage!$C$12:$D$53,1,0)),VLOOKUP(U31,Feiertage!$C$12:$D$53,2,0),VLOOKUP(U31,Feiertage!$C$12:$D$53,2)),"") ->  | W31: 2025-12-27 | X31: =IFERROR(IF(ISNA(VLOOKUP(W31,Feiertage!$C$12:$D$53,1,0)),VLOOKUP(W31,Feiertage!$C$12:$D$53,2,0),VLOOKUP(W31,Feiertage!$C$12:$D$53,2)),"") -> 
A32: 2025-01-28 | B32: =IFERROR(IF(ISNA(VLOOKUP(A32,Feiertage!$C$12:$D$53,1,0)),VLOOKUP(A32,Feiertage!$C$12:$D$53,2,0),VLOOKUP(A32,Feiertage!$C$12:$D$53,2)),"") ->  | C32: 2025-02-28 | D32: =IFERROR(IF(ISNA(VLOOKUP(C32,Feiertage!$C$12:$D$53,1,0)),VLOOKUP(C32,Feiertage!$C$12:$D$53,2,0),VLOOKUP(C32,Feiertage!$C$12:$D$53,2)),"") ->  | E32: 2025-03-28 | F32: =IFERROR(IF(ISNA(VLOOKUP(E32,Feiertage!$C$12:$D$53,1,0)),VLOOKUP(E32,Feiertage!$C$12:$D$53,2,0),VLOOKUP(E32,Feiertage!$C$12:$D$53,2)),"") ->  | G32: 2025-04-28 | H32: =IFERROR(IF(ISNA(VLOOKUP(G32,Feiertage!$C$12:$D$53,1,0)),VLOOKUP(G32,Feiertage!$C$12:$D$53,2,0),VLOOKUP(G32,Feiertage!$C$12:$D$53,2)),"") ->  | I32: 2025-05-28 | J32: =IFERROR(IF(ISNA(VLOOKUP(I32,Feiertage!$C$12:$D$53,1,0)),VLOOKUP(I32,Feiertage!$C$12:$D$53,2,0),VLOOKUP(I32,Feiertage!$C$12:$D$53,2)),"") ->  | K32: =K31+1 -> 2025-06-28 | L32: =IFERROR(IF(ISNA(VLOOKUP(K32,Feiertage!$C$12:$D$53,1,0)),VLOOKUP(K32,Feiertage!$C$12:$D$53,2,0),VLOOKUP(K32,Feiertage!$C$12:$D$53,2)),"") ->  | M32: 2025-07-28 | N32: =IFERROR(IF(ISNA(VLOOKUP(M32,Feiertage!$C$12:$D$53,1,0)),VLOOKUP(M32,Feiertage!$C$12:$D$53,2,0),VLOOKUP(M32,Feiertage!$C$12:$D$53,2)),"") ->  | O32: 2025-08-28 | P32: =IFERROR(IF(ISNA(VLOOKUP(O32,Feiertage!$C$12:$D$53,1,0)),VLOOKUP(O32,Feiertage!$C$12:$D$53,2,0),VLOOKUP(O32,Feiertage!$C$12:$D$53,2)),"") ->  | Q32: 2025-09-28 | R32: =IFERROR(IF(ISNA(VLOOKUP(Q32,Feiertage!$C$12:$D$53,1,0)),VLOOKUP(Q32,Feiertage!$C$12:$D$53,2,0),VLOOKUP(Q32,Feiertage!$C$12:$D$53,2)),"") ->  | S32: 2025-10-28 | T32: =IFERROR(IF(ISNA(VLOOKUP(S32,Feiertage!$C$12:$D$53,1,0)),VLOOKUP(S32,Feiertage!$C$12:$D$53,2,0),VLOOKUP(S32,Feiertage!$C$12:$D$53,2)),"") ->  | U32: 2025-11-28 | V32: =IFERROR(IF(ISNA(VLOOKUP(U32,Feiertage!$C$12:$D$53,1,0)),VLOOKUP(U32,Feiertage!$C$12:$D$53,2,0),VLOOKUP(U32,Feiertage!$C$12:$D$53,2)),"") ->  | W32: 2025-12-28 | X32: =IFERROR(IF(ISNA(VLOOKUP(W32,Feiertage!$C$12:$D$53,1,0)),VLOOKUP(W32,Feiertage!$C$12:$D$53,2,0),VLOOKUP(W32,Feiertage!$C$12:$D$53,2)),"") -> 
A33: 2025-01-29 | B33: =IFERROR(IF(ISNA(VLOOKUP(A33,Feiertage!$C$12:$D$53,1,0)),VLOOKUP(A33,Feiertage!$C$12:$D$53,2,0),VLOOKUP(A33,Feiertage!$C$12:$D$53,2)),"") ->  | C33: =CHOOSE(OR(AND(MOD(gewJahr,4)=0,MOD(gewJahr,100)<>0),MOD(gewJahr,400)=0)+1,"",C32+1) ->  | D33: =IF(C33="","",IFERROR(IF(ISNA(VLOOKUP(C33,Feiertage!$C$12:$D$53,1,0)),VLOOKUP(C33,Feiertage!$C$12:$D$53,2,0),VLOOKUP(C33,Feiertage!$C$12:$D$53,2)),"")) ->  | E33: 2025-03-29 | F33: =IFERROR(IF(ISNA(VLOOKUP(E33,Feiertage!$C$12:$D$53,1,0)),VLOOKUP(E33,Feiertage!$C$12:$D$53,2,0),VLOOKUP(E33,Feiertage!$C$12:$D$53,2)),"") ->  | G33: 2025-04-29 | H33: =IFERROR(IF(ISNA(VLOOKUP(G33,Feiertage!$C$12:$D$53,1,0)),VLOOKUP(G33,Feiertage!$C$12:$D$53,2,0),VLOOKUP(G33,Feiertage!$C$12:$D$53,2)),"") ->  | I33: 2025-05-29 | J33: =IFERROR(IF(ISNA(VLOOKUP(I33,Feiertage!$C$12:$D$53,1,0)),VLOOKUP(I33,Feiertage!$C$12:$D$53,2,0),VLOOKUP(I33,Feiertage!$C$12:$D$53,2)),"") -> Himmelfahrt | K33: =K32+1 -> 2025-06-29 | L33: =IFERROR(IF(ISNA(VLOOKUP(K33,Feiertage!$C$12:$D$53,1,0)),VLOOKUP(K33,Feiertage!$C$12:$D$53,2,0),VLOOKUP(K33,Feiertage!$C$12:$D$53,2)),"") ->  | M33: 2025-07-29 | N33: =IFERROR(IF(ISNA(VLOOKUP(M33,Feiertage!$C$12:$D$53,1,0)),VLOOKUP(M33,Feiertage!$C$12:$D$53,2,0),VLOOKUP(M33,Feiertage!$C$12:$D$53,2)),"") ->  | O33: 2025-08-29 | P33: =IFERROR(IF(ISNA(VLOOKUP(O33,Feiertage!$C$12:$D$53,1,0)),VLOOKUP(O33,Feiertage!$C$12:$D$53,2,0),VLOOKUP(O33,Feiertage!$C$12:$D$53,2)),"") ->  | Q33: 2025-09-29 | R33: =IFERROR(IF(ISNA(VLOOKUP(Q33,Feiertage!$C$12:$D$53,1,0)),VLOOKUP(Q33,Feiertage!$C$12:$D$53,2,0),VLOOKUP(Q33,Feiertage!$C$12:$D$53,2)),"") ->  | S33: 2025-10-29 | T33: =IFERROR(IF(ISNA(VLOOKUP(S33,Feiertage!$C$12:$D$53,1,0)),VLOOKUP(S33,Feiertage!$C$12:$D$53,2,0),VLOOKUP(S33,Feiertage!$C$12:$D$53,2)),"") ->  | U33: 2025-11-29 | V33: =IFERROR(IF(ISNA(VLOOKUP(U33,Feiertage!$C$12:$D$53,1,0)),VLOOKUP(U33,Feiertage!$C$12:$D$53,2,0),VLOOKUP(U33,Feiertage!$C$12:$D$53,2)),"") ->  | W33: 2025-12-29 | X33: =IFERROR(IF(ISNA(VLOOKUP(W33,Feiertage!$C$12:$D$53,1,0)),VLOOKUP(W33,Feiertage!$C$12:$D$53,2,0),VLOOKUP(W33,Feiertage!$C$12:$D$53,2)),"") -> 
A34: 2025-01-30 | B34: =IFERROR(IF(ISNA(VLOOKUP(A34,Feiertage!$C$12:$D$53,1,0)),VLOOKUP(A34,Feiertage!$C$12:$D$53,2,0),VLOOKUP(A34,Feiertage!$C$12:$D$53,2)),"") ->  | D34: =IFERROR(IF(ISNA(VLOOKUP(C34,Feiertage!$C$12:$D$53,1,0)),VLOOKUP(C34,Feiertage!$C$12:$D$53,2,0),VLOOKUP(C34,Feiertage!$C$12:$D$53,2)),"") ->  | E34: 2025-03-30 | F34: =IFERROR(IF(ISNA(VLOOKUP(E34,Feiertage!$C$12:$D$53,1,0)),VLOOKUP(E34,Feiertage!$C$12:$D$53,2,0),VLOOKUP(E34,Feiertage!$C$12:$D$53,2)),"") ->  | G34: 2025-04-30 | H34: =IFERROR(IF(ISNA(VLOOKUP(G34,Feiertage!$C$12:$D$53,1,0)),VLOOKUP(G34,Feiertage!$C$12:$D$53,2,0),VLOOKUP(G34,Feiertage!$C$12:$D$53,2)),"") ->  | I34: 2025-05-30 | J34: =IFERROR(IF(ISNA(VLOOKUP(I34,Feiertage!$C$12:$D$53,1,0)),VLOOKUP(I34,Feiertage!$C$12:$D$53,2,0),VLOOKUP(I34,Feiertage!$C$12:$D$53,2)),"") ->  | K34: =K33+1 -> 2025-06-30 | L34: =IFERROR(IF(ISNA(VLOOKUP(K34,Feiertage!$C$12:$D$53,1,0)),VLOOKUP(K34,Feiertage!$C$12:$D$53,2,0),VLOOKUP(K34,Feiertage!$C$12:$D$53,2)),"") ->  | M34: 2025-07-30 | N34: =IFERROR(IF(ISNA(VLOOKUP(M34,Feiertage!$C$12:$D$53,1,0)),VLOOKUP(M34,Feiertage!$C$12:$D$53,2,0),VLOOKUP(M34,Feiertage!$C$12:$D$53,2)),"") ->  | O34: 2025-08-30 | P34: =IFERROR(IF(ISNA(VLOOKUP(O34,Feiertage!$C$12:$D$53,1,0)),VLOOKUP(O34,Feiertage!$C$12:$D$53,2,0),VLOOKUP(O34,Feiertage!$C$12:$D$53,2)),"") ->  | Q34: 2025-09-30 | R34: =IFERROR(IF(ISNA(VLOOKUP(Q34,Feiertage!$C$12:$D$53,1,0)),VLOOKUP(Q34,Feiertage!$C$12:$D$53,2,0),VLOOKUP(Q34,Feiertage!$C$12:$D$53,2)),"") ->  | S34: 2025-10-30 | T34: =IFERROR(IF(ISNA(VLOOKUP(S34,Feiertage!$C$12:$D$53,1,0)),VLOOKUP(S34,Feiertage!$C$12:$D$53,2,0),VLOOKUP(S34,Feiertage!$C$12:$D$53,2)),"") ->  | U34: 2025-11-30 | V34: =IFERROR(IF(ISNA(VLOOKUP(U34,Feiertage!$C$12:$D$53,1,0)),VLOOKUP(U34,Feiertage!$C$12:$D$53,2,0),VLOOKUP(U34,Feiertage!$C$12:$D$53,2)),"") ->  | W34: 2025-12-30 | X34: =IFERROR(IF(ISNA(VLOOKUP(W34,Feiertage!$C$12:$D$53,1,0)),VLOOKUP(W34,Feiertage!$C$12:$D$53,2,0),VLOOKUP(W34,Feiertage!$C$12:$D$53,2)),"") -> 
A35: 2025-01-31 | B35: =IFERROR(IF(ISNA(VLOOKUP(A35,Feiertage!$C$12:$D$53,1,0)),VLOOKUP(A35,Feiertage!$C$12:$D$53,2,0),VLOOKUP(A35,Feiertage!$C$12:$D$53,2)),"") ->  | E35: 2025-03-31 | F35: =IFERROR(IF(ISNA(VLOOKUP(E35,Feiertage!$C$12:$D$53,1,0)),VLOOKUP(E35,Feiertage!$C$12:$D$53,2,0),VLOOKUP(E35,Feiertage!$C$12:$D$53,2)),"") ->  | I35: 2025-05-31 | J35: =IFERROR(IF(ISNA(VLOOKUP(I35,Feiertage!$C$12:$D$53,1,0)),VLOOKUP(I35,Feiertage!$C$12:$D$53,2,0),VLOOKUP(I35,Feiertage!$C$12:$D$53,2)),"") ->  | M35: 2025-07-31 | N35: =IFERROR(IF(ISNA(VLOOKUP(M35,Feiertage!$C$12:$D$53,1,0)),VLOOKUP(M35,Feiertage!$C$12:$D$53,2,0),VLOOKUP(M35,Feiertage!$C$12:$D$53,2)),"") ->  | O35: 2025-08-31 | P35: =IFERROR(IF(ISNA(VLOOKUP(O35,Feiertage!$C$12:$D$53,1,0)),VLOOKUP(O35,Feiertage!$C$12:$D$53,2,0),VLOOKUP(O35,Feiertage!$C$12:$D$53,2)),"") ->  | S35: 2025-10-31 | T35: =IFERROR(IF(ISNA(VLOOKUP(S35,Feiertage!$C$12:$D$53,1,0)),VLOOKUP(S35,Feiertage!$C$12:$D$53,2,0),VLOOKUP(S35,Feiertage!$C$12:$D$53,2)),"") -> Reformationst. | W35: 2025-12-31 | X35: =IFERROR(IF(ISNA(VLOOKUP(W35,Feiertage!$C$12:$D$53,1,0)),VLOOKUP(W35,Feiertage!$C$12:$D$53,2,0),VLOOKUP(W35,Feiertage!$C$12:$D$53,2)),"") -> 
